Unique Reference Number,Vendor Name,Subj Mapping 1,Subj Mapping 2,Subjective  Desc,Line Amount,Capital/Revenue,GL Posting Date,Directorate
WC48-0001,1ST CARE LIMITED T/A STUBBY LEAS NURSING HOME,Third Party Payments,Private Contractor Fees,73373-RESIDENTIAL & NURSING CARE PLACEMENTS,"2,140.28",Revenue,16/09/2014,Social Care & Inclusion
WC48-0002,1ST HAND CARE LTD,Third Party Payments,Private Contractor Fees,73372-DOMICILIARY CARE,-355.44,Revenue,24/09/2014,Social Care & Inclusion
WC48-0003,1ST HAND CARE LTD,Third Party Payments,Private Contractor Fees,73372-DOMICILIARY CARE,"1,145.88",Revenue,23/09/2014,Social Care & Inclusion
WC48-0004,1ST HAND CARE LTD,Third Party Payments,Private Contractor Fees,73372-DOMICILIARY CARE,"3,310.32",Revenue,24/09/2014,Social Care & Inclusion
WC48-0005,1ST HAND CARE LTD,Third Party Payments,Private Contractor Fees,73372-DOMICILIARY CARE,"13,013.17",Revenue,19/09/2014,Social Care & Inclusion
WC48-0006,2BM LIMITED,Supplies & Services,Communications & Computing,63820-RECHARGE FOR MAINTENANCE/APPLICATION COSTS-COMPUTER,"2,100.00",Revenue,01/09/2014,Resources
WC48-0007,2SIMPLE SOFTWARE LTD,Supplies & Services,"Equip,Furniture & Materials",60010-LICENCES-EQUIPMENT,300.00,Revenue,04/09/2014,Childrens
WC48-0008,39 ESSEX STREET LLP PFA,Third Party Payments,Private Contractor Fees,73014-LEGAL FEES-PRIV CONTRACTOR FEES,"1,750.00",Revenue,19/09/2014,Resources
WC48-0009,39 ESSEX STREET LLP PFA,Third Party Payments,Private Contractor Fees,73014-LEGAL FEES-PRIV CONTRACTOR FEES,"2,750.00",Revenue,19/09/2014,Resources
WC48-0010,A 1 EAGLE TAXIS,Transport,Hire,52000-WITH DRIVER-HIRE OF VEHICLES,"1,535.00",Revenue,02/09/2014,Childrens
WC48-0011,A B WASTE MANAGEMENT LTD,Supplies & Services,Other Supplies & Services,62523-EVENTS,320.00,Revenue,10/09/2014,Neighbourhood Services
WC48-0012,A D T FIRE AND SECURITY PLC,Third Party Payments,Private Contractor Fees,73025-PROFESSIONAL SERVICES-PRIV CONTRACTOR & OTHER AGENCIES,-427.19,Revenue,11/09/2014,Regeneration
WC48-0013,A D T FIRE AND SECURITY PLC,Third Party Payments,Private Contractor Fees,73002-SECURITY-PRIV CONTRACTOR FEES,325.04,Revenue,19/09/2014,Regeneration
WC48-0014,A D T FIRE AND SECURITY PLC,Third Party Payments,Private Contractor Fees,73025-PROFESSIONAL SERVICES-PRIV CONTRACTOR & OTHER AGENCIES,427.19,Revenue,11/09/2014,Regeneration
WC48-0015,A D T FIRE AND SECURITY PLC,Supplies & Services,"Equip,Furniture & Materials",60520-HEALTH & SAFETY-MATERIALS,693.63,Revenue,19/09/2014,Social Care & Inclusion
WC48-0016,A D T FIRE AND SECURITY PLC,Third Party Payments,Private Contractor Fees,73002-SECURITY-PRIV CONTRACTOR FEES,764.81,Revenue,19/09/2014,Regeneration
WC48-0017,A D T FIRE AND SECURITY PLC,Third Party Payments,Private Contractor Fees,73002-SECURITY-PRIV CONTRACTOR FEES,785.83,Revenue,19/09/2014,Regeneration
WC48-0018,A D T FIRE AND SECURITY PLC,Third Party Payments,Private Contractor Fees,73002-SECURITY-PRIV CONTRACTOR FEES,987.65,Revenue,24/09/2014,Regeneration
WC48-0019,A D T FIRE AND SECURITY PLC,Supplies & Services,"Equip,Furniture & Materials",60008-MAINTENANCE-FURNITURE & EQUIPMENT,"4,050.00",Revenue,18/09/2014,Social Care & Inclusion
WC48-0020,A F BLAKEMORE & SON LTD,Supplies & Services,Provisions,61009-BEVERAGES-PROVISIONS,102.43,Revenue,02/09/2014,Neighbourhood Services
WC48-0021,A F BLAKEMORE & SON LTD,Supplies & Services,Provisions,61009-BEVERAGES-PROVISIONS,110.07,Revenue,02/09/2014,Neighbourhood Services
WC48-0022,A F BLAKEMORE & SON LTD,Supplies & Services,Provisions,61009-BEVERAGES-PROVISIONS,135.76,Revenue,24/09/2014,Neighbourhood Services
WC48-0023,A F BLAKEMORE & SON LTD,Supplies & Services,Provisions,61002-DRY FOODS-PROVISIONS,159.10,Revenue,02/09/2014,Neighbourhood Services
WC48-0024,A F BLAKEMORE & SON LTD,Supplies & Services,Provisions,61002-DRY FOODS-PROVISIONS,220.29,Revenue,02/09/2014,Neighbourhood Services
WC48-0025,A F BLAKEMORE & SON LTD,Supplies & Services,Provisions,61016-FOOD AND BEVERAGES-PROVISIONS,269.35,Revenue,08/09/2014,Social Care & Inclusion
WC48-0026,A F BLAKEMORE & SON LTD,Supplies & Services,Provisions,61002-DRY FOODS-PROVISIONS,272.07,Revenue,02/09/2014,Neighbourhood Services
WC48-0027,A F BLAKEMORE & SON LTD,Supplies & Services,"Equip,Furniture & Materials",60006-NEW-FURNITURE & EQUIPMENT,277.11,Revenue,18/09/2014,Neighbourhood Services
WC48-0028,A F BLAKEMORE & SON LTD,Supplies & Services,Provisions,61016-FOOD AND BEVERAGES-PROVISIONS,290.04,Revenue,11/09/2014,Social Care & Inclusion
WC48-0029,A F BLAKEMORE & SON LTD,Supplies & Services,Provisions,61006-FRUIT & VEGETABLES OTHER-PROVISIONS,333.81,Revenue,16/09/2014,Social Care & Inclusion
WC48-0030,A F BLAKEMORE & SON LTD,Supplies & Services,Provisions,61002-DRY FOODS-PROVISIONS,348.77,Revenue,24/09/2014,Neighbourhood Services
WC48-0031,A F BLAKEMORE & SON LTD,Supplies & Services,Provisions,61006-FRUIT & VEGETABLES OTHER-PROVISIONS,418.86,Revenue,08/09/2014,Social Care & Inclusion
WC48-0032,A F BLAKEMORE & SON LTD,Supplies & Services,Provisions,61006-FRUIT & VEGETABLES OTHER-PROVISIONS,546.53,Revenue,19/09/2014,Social Care & Inclusion
WC48-0033,A F BLAKEMORE & SON LTD,Supplies & Services,Provisions,61002-DRY FOODS-PROVISIONS,763.56,Revenue,01/09/2014,Neighbourhood Services
WC48-0034,A F BLAKEMORE & SON LTD,Supplies & Services,Provisions,61305-CATERING,800.79,Revenue,29/09/2014,Social Care & Inclusion
WC48-0035,A F BLAKEMORE & SON LTD,Supplies & Services,Provisions,61305-CATERING,811.19,Revenue,04/09/2014,Social Care & Inclusion
WC48-0036,A F BLAKEMORE & SON LTD,Supplies & Services,Provisions,61002-DRY FOODS-PROVISIONS,"1,107.09",Revenue,16/09/2014,Neighbourhood Services
WC48-0037,CHASE NURSING HOME,Third Party Payments,Private Contractor Fees,73373-RESIDENTIAL & NURSING CARE PLACEMENTS,"-1,911.76",Revenue,01/09/2014,Social Care & Inclusion
WC48-0038,CHASE NURSING HOME,Third Party Payments,Private Contractor Fees,73373-RESIDENTIAL & NURSING CARE PLACEMENTS,"-1,911.76",Revenue,01/09/2014,Social Care & Inclusion
WC48-0039,CHASE NURSING HOME,Third Party Payments,Private Contractor Fees,73373-RESIDENTIAL & NURSING CARE PLACEMENTS,"-1,911.76",Revenue,01/09/2014,Social Care & Inclusion
WC48-0040,CHASE NURSING HOME,Third Party Payments,Private Contractor Fees,73373-RESIDENTIAL & NURSING CARE PLACEMENTS,"-1,911.76",Revenue,01/09/2014,Social Care & Inclusion
WC48-0041,CHASE NURSING HOME,Third Party Payments,Private Contractor Fees,73373-RESIDENTIAL & NURSING CARE PLACEMENTS,"-1,911.76",Revenue,01/09/2014,Social Care & Inclusion
WC48-0042,CHASE NURSING HOME,Third Party Payments,Private Contractor Fees,73373-RESIDENTIAL & NURSING CARE PLACEMENTS,"-1,477.04",Revenue,01/09/2014,Social Care & Inclusion
WC48-0043,CHASE NURSING HOME,Third Party Payments,Private Contractor Fees,73373-RESIDENTIAL & NURSING CARE PLACEMENTS,-850.00,Revenue,01/09/2014,Social Care & Inclusion
WC48-0044,REDACTED,Third Party Payments,Private Contractor Fees,74006-HOLIDAY/CHRISTMAS ALLOWANCE-FOSTER CARERS-OTH AGENCY PROVISION,333.92,Revenue,01/09/2014,Childrens
WC48-0045,A KARIMS CHUCKERY PHARMACY,Supplies & Services,Services,63102-CONSULTANTS FEES - CORPORATE,"1,864.72",Revenue,02/09/2014,Neighbourhood Services
WC48-0046,REDACTED,Supplies & Services,Other Supplies & Services,62515-MISCELLANEOUS SUPPLIES,896.24,Revenue,15/09/2014,Childrens
WC48-0047,REDACTED,Third Party Payments,Private Contractor Fees,74006-HOLIDAY/CHRISTMAS ALLOWANCE-FOSTER CARERS-OTH AGENCY PROVISION,"1,154.32",Revenue,15/09/2014,Childrens
WC48-0048,A1 PINFOLD/ABA CARS,Transport,Hire,52000-WITH DRIVER-HIRE OF VEHICLES,288.00,Revenue,02/09/2014,Childrens
WC48-0049,A1 PINFOLD/ABA CARS,Transport,Hire,52000-WITH DRIVER-HIRE OF VEHICLES,840.00,Revenue,02/09/2014,Childrens
WC48-0050,REDACTED,Transfer Payments,Transfer Payments,76422-DIRECT PAYMENTS TO SOCIAL SERVICES CLIENTS,431.55,Revenue,17/09/2014,Childrens
WC48-0051,ABACUS FOSTERING LTD,Third Party Payments,Private Contractor Fees,74037-INDEPENDENT FOSTER CARE-OTH AGENCY PROVISION,"3,852.86",Revenue,15/09/2014,Childrens
WC48-0052,REDACTED,Third Party Payments,Private Contractor Fees,74006-HOLIDAY/CHRISTMAS ALLOWANCE-FOSTER CARERS-OTH AGENCY PROVISION,639.40,Revenue,01/09/2014,Childrens
WC48-0053,ABBEY BLINDS 001,Capital,Capital,01006-SITE WORKS MAIN CONTRACTORS,327.25,Capital,11/09/2014,Neighbourhood Services
WC48-0054,ABBEY COURT NURSING & RESIDEN,Third Party Payments,Private Contractor Fees,73373-RESIDENTIAL & NURSING CARE PLACEMENTS,"1,494.00",Revenue,16/09/2014,Social Care & Inclusion
WC48-0055,ABBEY COURT NURSING & RESIDEN,Third Party Payments,Private Contractor Fees,73373-RESIDENTIAL & NURSING CARE PLACEMENTS,"1,494.00",Revenue,16/09/2014,Social Care & Inclusion
WC48-0056,ABBEY COURT NURSING & RESIDEN,Third Party Payments,Private Contractor Fees,73373-RESIDENTIAL & NURSING CARE PLACEMENTS,"1,494.00",Revenue,24/09/2014,Social Care & Inclusion
WC48-0057,ABBEY COURT NURSING & RESIDEN,Third Party Payments,Private Contractor Fees,73373-RESIDENTIAL & NURSING CARE PLACEMENTS,"1,867.50",Revenue,24/09/2014,Social Care & Inclusion
WC48-0058,ABBEY HEALTHCARE HOMES LTD,Third Party Payments,Private Contractor Fees,73373-RESIDENTIAL & NURSING CARE PLACEMENTS,"2,243.60",Revenue,16/09/2014,Social Care & Inclusion
WC48-0059,ABBEYMERE CARE CENTRE,Third Party Payments,Private Contractor Fees,73373-RESIDENTIAL & NURSING CARE PLACEMENTS,"1,528.87",Revenue,02/09/2014,Social Care & Inclusion
WC48-0060,ABBEYMERE CARE CENTRE,Third Party Payments,Private Contractor Fees,73373-RESIDENTIAL & NURSING CARE PLACEMENTS,"1,528.87",Revenue,24/09/2014,Social Care & Inclusion
WC48-0061,ABC DAY NURSERY (WILLENHALL) LIMITED,Employees,Other Staff Costs,32000-MISC FEES AND EXPENSES,408.00,Revenue,24/09/2014,Childrens
WC48-0062,ABC DAY NURSERY (WILLENHALL) LIMITED,Third Party Payments,Grants to Other Orgs,66505-OTHER-GRANTS TO OTHER ORGS,"27,182.04",Revenue,29/09/2014,Childrens
WC48-0063,ABC FOSTERING,Third Party Payments,Private Contractor Fees,74037-INDEPENDENT FOSTER CARE-OTH AGENCY PROVISION,"3,135.00",Revenue,18/09/2014,Childrens
WC48-0064,ABC FOSTERING,Third Party Payments,Private Contractor Fees,74037-INDEPENDENT FOSTER CARE-OTH AGENCY PROVISION,"3,300.00",Revenue,18/09/2014,Childrens
WC48-0065,ABC TEACHERS LIMITED,Third Party Payments,Grants to Other Orgs,66502-TOP UP FUNDING -GRANTS TO SCHOOLS,425.00,Revenue,25/09/2014,Childrens
WC48-0066,ABC TEACHERS LIMITED,Employees,Agency,34305-AGENCY STAFF-EMPLOYEES,483.96,Revenue,25/09/2014,Childrens
WC48-0067,ABC TEACHERS LIMITED,Third Party Payments,Grants to Other Orgs,66502-TOP UP FUNDING -GRANTS TO SCHOOLS,579.95,Revenue,25/09/2014,Childrens
WC48-0068,ABC TEACHERS LIMITED,Employees,Agency,34305-AGENCY STAFF-EMPLOYEES,587.97,Revenue,15/09/2014,Childrens
WC48-0069,ABC TEACHERS LIMITED,Employees,Agency,34305-AGENCY STAFF-EMPLOYEES,587.97,Revenue,15/09/2014,Childrens
WC48-0070,ABEL ALARM CO LTD,Premises,Premises-Repairs & Maintenance,"40000-REPAIRS,ALTERATIONS & MAINTENANCE-PREM",335.00,Revenue,19/09/2014,Resources
WC48-0071,ABEL ALARM CO LTD,Supplies & Services,"Equip,Furniture & Materials",60006-NEW-FURNITURE & EQUIPMENT,844.55,Revenue,19/09/2014,Neighbourhood Services
WC48-0072,ABEL ALARM CO LTD,Supplies & Services,"Equip,Furniture & Materials",60006-NEW-FURNITURE & EQUIPMENT,948.10,Revenue,19/09/2014,Neighbourhood Services
WC48-0073,REDACTED,Transfer Payments,Transfer Payments,76422-DIRECT PAYMENTS TO SOCIAL SERVICES CLIENTS,"2,947.49",Revenue,17/09/2014,Social Care & Inclusion
WC48-0074,ABRAXAS CATERING EQUIPMENT,Premises,Premises-Repairs & Maintenance,"40000-REPAIRS,ALTERATIONS & MAINTENANCE-PREM",798.00,Revenue,02/09/2014,Neighbourhood Services
WC48-0075,ABU BAKR NURSERY,Third Party Payments,Grants to Other Orgs,66505-OTHER-GRANTS TO OTHER ORGS,"9,344.79",Revenue,29/09/2014,Childrens
WC48-0076,ACCORD HOUSING ASSOCIATION LTD#135,Third Party Payments,Private Contractor Fees,73374-SUPPORTED & OTHER ACCOMMODATION,569.07,Revenue,11/09/2014,Social Care & Inclusion
WC48-0077,ACCORD HOUSING ASSOCIATION LTD#135,Third Party Payments,Private Contractor Fees,73374-SUPPORTED & OTHER ACCOMMODATION,949.00,Revenue,11/09/2014,Social Care & Inclusion
WC48-0078,ACCORD HOUSING ASSOCIATION LTD#135,Premises,Rent,43000-RENTS,"2,855.11",Revenue,15/09/2014,Social Care & Inclusion
WC48-0079,ACCORD HOUSING ASSOCIATION LTD#135,Third Party Payments,Private Contractor Fees,73373-RESIDENTIAL & NURSING CARE PLACEMENTS,"4,640.48",Revenue,09/09/2014,Social Care & Inclusion
WC48-0080,ACCORD HOUSING ASSOCIATION LTD#135,Third Party Payments,Private Contractor Fees,73373-RESIDENTIAL & NURSING CARE PLACEMENTS,"4,640.48",Revenue,09/09/2014,Social Care & Inclusion
WC48-0081,ACCORD HOUSING ASSOCIATION LTD#135,Third Party Payments,Private Contractor Fees,73373-RESIDENTIAL & NURSING CARE PLACEMENTS,"4,640.48",Revenue,09/09/2014,Social Care & Inclusion
WC48-0082,ACCORD HOUSING ASSOCIATION LTD#135,Third Party Payments,Private Contractor Fees,73373-RESIDENTIAL & NURSING CARE PLACEMENTS,"4,640.48",Revenue,09/09/2014,Social Care & Inclusion
WC48-0083,ACCORD HOUSING ASSOCIATION LTD#135,Third Party Payments,Private Contractor Fees,73373-RESIDENTIAL & NURSING CARE PLACEMENTS,"6,476.61",Revenue,09/09/2014,Social Care & Inclusion
WC48-0084,ACCORD HOUSING ASSOCIATION LTD#135,Third Party Payments,Private Contractor Fees,73373-RESIDENTIAL & NURSING CARE PLACEMENTS,"6,476.61",Revenue,09/09/2014,Social Care & Inclusion
WC48-0085,ACCORD HOUSING ASSOCIATION LTD#135,Third Party Payments,Private Contractor Fees,73373-RESIDENTIAL & NURSING CARE PLACEMENTS,"6,476.61",Revenue,09/09/2014,Social Care & Inclusion
WC48-0086,ACCORD HOUSING ASSOCIATION LTD#135,Third Party Payments,Private Contractor Fees,73365-BLOCK GROSS-SUPPORTING PEOPLE,"7,518.50",Revenue,09/09/2014,Social Care & Inclusion
WC48-0087,ACCORD HOUSING ASSOCIATION LTD#135,Third Party Payments,Private Contractor Fees,73365-BLOCK GROSS-SUPPORTING PEOPLE,"7,518.50",Revenue,10/09/2014,Social Care & Inclusion
WC48-0088,ACCORD HOUSING ASSOCIATION LTD#135,Third Party Payments,Private Contractor Fees,73365-BLOCK GROSS-SUPPORTING PEOPLE,"46,500.00",Revenue,10/09/2014,Social Care & Inclusion
WC48-0089,ACE CARE AGENCY,Third Party Payments,Private Contractor Fees,73372-DOMICILIARY CARE,286.20,Revenue,25/09/2014,Social Care & Inclusion
WC48-0090,ACE REMOVALS,Supplies & Services,"Equip,Furniture & Materials",60104-REMOVAL OF FURNITURE,275.00,Revenue,19/09/2014,Resources
WC48-0091,ACE REMOVALS,Supplies & Services,"Equip,Furniture & Materials",60104-REMOVAL OF FURNITURE,275.00,Revenue,19/09/2014,Resources
WC48-0092,ACEPAY LTD (COTTAGE NUR HOME),Third Party Payments,Private Contractor Fees,73373-RESIDENTIAL & NURSING CARE PLACEMENTS,"1,460.40",Revenue,16/09/2014,Social Care & Inclusion
WC48-0093,ACEPAY LTD (COTTAGE NUR HOME),Third Party Payments,Private Contractor Fees,73373-RESIDENTIAL & NURSING CARE PLACEMENTS,"1,460.40",Revenue,16/09/2014,Social Care & Inclusion
WC48-0094,ACEPAY LTD (COTTAGE NUR HOME),Third Party Payments,Private Contractor Fees,73373-RESIDENTIAL & NURSING CARE PLACEMENTS,"1,933.16",Revenue,16/09/2014,Social Care & Inclusion
WC48-0095,ACEPAY LTD (COTTAGE NUR HOME),Third Party Payments,Private Contractor Fees,73373-RESIDENTIAL & NURSING CARE PLACEMENTS,"1,933.16",Revenue,16/09/2014,Social Care & Inclusion
WC48-0096,ACEPAY LTD (COTTAGE NUR HOME),Third Party Payments,Private Contractor Fees,73373-RESIDENTIAL & NURSING CARE PLACEMENTS,"1,933.16",Revenue,16/09/2014,Social Care & Inclusion
WC48-0097,ACEPAY LTD (COTTAGE NUR HOME),Third Party Payments,Private Contractor Fees,73373-RESIDENTIAL & NURSING CARE PLACEMENTS,"1,933.16",Revenue,16/09/2014,Social Care & Inclusion
WC48-0098,ACEPAY LTD (COTTAGE NUR HOME),Third Party Payments,Private Contractor Fees,73373-RESIDENTIAL & NURSING CARE PLACEMENTS,"1,933.16",Revenue,16/09/2014,Social Care & Inclusion
WC48-0099,ACEPAY LTD (COTTAGE NUR HOME),Third Party Payments,Private Contractor Fees,73373-RESIDENTIAL & NURSING CARE PLACEMENTS,"1,933.16",Revenue,16/09/2014,Social Care & Inclusion
WC48-0100,ACEPAY LTD (COTTAGE NUR HOME),Third Party Payments,Private Contractor Fees,73373-RESIDENTIAL & NURSING CARE PLACEMENTS,"1,933.16",Revenue,16/09/2014,Social Care & Inclusion
WC48-0101,ACEPAY LTD (COTTAGE NUR HOME),Third Party Payments,Private Contractor Fees,73373-RESIDENTIAL & NURSING CARE PLACEMENTS,"1,933.16",Revenue,16/09/2014,Social Care & Inclusion
WC48-0102,ACEPAY LTD (COTTAGE NUR HOME),Third Party Payments,Private Contractor Fees,73373-RESIDENTIAL & NURSING CARE PLACEMENTS,"1,933.16",Revenue,16/09/2014,Social Care & Inclusion
WC48-0103,ACEPAY LTD (COTTAGE NUR HOME),Third Party Payments,Private Contractor Fees,73373-RESIDENTIAL & NURSING CARE PLACEMENTS,"1,933.16",Revenue,24/09/2014,Social Care & Inclusion
WC48-0104,ACEPAY LTD (COTTAGE NUR HOME),Third Party Payments,Private Contractor Fees,73373-RESIDENTIAL & NURSING CARE PLACEMENTS,"1,979.20",Revenue,16/09/2014,Social Care & Inclusion
WC48-0105,ACEPAY LTD (COTTAGE NUR HOME),Third Party Payments,Private Contractor Fees,73373-RESIDENTIAL & NURSING CARE PLACEMENTS,"1,979.20",Revenue,16/09/2014,Social Care & Inclusion
WC48-0106,ACEPAY LTD (COTTAGE NUR HOME),Third Party Payments,Private Contractor Fees,73373-RESIDENTIAL & NURSING CARE PLACEMENTS,"1,979.20",Revenue,16/09/2014,Social Care & Inclusion
WC48-0107,ACEPAY LTD (COTTAGE NUR HOME),Third Party Payments,Private Contractor Fees,73373-RESIDENTIAL & NURSING CARE PLACEMENTS,"1,979.20",Revenue,16/09/2014,Social Care & Inclusion
WC48-0108,ACEPAY LTD (COTTAGE NUR HOME),Third Party Payments,Private Contractor Fees,73373-RESIDENTIAL & NURSING CARE PLACEMENTS,"1,979.20",Revenue,16/09/2014,Social Care & Inclusion
WC48-0109,ACEPAY LTD (COTTAGE NUR HOME),Third Party Payments,Private Contractor Fees,73373-RESIDENTIAL & NURSING CARE PLACEMENTS,"1,979.20",Revenue,16/09/2014,Social Care & Inclusion
WC48-0110,ACEPAY LTD (COTTAGE NUR HOME),Third Party Payments,Private Contractor Fees,73373-RESIDENTIAL & NURSING CARE PLACEMENTS,"2,372.32",Revenue,16/09/2014,Social Care & Inclusion
WC48-0111,ACEPAY LTD (COTTAGE NUR HOME),Third Party Payments,Private Contractor Fees,73373-RESIDENTIAL & NURSING CARE PLACEMENTS,"2,372.32",Revenue,16/09/2014,Social Care & Inclusion
WC48-0112,ACEPAY LTD (COTTAGE NUR HOME),Third Party Payments,Private Contractor Fees,73373-RESIDENTIAL & NURSING CARE PLACEMENTS,"8,906.34",Revenue,16/09/2014,Social Care & Inclusion
WC48-0113,ACIVICO LTD,Supplies & Services,Services,63102-CONSULTANTS FEES - CORPORATE,"4,597.00",Revenue,18/09/2014,Regeneration
WC48-0114,ACORN CARE HOME,Third Party Payments,Private Contractor Fees,73373-RESIDENTIAL & NURSING CARE PLACEMENTS,"-3,720.00",Revenue,16/09/2014,Social Care & Inclusion
WC48-0115,ACORN CARE HOME,Third Party Payments,Private Contractor Fees,73373-RESIDENTIAL & NURSING CARE PLACEMENTS,263.38,Revenue,16/09/2014,Social Care & Inclusion
WC48-0116,ACORN CARE HOME,Third Party Payments,Private Contractor Fees,73373-RESIDENTIAL & NURSING CARE PLACEMENTS,"4,082.39",Revenue,16/09/2014,Social Care & Inclusion
WC48-0117,ACORN CARE LTD,Third Party Payments,Private Contractor Fees,73373-RESIDENTIAL & NURSING CARE PLACEMENTS,"14,361.60",Revenue,16/09/2014,Social Care & Inclusion
WC48-0118,ACORN HOUSE FOSTERING SERVICES LTD,Third Party Payments,Private Contractor Fees,74037-INDEPENDENT FOSTER CARE-OTH AGENCY PROVISION,"3,454.95",Revenue,01/09/2014,Childrens
WC48-0119,ACORN HOUSE FOSTERING SERVICES LTD,Third Party Payments,Private Contractor Fees,74037-INDEPENDENT FOSTER CARE-OTH AGENCY PROVISION,"3,454.95",Revenue,02/09/2014,Childrens
WC48-0120,ACORN HOUSE FOSTERING SERVICES LTD,Third Party Payments,Private Contractor Fees,74037-INDEPENDENT FOSTER CARE-OTH AGENCY PROVISION,"3,525.63",Revenue,01/09/2014,Childrens
WC48-0121,ACORN HOUSE FOSTERING SERVICES LTD,Third Party Payments,Private Contractor Fees,74037-INDEPENDENT FOSTER CARE-OTH AGENCY PROVISION,"3,525.63",Revenue,02/09/2014,Childrens
WC48-0122,ACORN REST HOME,Third Party Payments,Private Contractor Fees,73373-RESIDENTIAL & NURSING CARE PLACEMENTS,"1,460.40",Revenue,02/09/2014,Social Care & Inclusion
WC48-0123,ACTION FOR CHILDREN,Third Party Payments,Private Contractor Fees,74037-INDEPENDENT FOSTER CARE-OTH AGENCY PROVISION,"3,405.34",Revenue,22/09/2014,Childrens
WC48-0124,ACTION FOR CHILDREN,Third Party Payments,Private Contractor Fees,74037-INDEPENDENT FOSTER CARE-OTH AGENCY PROVISION,"3,518.85",Revenue,01/09/2014,Childrens
WC48-0125,ACTION ON HEARING LOSS,Third Party Payments,Private Contractor Fees,73374-SUPPORTED & OTHER ACCOMMODATION,479.28,Revenue,09/09/2014,Social Care & Inclusion
WC48-0126,ADA BUILDERS & JOINERS,Capital,Capital,01045-PRIVATE GRANTS,"6,500.00",Capital,11/09/2014,Resources
WC48-0127,REDACTED,Transfer Payments,Transfer Payments,76422-DIRECT PAYMENTS TO SOCIAL SERVICES CLIENTS,609.50,Revenue,17/09/2014,Childrens
WC48-0128,REDACTED,Transfer Payments,Transfer Payments,76422-DIRECT PAYMENTS TO SOCIAL SERVICES CLIENTS,480.00,Revenue,17/09/2014,Social Care & Inclusion
WC48-0129,ADAMS TOURS,Transport,Hire,52000-WITH DRIVER-HIRE OF VEHICLES,450.00,Revenue,04/09/2014,Childrens
WC48-0130,ADAMS TOURS,Transport,Hire,52000-WITH DRIVER-HIRE OF VEHICLES,525.00,Revenue,19/09/2014,Childrens
WC48-0131,ADAMS TOURS,Transport,Hire,52000-WITH DRIVER-HIRE OF VEHICLES,525.00,Revenue,23/09/2014,Childrens
WC48-0132,ADAMS TOURS,Supplies & Services,Other Supplies & Services,64008-OUTINGS-EXPENSES,720.00,Revenue,03/09/2014,Childrens
WC48-0133,ADAMS TOURS,Third Party Payments,Private Contractor Fees,70000-SOCIAL SERVICES-FEES TO VOLUNTARY BODIES,"1,670.00",Revenue,18/09/2014,Social Care & Inclusion
WC48-0134,ADAMS TOURS,Supplies & Services,Other Supplies & Services,64008-OUTINGS-EXPENSES,"2,100.00",Revenue,12/09/2014,Childrens
WC48-0135,ADASS,Supplies & Services,Subscriptions,64500-PUBLICATIONS/ORGANISATIONS-SUBSCRIPTIONS,"1,661.00",Revenue,23/09/2014,Social Care & Inclusion
WC48-0136,ADDACTION,Supplies & Services,Services,63000-PROFESSIONAL FEES AND SERVICES,"275,223.00",Revenue,10/09/2014,Neighbourhood Services
WC48-0137,REDACTED,Transfer Payments,Transfer Payments,76422-DIRECT PAYMENTS TO SOCIAL SERVICES CLIENTS,"1,168.89",Revenue,17/09/2014,Social Care & Inclusion
WC48-0138,ADMIRAL SELF STORAGE LTD,Supplies & Services,Services,63000-PROFESSIONAL FEES AND SERVICES,351.21,Revenue,04/09/2014,Childrens
WC48-0139,ADMIRAL SELF STORAGE LTD,Supplies & Services,Services,63000-PROFESSIONAL FEES AND SERVICES,"1,564.29",Revenue,15/09/2014,Childrens
WC48-0140,ADOPTION UK,Supplies & Services,Communications & Computing,68001-PUBLICITY & ADVERTISING (NOT STAFF ADVERTISING),"7,358.75",Revenue,11/09/2014,Childrens
WC48-0141,ADRIAN CARROLL LTD,Capital,Capital,01007-ARCHITECTS ASSISTANTS TIME,705.00,Capital,24/09/2014,Childrens
WC48-0142,ADRIAN CARROLL LTD,Capital,Capital,01007-ARCHITECTS ASSISTANTS TIME,800.00,Capital,24/09/2014,Childrens
WC48-0143,REDACTED,Third Party Payments,Private Contractor Fees,74006-HOLIDAY/CHRISTMAS ALLOWANCE-FOSTER CARERS-OTH AGENCY PROVISION,681.52,Revenue,01/09/2014,Childrens
WC48-0144,ADVANCE HEALTH CARE (UK) LTD,Employees,Agency,34305-AGENCY STAFF-EMPLOYEES,633.70,Revenue,26/09/2014,Social Care & Inclusion
WC48-0145,ADVANCE HEALTH CARE (UK) LTD,Employees,Agency,34305-AGENCY STAFF-EMPLOYEES,773.50,Revenue,04/09/2014,Social Care & Inclusion
WC48-0146,ADVANCE HEALTH CARE (UK) LTD,Employees,Agency,34305-AGENCY STAFF-EMPLOYEES,"1,423.50",Revenue,04/09/2014,Social Care & Inclusion
WC48-0147,ADVANCE HEALTH CARE (UK) LTD,Employees,Agency,34305-AGENCY STAFF-EMPLOYEES,"1,556.75",Revenue,04/09/2014,Social Care & Inclusion
WC48-0148,ADVANCE HEALTH CARE (UK) LTD,Employees,Agency,34305-AGENCY STAFF-EMPLOYEES,"2,375.88",Revenue,04/09/2014,Social Care & Inclusion
WC48-0149,ADVANCE HEALTH CARE (UK) LTD,Employees,Agency,34305-AGENCY STAFF-EMPLOYEES,"2,762.50",Revenue,26/09/2014,Social Care & Inclusion
WC48-0150,ADVANCE HEALTH CARE (UK) LTD,Employees,Agency,34305-AGENCY STAFF-EMPLOYEES,"2,856.75",Revenue,26/09/2014,Social Care & Inclusion
WC48-0151,ADVANCE HEALTH CARE (UK) LTD,Employees,Agency,34305-AGENCY STAFF-EMPLOYEES,"4,875.00",Revenue,04/09/2014,Social Care & Inclusion
WC48-0152,ADVANCE HEALTH CARE (UK) LTD,Employees,Agency,34305-AGENCY STAFF-EMPLOYEES,"5,635.50",Revenue,04/09/2014,Social Care & Inclusion
WC48-0153,ADVANCE HEALTH CARE (UK) LTD,Employees,Agency,34305-AGENCY STAFF-EMPLOYEES,"5,999.50",Revenue,26/09/2014,Social Care & Inclusion
WC48-0154,ADVANCE HEALTH CARE (UK) LTD,Employees,Agency,34305-AGENCY STAFF-EMPLOYEES,"6,266.00",Revenue,26/09/2014,Social Care & Inclusion
WC48-0155,ADVANCE HEALTH CARE (UK) LTD,Third Party Payments,Private Contractor Fees,73372-DOMICILIARY CARE,"10,312.21",Revenue,17/09/2014,Social Care & Inclusion
WC48-0156,ADVANCED CHILDCARE LTD,Third Party Payments,Private Contractor Fees,74036-EXTERNAL RESIDENTIAL CARE-OTH AGENCY PROVISION,"2,657.01",Revenue,08/09/2014,Childrens
WC48-0157,ADVANCED CHILDCARE LTD,Third Party Payments,Private Contractor Fees,74037-INDEPENDENT FOSTER CARE-OTH AGENCY PROVISION,"2,948.10",Revenue,01/09/2014,Childrens
WC48-0158,ADVANCED CHILDCARE LTD,Third Party Payments,Private Contractor Fees,74037-INDEPENDENT FOSTER CARE-OTH AGENCY PROVISION,"3,103.10",Revenue,01/09/2014,Childrens
WC48-0159,ADVANCED CHILDCARE LTD,Third Party Payments,Private Contractor Fees,74037-INDEPENDENT FOSTER CARE-OTH AGENCY PROVISION,"3,103.10",Revenue,22/09/2014,Childrens
WC48-0160,ADVANCED CHILDCARE LTD,Third Party Payments,Private Contractor Fees,74037-INDEPENDENT FOSTER CARE-OTH AGENCY PROVISION,"3,317.00",Revenue,01/09/2014,Childrens
WC48-0161,ADVANCED CHILDCARE LTD,Third Party Payments,Private Contractor Fees,74037-INDEPENDENT FOSTER CARE-OTH AGENCY PROVISION,"3,317.00",Revenue,22/09/2014,Childrens
WC48-0162,ADVANCED CHILDCARE LTD,Third Party Payments,Private Contractor Fees,74036-EXTERNAL RESIDENTIAL CARE-OTH AGENCY PROVISION,"14,339.67",Revenue,08/09/2014,Childrens
WC48-0163,ADVANCED CONTRACTS (MIDLANDS) LTD,Premises,Premises-Repairs & Maintenance,"40000-REPAIRS,ALTERATIONS & MAINTENANCE-PREM",400.00,Revenue,15/09/2014,Regeneration
WC48-0164,ADVANCED CONTRACTS (MIDLANDS) LTD,Premises,Premises-Repairs & Maintenance,"40000-REPAIRS,ALTERATIONS & MAINTENANCE-PREM",480.00,Revenue,19/09/2014,Regeneration
WC48-0165,ADVANCED CONTRACTS (MIDLANDS) LTD,Premises,Premises-Repairs & Maintenance,"40000-REPAIRS,ALTERATIONS & MAINTENANCE-PREM",525.00,Revenue,16/09/2014,Regeneration
WC48-0166,ADVANCED CONTRACTS (MIDLANDS) LTD,Premises,Premises-Repairs & Maintenance,"40000-REPAIRS,ALTERATIONS & MAINTENANCE-PREM",585.00,Revenue,01/09/2014,Regeneration
WC48-0167,ADVANCED CONTRACTS (MIDLANDS) LTD,Premises,Premises-Repairs & Maintenance,"40000-REPAIRS,ALTERATIONS & MAINTENANCE-PREM",588.00,Revenue,05/09/2014,Regeneration
WC48-0168,ADVANCED CONTRACTS (MIDLANDS) LTD,Premises,Premises-Repairs & Maintenance,"40000-REPAIRS,ALTERATIONS & MAINTENANCE-PREM",928.00,Revenue,01/09/2014,Regeneration
WC48-0169,ADVANCED CONTRACTS (MIDLANDS) LTD,Premises,Premises-Repairs & Maintenance,"40000-REPAIRS,ALTERATIONS & MAINTENANCE-PREM","1,000.00",Revenue,19/09/2014,Regeneration
WC48-0170,ADVANCED CONTRACTS (MIDLANDS) LTD,Premises,Premises-Repairs & Maintenance,"40000-REPAIRS,ALTERATIONS & MAINTENANCE-PREM","1,100.00",Revenue,15/09/2014,Regeneration
WC48-0171,ADVANCED CONTRACTS (MIDLANDS) LTD,Premises,Premises-Repairs & Maintenance,"40000-REPAIRS,ALTERATIONS & MAINTENANCE-PREM","1,554.00",Revenue,15/09/2014,Regeneration
WC48-0172,ADVANCED CONTRACTS (MIDLANDS) LTD,Capital,Capital,01006-SITE WORKS MAIN CONTRACTORS,"3,599.86",Capital,16/09/2014,Childrens
WC48-0173,ADVANCED HEALTH AND CARE,Supplies & Services,Services,63000-PROFESSIONAL FEES AND SERVICES,400.00,Revenue,15/09/2014,Neighbourhood Services
WC48-0174,ADVANCED HEALTH AND CARE,Supplies & Services,Services,63000-PROFESSIONAL FEES AND SERVICES,"20,000.00",Revenue,15/09/2014,Neighbourhood Services
WC48-0175,ADVENTURELAND DAY NURSERY,Third Party Payments,Grants to Other Orgs,66505-OTHER-GRANTS TO OTHER ORGS,"9,909.59",Revenue,29/09/2014,Childrens
WC48-0176,AECOM LIMITED,Capital,Capital,01006-SITE WORKS MAIN CONTRACTORS,"2,307.60",Capital,01/09/2014,Regeneration
WC48-0177,AGE UK TRAINING,Third Party Payments,Grants to Other Orgs,66500-GRANTS TO OTHER ORGS,"1,125.00",Revenue,24/09/2014,Regeneration
WC48-0178,AGE UK TRAINING,Third Party Payments,Grants to Other Orgs,65500-GRANTS TO ASSOCIATIONS,"15,578.51",Revenue,18/09/2014,Neighbourhood Services
WC48-0179,AGE UK WALSALL,Transfer Payments,Transfer Payments,76423-DIRECT PAYMENTS SUPPORT,"3,865.00",Revenue,03/09/2014,Social Care & Inclusion
WC48-0180,AGGORA TECHNICAL LTD,Supplies & Services,"Printing, Stationery & Office Exp",63500-POSTAGES AND COURIER SERVICES,15.00,Revenue,03/09/2014,Neighbourhood Services
WC48-0181,AGGORA TECHNICAL LTD,Supplies & Services,"Printing, Stationery & Office Exp",63500-POSTAGES AND COURIER SERVICES,58.00,Revenue,03/09/2014,Neighbourhood Services
WC48-0182,AGGORA TECHNICAL LTD,Supplies & Services,"Printing, Stationery & Office Exp",63500-POSTAGES AND COURIER SERVICES,59.00,Revenue,03/09/2014,Neighbourhood Services
WC48-0183,AGGORA TECHNICAL LTD,Supplies & Services,"Printing, Stationery & Office Exp",63500-POSTAGES AND COURIER SERVICES,59.00,Revenue,03/09/2014,Neighbourhood Services
WC48-0184,AGGORA TECHNICAL LTD,Supplies & Services,"Printing, Stationery & Office Exp",63500-POSTAGES AND COURIER SERVICES,59.00,Revenue,03/09/2014,Neighbourhood Services
WC48-0185,AGGORA TECHNICAL LTD,Supplies & Services,"Printing, Stationery & Office Exp",63500-POSTAGES AND COURIER SERVICES,59.00,Revenue,03/09/2014,Neighbourhood Services
WC48-0186,AGGORA TECHNICAL LTD,Supplies & Services,"Printing, Stationery & Office Exp",63500-POSTAGES AND COURIER SERVICES,59.00,Revenue,03/09/2014,Neighbourhood Services
WC48-0187,AGGORA TECHNICAL LTD,Supplies & Services,"Printing, Stationery & Office Exp",63500-POSTAGES AND COURIER SERVICES,59.00,Revenue,26/09/2014,Neighbourhood Services
WC48-0188,AGGORA TECHNICAL LTD,Supplies & Services,"Printing, Stationery & Office Exp",63500-POSTAGES AND COURIER SERVICES,173.00,Revenue,01/09/2014,Neighbourhood Services
WC48-0189,AGGORA TECHNICAL LTD,Supplies & Services,"Printing, Stationery & Office Exp",63500-POSTAGES AND COURIER SERVICES,173.00,Revenue,01/09/2014,Neighbourhood Services
WC48-0190,AGGORA TECHNICAL LTD,Supplies & Services,"Printing, Stationery & Office Exp",63500-POSTAGES AND COURIER SERVICES,173.00,Revenue,02/09/2014,Neighbourhood Services
WC48-0191,AGGORA TECHNICAL LTD,Supplies & Services,"Printing, Stationery & Office Exp",63500-POSTAGES AND COURIER SERVICES,173.00,Revenue,03/09/2014,Neighbourhood Services
WC48-0192,AGGORA TECHNICAL LTD,Supplies & Services,"Printing, Stationery & Office Exp",63500-POSTAGES AND COURIER SERVICES,173.00,Revenue,03/09/2014,Neighbourhood Services
WC48-0193,AGGORA TECHNICAL LTD,Supplies & Services,"Printing, Stationery & Office Exp",63500-POSTAGES AND COURIER SERVICES,173.00,Revenue,03/09/2014,Neighbourhood Services
WC48-0194,AGGORA TECHNICAL LTD,Supplies & Services,"Printing, Stationery & Office Exp",63500-POSTAGES AND COURIER SERVICES,678.00,Revenue,19/09/2014,Neighbourhood Services
WC48-0195,AGGORA TECHNICAL LTD,Supplies & Services,"Equip,Furniture & Materials",60006-NEW-FURNITURE & EQUIPMENT,699.00,Revenue,03/09/2014,Neighbourhood Services
WC48-0196,AGGORA TECHNICAL LTD,Supplies & Services,"Printing, Stationery & Office Exp",63500-POSTAGES AND COURIER SERVICES,759.00,Revenue,18/09/2014,Neighbourhood Services
WC48-0197,AGGORA TECHNICAL LTD,Supplies & Services,"Equip,Furniture & Materials",60006-NEW-FURNITURE & EQUIPMENT,945.00,Revenue,03/09/2014,Neighbourhood Services
WC48-0198,AGGORA TECHNICAL LTD,Supplies & Services,"Equip,Furniture & Materials",60006-NEW-FURNITURE & EQUIPMENT,945.00,Revenue,03/09/2014,Neighbourhood Services
WC48-0199,AGGORA TECHNICAL LTD,Supplies & Services,"Equip,Furniture & Materials",60006-NEW-FURNITURE & EQUIPMENT,945.00,Revenue,03/09/2014,Neighbourhood Services
WC48-0200,AGGORA TECHNICAL LTD,Supplies & Services,"Equip,Furniture & Materials",60006-NEW-FURNITURE & EQUIPMENT,945.00,Revenue,03/09/2014,Neighbourhood Services
WC48-0201,AGGORA TECHNICAL LTD,Supplies & Services,"Equip,Furniture & Materials",60006-NEW-FURNITURE & EQUIPMENT,945.00,Revenue,03/09/2014,Neighbourhood Services
WC48-0202,AGGORA TECHNICAL LTD,Supplies & Services,"Equip,Furniture & Materials",60006-NEW-FURNITURE & EQUIPMENT,945.00,Revenue,03/09/2014,Neighbourhood Services
WC48-0203,AGGORA TECHNICAL LTD,Supplies & Services,"Equip,Furniture & Materials",60006-NEW-FURNITURE & EQUIPMENT,945.00,Revenue,03/09/2014,Neighbourhood Services
WC48-0204,AGGORA TECHNICAL LTD,Supplies & Services,"Equip,Furniture & Materials",60006-NEW-FURNITURE & EQUIPMENT,945.00,Revenue,03/09/2014,Neighbourhood Services
WC48-0205,AGGORA TECHNICAL LTD,Supplies & Services,"Equip,Furniture & Materials",60006-NEW-FURNITURE & EQUIPMENT,"1,068.00",Revenue,03/09/2014,Neighbourhood Services
WC48-0206,AGGORA TECHNICAL LTD,Supplies & Services,"Equip,Furniture & Materials",60006-NEW-FURNITURE & EQUIPMENT,"1,068.00",Revenue,26/09/2014,Neighbourhood Services
WC48-0207,AGGORA TECHNICAL LTD,Supplies & Services,"Equip,Furniture & Materials",60006-NEW-FURNITURE & EQUIPMENT,"1,129.00",Revenue,26/09/2014,Neighbourhood Services
WC48-0208,AGGORA TECHNICAL LTD,Supplies & Services,"Equip,Furniture & Materials",60006-NEW-FURNITURE & EQUIPMENT,"2,034.00",Revenue,02/09/2014,Neighbourhood Services
WC48-0209,AGGORA TECHNICAL LTD,Supplies & Services,"Equip,Furniture & Materials",60006-NEW-FURNITURE & EQUIPMENT,"2,034.00",Revenue,26/09/2014,Neighbourhood Services
WC48-0210,AGGORA TECHNICAL LTD,Supplies & Services,"Equip,Furniture & Materials",60006-NEW-FURNITURE & EQUIPMENT,"2,074.00",Revenue,03/09/2014,Neighbourhood Services
WC48-0211,AGGORA TECHNICAL LTD,Supplies & Services,"Equip,Furniture & Materials",60006-NEW-FURNITURE & EQUIPMENT,"2,815.00",Revenue,03/09/2014,Neighbourhood Services
WC48-0212,AGGORA TECHNICAL LTD,Supplies & Services,"Equip,Furniture & Materials",60006-NEW-FURNITURE & EQUIPMENT,"3,043.00",Revenue,01/09/2014,Neighbourhood Services
WC48-0213,AGGORA TECHNICAL LTD,Supplies & Services,"Equip,Furniture & Materials",60006-NEW-FURNITURE & EQUIPMENT,"3,043.00",Revenue,01/09/2014,Neighbourhood Services
WC48-0214,AGGORA TECHNICAL LTD,Supplies & Services,"Equip,Furniture & Materials",60006-NEW-FURNITURE & EQUIPMENT,"3,043.00",Revenue,02/09/2014,Neighbourhood Services
WC48-0215,AGGORA TECHNICAL LTD,Supplies & Services,"Equip,Furniture & Materials",60006-NEW-FURNITURE & EQUIPMENT,"3,043.00",Revenue,03/09/2014,Neighbourhood Services
WC48-0216,AGGORA TECHNICAL LTD,Supplies & Services,"Equip,Furniture & Materials",60006-NEW-FURNITURE & EQUIPMENT,"3,043.00",Revenue,03/09/2014,Neighbourhood Services
WC48-0217,AGGORA TECHNICAL LTD,Supplies & Services,"Equip,Furniture & Materials",60006-NEW-FURNITURE & EQUIPMENT,"3,043.00",Revenue,03/09/2014,Neighbourhood Services
WC48-0218,AGGORA TECHNICAL LTD,Supplies & Services,"Equip,Furniture & Materials",60006-NEW-FURNITURE & EQUIPMENT,"3,043.00",Revenue,03/09/2014,Neighbourhood Services
WC48-0219,AGGORA TECHNICAL LTD,Supplies & Services,"Equip,Furniture & Materials",60006-NEW-FURNITURE & EQUIPMENT,"3,455.00",Revenue,03/09/2014,Neighbourhood Services
WC48-0220,AGGORA TECHNICAL LTD,Supplies & Services,"Equip,Furniture & Materials",60006-NEW-FURNITURE & EQUIPMENT,"3,497.00",Revenue,03/09/2014,Neighbourhood Services
WC48-0221,AGGORA TECHNICAL LTD,Supplies & Services,"Equip,Furniture & Materials",60006-NEW-FURNITURE & EQUIPMENT,"3,820.00",Revenue,26/09/2014,Neighbourhood Services
WC48-0222,AGGORA TECHNICAL LTD,Supplies & Services,"Equip,Furniture & Materials",60006-NEW-FURNITURE & EQUIPMENT,"3,980.00",Revenue,03/09/2014,Neighbourhood Services
WC48-0223,AGGORA TECHNICAL LTD,Supplies & Services,"Equip,Furniture & Materials",60006-NEW-FURNITURE & EQUIPMENT,"4,300.00",Revenue,26/09/2014,Neighbourhood Services
WC48-0224,AGGORA TECHNICAL LTD,Supplies & Services,"Equip,Furniture & Materials",60006-NEW-FURNITURE & EQUIPMENT,"6,176.00",Revenue,03/09/2014,Neighbourhood Services
WC48-0225,AGINCARE UK LTD,Third Party Payments,Private Contractor Fees,73372-DOMICILIARY CARE,308.00,Revenue,24/09/2014,Social Care & Inclusion
WC48-0226,AGINCARE UK LTD,Third Party Payments,Private Contractor Fees,73372-DOMICILIARY CARE,"1,713.60",Revenue,24/09/2014,Social Care & Inclusion
WC48-0227,AGINCARE UK LTD,Third Party Payments,Private Contractor Fees,73372-DOMICILIARY CARE,"1,957.68",Revenue,24/09/2014,Social Care & Inclusion
WC48-0228,AGINCARE UK LTD,Third Party Payments,Private Contractor Fees,73372-DOMICILIARY CARE,"2,036.88",Revenue,24/09/2014,Social Care & Inclusion
WC48-0229,AGROVISTA UK LTD,Supplies & Services,"Equip,Furniture & Materials",60500-GENERAL MATERIALS,409.32,Revenue,19/09/2014,Neighbourhood Services
WC48-0230,AIM PROJECT,Employees,Training,30030-EXTERNAL TRAINING,260.00,Revenue,18/09/2014,Childrens
WC48-0231,REDACTED,Transfer Payments,Transfer Payments,76422-DIRECT PAYMENTS TO SOCIAL SERVICES CLIENTS,"2,352.50",Revenue,17/09/2014,Social Care & Inclusion
WC48-0232,REDACTED,Transfer Payments,Transfer Payments,76422-DIRECT PAYMENTS TO SOCIAL SERVICES CLIENTS,"1,170.65",Revenue,17/09/2014,Social Care & Inclusion
WC48-0233,REDACTED,Transfer Payments,Transfer Payments,76422-DIRECT PAYMENTS TO SOCIAL SERVICES CLIENTS,834.75,Revenue,17/09/2014,Social Care & Inclusion
WC48-0234,ALBERT PRITCHARD INFANT AND WOOD GREEN JUNIOR FEDERATED SCHOOLS,Transfer Payments,Transfer Payments,77300-ISB-FORMULA ALLOCATION,644.00,Revenue,01/09/2014,Childrens
WC48-0235,REDACTED,Transfer Payments,Transfer Payments,76422-DIRECT PAYMENTS TO SOCIAL SERVICES CLIENTS,"2,648.10",Revenue,17/09/2014,Social Care & Inclusion
WC48-0236,ALDERGROVE MANOR CARE HOME,Third Party Payments,Private Contractor Fees,73373-RESIDENTIAL & NURSING CARE PLACEMENTS,"1,784.48",Revenue,16/09/2014,Social Care & Inclusion
WC48-0237,ALDRIDGE & BARONS LIMITED,Transport,Hire,52001-HIRE OF VEHICLES,263.04,Revenue,25/09/2014,Social Care & Inclusion
WC48-0238,ALDRIDGE & BARONS LIMITED,Transport,Hire,52001-HIRE OF VEHICLES,312.61,Revenue,24/09/2014,Social Care & Inclusion
WC48-0239,ALDRIDGE & BARONS LIMITED,Supplies & Services,Services,63000-PROFESSIONAL FEES AND SERVICES,322.00,Revenue,04/09/2014,Childrens
WC48-0240,ALDRIDGE & BARONS LIMITED,Transport,Hire,52001-HIRE OF VEHICLES,430.00,Revenue,22/09/2014,Social Care & Inclusion
WC48-0241,ALDRIDGE & BARONS LIMITED,Transport,Hire,52001-HIRE OF VEHICLES,570.48,Revenue,22/09/2014,Social Care & Inclusion
WC48-0242,ALDRIDGE & BARONS LIMITED,Transport,Car Allowances,53004-TAXIS-TRAVEL ALLOWANCES,668.56,Revenue,18/09/2014,Childrens
WC48-0243,ALDRIDGE & BARONS LIMITED,Transport,Hire,52001-HIRE OF VEHICLES,858.48,Revenue,22/09/2014,Social Care & Inclusion
WC48-0244,ALDRIDGE & BARONS LIMITED,Transport,Hire,52001-HIRE OF VEHICLES,954.80,Revenue,22/09/2014,Social Care & Inclusion
WC48-0245,ALDRIDGE & BARONS LIMITED,Transport,Car Allowances,53004-TAXIS-TRAVEL ALLOWANCES,"1,302.00",Revenue,11/09/2014,Childrens
WC48-0246,ALDRIDGE & BARONS LIMITED,Transport,Hire,52001-HIRE OF VEHICLES,"1,746.12",Revenue,25/09/2014,Social Care & Inclusion
WC48-0247,ALDRIDGE & BARONS LIMITED,Transport,Hire,52001-HIRE OF VEHICLES,"1,794.24",Revenue,22/09/2014,Social Care & Inclusion
WC48-0248,ALDRIDGE & BARONS LIMITED,Transport,Hire,52001-HIRE OF VEHICLES,"1,796.84",Revenue,22/09/2014,Social Care & Inclusion
WC48-0249,ALDRIDGE & BARONS LIMITED,Transport,Hire,52001-HIRE OF VEHICLES,"1,860.00",Revenue,24/09/2014,Social Care & Inclusion
WC48-0250,ALDRIDGE & BARONS LIMITED,Transport,Hire,52001-HIRE OF VEHICLES,"1,873.48",Revenue,22/09/2014,Social Care & Inclusion
WC48-0251,ALDRIDGE & BARONS LIMITED,Transport,Hire,52001-HIRE OF VEHICLES,"2,173.11",Revenue,24/09/2014,Social Care & Inclusion
WC48-0252,ALDRIDGE SCHOOL A SCIENCE COLLEGE.,Third Party Payments,Grants to Other Orgs,66502-TOP UP FUNDING -GRANTS TO SCHOOLS,255.42,Revenue,08/09/2014,Childrens
WC48-0253,ALDRIDGE SCHOOL A SCIENCE COLLEGE.,Third Party Payments,Grants to Other Orgs,66502-TOP UP FUNDING -GRANTS TO SCHOOLS,"8,134.56",Revenue,15/09/2014,Childrens
WC48-0254,ALERE LTD,Supplies & Services,Communications & Computing,63809-LICENCES-COMPUTER,"2,500.00",Revenue,11/09/2014,Neighbourhood Services
WC48-0255,REDACTED,Transfer Payments,Transfer Payments,76422-DIRECT PAYMENTS TO SOCIAL SERVICES CLIENTS,418.80,Revenue,17/09/2014,Social Care & Inclusion
WC48-0256,ALEXANDRA HOUSE CARE SERVICES LTD T/A STONEBRIDGE NURSING HOME,Third Party Payments,Private Contractor Fees,73373-RESIDENTIAL & NURSING CARE PLACEMENTS,"6,960.84",Revenue,02/09/2014,Social Care & Inclusion
WC48-0257,ALEXANDRA HOUSE CARE SERVICES LTD T/A STONEBRIDGE NURSING HOME,Third Party Payments,Private Contractor Fees,73373-RESIDENTIAL & NURSING CARE PLACEMENTS,"6,960.84",Revenue,24/09/2014,Social Care & Inclusion
WC48-0258,REDACTED,Transfer Payments,Transfer Payments,76422-DIRECT PAYMENTS TO SOCIAL SERVICES CLIENTS,728.33,Revenue,17/09/2014,Childrens
WC48-0259,REDACTED,Transfer Payments,Transfer Payments,76422-DIRECT PAYMENTS TO SOCIAL SERVICES CLIENTS,"1,067.50",Revenue,17/09/2014,Social Care & Inclusion
WC48-0260,REDACTED,Transfer Payments,Transfer Payments,76422-DIRECT PAYMENTS TO SOCIAL SERVICES CLIENTS,550.00,Revenue,17/09/2014,Social Care & Inclusion
WC48-0261,REDACTED,Transfer Payments,Transfer Payments,76422-DIRECT PAYMENTS TO SOCIAL SERVICES CLIENTS,411.00,Revenue,17/09/2014,Social Care & Inclusion
WC48-0262,REDACTED,Third Party Payments,Private Contractor Fees,74006-HOLIDAY/CHRISTMAS ALLOWANCE-FOSTER CARERS-OTH AGENCY PROVISION,796.00,Revenue,15/09/2014,Childrens
WC48-0263,REDACTED,Supplies & Services,Other Supplies & Services,62515-MISCELLANEOUS SUPPLIES,"1,428.44",Revenue,15/09/2014,Childrens
WC48-0264,REDACTED,Third Party Payments,Private Contractor Fees,74006-HOLIDAY/CHRISTMAS ALLOWANCE-FOSTER CARERS-OTH AGENCY PROVISION,542.80,Revenue,01/09/2014,Childrens
WC48-0265,ALLSORTS OFFICE SUPPLIES LTD,Capital,Capital,01044-PURCHASE OF FURNITURE & EQUIPMENT,267.00,Capital,16/09/2014,Regeneration
WC48-0266,ALLSTAR BUSINESS SOLUTIONS LTD,Transport,Other Transport,50301-FUEL-TRANSPORT RUN COSTS,"1,256.12",Revenue,15/09/2014,Neighbourhood Services
WC48-0267,ALLSTAR BUSINESS SOLUTIONS LTD,Transport,Other Transport,50301-FUEL-TRANSPORT RUN COSTS,"1,434.31",Revenue,19/09/2014,Neighbourhood Services
WC48-0268,ALLTECH SERVICE ENGINEERS LTD,Supplies & Services,"Equip,Furniture & Materials",60007-REPAIR OF EQUIPMENT-EQUIPMENT,466.50,Revenue,23/09/2014,Resources
WC48-0269,ALMA COURT,Third Party Payments,Private Contractor Fees,73373-RESIDENTIAL & NURSING CARE PLACEMENTS,"5,978.57",Revenue,09/09/2014,Social Care & Inclusion
WC48-0270,ALMOND CARE,Supplies & Services,Services,63000-PROFESSIONAL FEES AND SERVICES,"1,236.62",Revenue,01/09/2014,Childrens
WC48-0271,ALMOZENE NURSERY & CHILDRENS CENTRE,Third Party Payments,Grants to Other Orgs,66505-OTHER-GRANTS TO OTHER ORGS,"9,726.21",Revenue,29/09/2014,Childrens
WC48-0272,ALPHA HEALTH CARE LTD,Third Party Payments,Private Contractor Fees,73373-RESIDENTIAL & NURSING CARE PLACEMENTS,521.57,Revenue,16/09/2014,Social Care & Inclusion
WC48-0273,ALPHA HEALTH CARE LTD,Third Party Payments,Private Contractor Fees,73373-RESIDENTIAL & NURSING CARE PLACEMENTS,"1,375.60",Revenue,16/09/2014,Social Care & Inclusion
WC48-0274,ALPHA HEALTH CARE LTD,Third Party Payments,Private Contractor Fees,73373-RESIDENTIAL & NURSING CARE PLACEMENTS,"1,375.60",Revenue,16/09/2014,Social Care & Inclusion
WC48-0275,ALPHA HEALTH CARE LTD,Third Party Payments,Private Contractor Fees,73373-RESIDENTIAL & NURSING CARE PLACEMENTS,"1,382.00",Revenue,16/09/2014,Social Care & Inclusion
WC48-0276,ALPHA HEALTH CARE LTD,Third Party Payments,Private Contractor Fees,73373-RESIDENTIAL & NURSING CARE PLACEMENTS,"1,383.00",Revenue,16/09/2014,Social Care & Inclusion
WC48-0277,ALPHA HEALTH CARE LTD,Third Party Payments,Private Contractor Fees,73373-RESIDENTIAL & NURSING CARE PLACEMENTS,"1,460.40",Revenue,16/09/2014,Social Care & Inclusion
WC48-0278,ALPHA HEALTH CARE LTD,Third Party Payments,Private Contractor Fees,73373-RESIDENTIAL & NURSING CARE PLACEMENTS,"1,470.60",Revenue,16/09/2014,Social Care & Inclusion
WC48-0279,ALPHA HEALTH CARE LTD,Third Party Payments,Private Contractor Fees,73373-RESIDENTIAL & NURSING CARE PLACEMENTS,"1,476.84",Revenue,16/09/2014,Social Care & Inclusion
WC48-0280,ALPHA HEALTH CARE LTD,Third Party Payments,Private Contractor Fees,73373-RESIDENTIAL & NURSING CARE PLACEMENTS,"1,476.84",Revenue,16/09/2014,Social Care & Inclusion
WC48-0281,ALPHA HEALTH CARE LTD,Third Party Payments,Private Contractor Fees,73373-RESIDENTIAL & NURSING CARE PLACEMENTS,"1,476.84",Revenue,24/09/2014,Social Care & Inclusion
WC48-0282,ALPHA HEALTH CARE LTD,Third Party Payments,Private Contractor Fees,73373-RESIDENTIAL & NURSING CARE PLACEMENTS,"1,489.60",Revenue,16/09/2014,Social Care & Inclusion
WC48-0283,ALPHA HEALTH CARE LTD,Third Party Payments,Private Contractor Fees,73373-RESIDENTIAL & NURSING CARE PLACEMENTS,"1,489.60",Revenue,16/09/2014,Social Care & Inclusion
WC48-0284,ALPHA HEALTH CARE LTD,Third Party Payments,Private Contractor Fees,73373-RESIDENTIAL & NURSING CARE PLACEMENTS,"1,489.60",Revenue,16/09/2014,Social Care & Inclusion
WC48-0285,ALPHA HEALTH CARE LTD,Third Party Payments,Private Contractor Fees,73373-RESIDENTIAL & NURSING CARE PLACEMENTS,"1,489.60",Revenue,16/09/2014,Social Care & Inclusion
WC48-0286,ALPHA HEALTH CARE LTD,Third Party Payments,Private Contractor Fees,73373-RESIDENTIAL & NURSING CARE PLACEMENTS,"1,489.60",Revenue,16/09/2014,Social Care & Inclusion
WC48-0287,ALPHA HEALTH CARE LTD,Third Party Payments,Private Contractor Fees,73373-RESIDENTIAL & NURSING CARE PLACEMENTS,"1,489.60",Revenue,16/09/2014,Social Care & Inclusion
WC48-0288,ALPHA HEALTH CARE LTD,Third Party Payments,Private Contractor Fees,73373-RESIDENTIAL & NURSING CARE PLACEMENTS,"1,489.60",Revenue,16/09/2014,Social Care & Inclusion
WC48-0289,ALPHA HEALTH CARE LTD,Third Party Payments,Private Contractor Fees,73373-RESIDENTIAL & NURSING CARE PLACEMENTS,"1,489.60",Revenue,16/09/2014,Social Care & Inclusion
WC48-0290,ALPHA HEALTH CARE LTD,Third Party Payments,Private Contractor Fees,73373-RESIDENTIAL & NURSING CARE PLACEMENTS,"1,489.60",Revenue,16/09/2014,Social Care & Inclusion
WC48-0291,ALPHA HEALTH CARE LTD,Third Party Payments,Private Contractor Fees,73373-RESIDENTIAL & NURSING CARE PLACEMENTS,"1,489.60",Revenue,16/09/2014,Social Care & Inclusion
WC48-0292,ALPHA HEALTH CARE LTD,Third Party Payments,Private Contractor Fees,73373-RESIDENTIAL & NURSING CARE PLACEMENTS,"1,489.60",Revenue,24/09/2014,Social Care & Inclusion
WC48-0293,ALPHA HEALTH CARE LTD,Third Party Payments,Private Contractor Fees,73373-RESIDENTIAL & NURSING CARE PLACEMENTS,"1,489.64",Revenue,16/09/2014,Social Care & Inclusion
WC48-0294,ALPHA HEALTH CARE LTD,Third Party Payments,Private Contractor Fees,73373-RESIDENTIAL & NURSING CARE PLACEMENTS,"1,534.12",Revenue,16/09/2014,Social Care & Inclusion
WC48-0295,ALPHA HEALTH CARE LTD,Third Party Payments,Private Contractor Fees,73373-RESIDENTIAL & NURSING CARE PLACEMENTS,"1,534.12",Revenue,16/09/2014,Social Care & Inclusion
WC48-0296,ALPHA HEALTH CARE LTD,Third Party Payments,Private Contractor Fees,73373-RESIDENTIAL & NURSING CARE PLACEMENTS,"1,534.12",Revenue,16/09/2014,Social Care & Inclusion
WC48-0297,ALPHA HEALTH CARE LTD,Third Party Payments,Private Contractor Fees,73373-RESIDENTIAL & NURSING CARE PLACEMENTS,"1,534.12",Revenue,16/09/2014,Social Care & Inclusion
WC48-0298,ALPHA HEALTH CARE LTD,Third Party Payments,Private Contractor Fees,73373-RESIDENTIAL & NURSING CARE PLACEMENTS,"1,534.12",Revenue,16/09/2014,Social Care & Inclusion
WC48-0299,ALPHA HEALTH CARE LTD,Third Party Payments,Private Contractor Fees,73373-RESIDENTIAL & NURSING CARE PLACEMENTS,"1,534.12",Revenue,24/09/2014,Social Care & Inclusion
WC48-0300,ALPHA HEALTH CARE LTD,Third Party Payments,Private Contractor Fees,73373-RESIDENTIAL & NURSING CARE PLACEMENTS,"1,534.28",Revenue,16/09/2014,Social Care & Inclusion
WC48-0301,ALPHA HEALTH CARE LTD,Third Party Payments,Private Contractor Fees,73373-RESIDENTIAL & NURSING CARE PLACEMENTS,"2,008.20",Revenue,16/09/2014,Social Care & Inclusion
WC48-0302,ALPHA HEALTH CARE LTD,Third Party Payments,Private Contractor Fees,73373-RESIDENTIAL & NURSING CARE PLACEMENTS,"2,109.44",Revenue,16/09/2014,Social Care & Inclusion
WC48-0303,ALPHA HEALTH CARE LTD,Third Party Payments,Private Contractor Fees,73373-RESIDENTIAL & NURSING CARE PLACEMENTS,"3,351.03",Revenue,16/09/2014,Social Care & Inclusion
WC48-0304,ALPHA HEALTH CARE LTD,Third Party Payments,Private Contractor Fees,73373-RESIDENTIAL & NURSING CARE PLACEMENTS,"5,426.72",Revenue,16/09/2014,Social Care & Inclusion
WC48-0305,ALPHA HEALTH CARE LTD,Third Party Payments,Private Contractor Fees,73373-RESIDENTIAL & NURSING CARE PLACEMENTS,"5,600.00",Revenue,16/09/2014,Social Care & Inclusion
WC48-0306,ALTODIGITAL NETWORKS LTD,Supplies & Services,"Equip,Furniture & Materials",60009-LEASING/HIRE/RENTAL-EQUIPMENT,300.00,Revenue,25/09/2014,Childrens
WC48-0307,ALTODIGITAL NETWORKS LTD,Supplies & Services,"Printing, Stationery & Office Exp",62001-STATIONERY & GENERAL SUPPLIES-OFFICE EXP,303.72,Revenue,18/09/2014,Neighbourhood Services
WC48-0308,ALTODIGITAL NETWORKS LTD,Supplies & Services,"Printing, Stationery & Office Exp",62000-EXTERNAL PRINTING SERVICES,308.76,Revenue,15/09/2014,Social Care & Inclusion
WC48-0309,ALTODIGITAL NETWORKS LTD,Supplies & Services,"Equip,Furniture & Materials",60009-LEASING/HIRE/RENTAL-EQUIPMENT,335.50,Revenue,25/09/2014,Resources
WC48-0310,ALTODIGITAL NETWORKS LTD,Supplies & Services,"Equip,Furniture & Materials",60009-LEASING/HIRE/RENTAL-EQUIPMENT,449.56,Revenue,25/09/2014,Resources
WC48-0311,ALTODIGITAL NETWORKS LTD,Supplies & Services,"Equip,Furniture & Materials",60009-LEASING/HIRE/RENTAL-EQUIPMENT,558.64,Revenue,24/09/2014,Resources
WC48-0312,ALTODIGITAL NETWORKS LTD,Central,Internal Recharges,82012-PRINT & DESIGN CHARGES-INTERNAL,580.62,Revenue,18/09/2014,Social Care & Inclusion
WC48-0313,ALTODIGITAL NETWORKS LTD,Supplies & Services,"Equip,Furniture & Materials",60009-LEASING/HIRE/RENTAL-EQUIPMENT,648.90,Revenue,25/09/2014,Resources
WC48-0314,ALTODIGITAL NETWORKS LTD,Supplies & Services,"Printing, Stationery & Office Exp",62001-STATIONERY & GENERAL SUPPLIES-OFFICE EXP,698.83,Revenue,16/09/2014,Neighbourhood Services
WC48-0315,ALTODIGITAL NETWORKS LTD,Supplies & Services,"Equip,Furniture & Materials",60009-LEASING/HIRE/RENTAL-EQUIPMENT,"1,264.06",Revenue,18/09/2014,Childrens
WC48-0316,ALUMWELL PLECK SURESTART CHILDRENS CENTRE,Third Party Payments,Grants to Other Orgs,66505-OTHER-GRANTS TO OTHER ORGS,"3,943.30",Revenue,23/09/2014,Childrens
WC48-0317,ALUMWELLIES NURSERY,Third Party Payments,Grants to Other Orgs,66505-OTHER-GRANTS TO OTHER ORGS,"18,484.20",Revenue,29/09/2014,Childrens
WC48-0318,REDACTED,Third Party Payments,Private Contractor Fees,74006-HOLIDAY/CHRISTMAS ALLOWANCE-FOSTER CARERS-OTH AGENCY PROVISION,453.20,Revenue,01/09/2014,Childrens
WC48-0319,REDACTED,Third Party Payments,Private Contractor Fees,74006-HOLIDAY/CHRISTMAS ALLOWANCE-FOSTER CARERS-OTH AGENCY PROVISION,"1,493.76",Revenue,01/09/2014,Childrens
WC48-0320,REDACTED,Supplies & Services,Other Supplies & Services,62515-MISCELLANEOUS SUPPLIES,350.40,Revenue,15/09/2014,Childrens
WC48-0321,REDACTED,Third Party Payments,Private Contractor Fees,74006-HOLIDAY/CHRISTMAS ALLOWANCE-FOSTER CARERS-OTH AGENCY PROVISION,701.65,Revenue,15/09/2014,Childrens
WC48-0322,REDACTED,Transfer Payments,Transfer Payments,76422-DIRECT PAYMENTS TO SOCIAL SERVICES CLIENTS,"3,330.01",Revenue,17/09/2014,Social Care & Inclusion
WC48-0323,REDACTED,Transfer Payments,Transfer Payments,76422-DIRECT PAYMENTS TO SOCIAL SERVICES CLIENTS,818.13,Revenue,17/09/2014,Social Care & Inclusion
WC48-0324,REDACTED,Transfer Payments,Transfer Payments,76422-DIRECT PAYMENTS TO SOCIAL SERVICES CLIENTS,472.81,Revenue,17/09/2014,Childrens
WC48-0325,AMEY LG LIMITED,Third Party Payments,Private Contractor Fees,73025-PROFESSIONAL SERVICES-PRIV CONTRACTOR & OTHER AGENCIES,425.99,Revenue,01/09/2014,Neighbourhood Services
WC48-0326,AMEY LG LIMITED,Supplies & Services,"Equip,Furniture & Materials",60008-MAINTENANCE-FURNITURE & EQUIPMENT,475.40,Revenue,26/09/2014,Social Care & Inclusion
WC48-0327,AMEY LG LIMITED,Third Party Payments,Private Contractor Fees,73025-PROFESSIONAL SERVICES-PRIV CONTRACTOR & OTHER AGENCIES,595.00,Revenue,10/09/2014,Neighbourhood Services
WC48-0328,AMEY LG LIMITED,Capital,Capital,01006-SITE WORKS MAIN CONTRACTORS,654.40,Capital,10/09/2014,Regeneration
WC48-0329,AMEY LG LIMITED,Supplies & Services,Other Supplies & Services,62515-MISCELLANEOUS SUPPLIES,"1,136.36",Revenue,10/09/2014,Neighbourhood Services
WC48-0330,AMEY LG LIMITED,Third Party Payments,Private Contractor Fees,73025-PROFESSIONAL SERVICES-PRIV CONTRACTOR & OTHER AGENCIES,"1,290.00",Revenue,10/09/2014,Social Care & Inclusion
WC48-0331,AMG NURSING CARE SERVICES,Supplies & Services,Services,63000-PROFESSIONAL FEES AND SERVICES,"1,088.88",Revenue,01/09/2014,Childrens
WC48-0332,AMG NURSING CARE SERVICES,Supplies & Services,Services,63000-PROFESSIONAL FEES AND SERVICES,"1,492.24",Revenue,25/09/2014,Childrens
WC48-0333,AMG NURSING CARE SERVICES,Supplies & Services,Services,63000-PROFESSIONAL FEES AND SERVICES,"2,229.76",Revenue,01/09/2014,Childrens
WC48-0334,AMG NURSING CARE SERVICES,Supplies & Services,Services,63000-PROFESSIONAL FEES AND SERVICES,"2,278.40",Revenue,05/09/2014,Childrens
WC48-0335,AMG NURSING CARE SERVICES,Supplies & Services,Services,63000-PROFESSIONAL FEES AND SERVICES,"2,413.20",Revenue,03/09/2014,Childrens
WC48-0336,AMG NURSING CARE SERVICES,Supplies & Services,Services,63000-PROFESSIONAL FEES AND SERVICES,"2,592.72",Revenue,17/09/2014,Childrens
WC48-0337,AMG NURSING CARE SERVICES,Third Party Payments,Private Contractor Fees,73372-DOMICILIARY CARE,"6,733.25",Revenue,12/09/2014,Social Care & Inclusion
WC48-0338,REDACTED,Transfer Payments,Transfer Payments,76422-DIRECT PAYMENTS TO SOCIAL SERVICES CLIENTS,"1,856.75",Revenue,17/09/2014,Social Care & Inclusion
WC48-0339,REDACTED,Transfer Payments,Transfer Payments,76422-DIRECT PAYMENTS TO SOCIAL SERVICES CLIENTS,"1,114.05",Revenue,17/09/2014,Social Care & Inclusion
WC48-0340,REDACTED,Third Party Payments,Private Contractor Fees,74006-HOLIDAY/CHRISTMAS ALLOWANCE-FOSTER CARERS-OTH AGENCY PROVISION,417.56,Revenue,01/09/2014,Childrens
WC48-0341,REDACTED,Transfer Payments,Transfer Payments,76422-DIRECT PAYMENTS TO SOCIAL SERVICES CLIENTS,711.88,Revenue,17/09/2014,Social Care & Inclusion
WC48-0342,REDACTED,Supplies & Services,Other Supplies & Services,62515-MISCELLANEOUS SUPPLIES,914.24,Revenue,15/09/2014,Childrens
WC48-0343,REDACTED,Third Party Payments,Private Contractor Fees,74006-HOLIDAY/CHRISTMAS ALLOWANCE-FOSTER CARERS-OTH AGENCY PROVISION,"1,278.80",Revenue,15/09/2014,Childrens
WC48-0344,REDACTED,Transfer Payments,Transfer Payments,76422-DIRECT PAYMENTS TO SOCIAL SERVICES CLIENTS,472.50,Revenue,17/09/2014,Social Care & Inclusion
WC48-0345,REDACTED,Third Party Payments,Private Contractor Fees,74006-HOLIDAY/CHRISTMAS ALLOWANCE-FOSTER CARERS-OTH AGENCY PROVISION,886.32,Revenue,15/09/2014,Childrens
WC48-0346,REDACTED,Supplies & Services,Other Supplies & Services,62515-MISCELLANEOUS SUPPLIES,896.24,Revenue,15/09/2014,Childrens
WC48-0347,REDACTED,Transfer Payments,Transfer Payments,76422-DIRECT PAYMENTS TO SOCIAL SERVICES CLIENTS,250.00,Revenue,17/09/2014,Social Care & Inclusion
WC48-0348,ANDREWS ELECTRICAL LTD,Capital,Capital,01006-SITE WORKS MAIN CONTRACTORS,"1,685.00",Capital,26/09/2014,Childrens
WC48-0349,ANGEL COURT RESIDENTIAL CARE HOME,Third Party Payments,Private Contractor Fees,73373-RESIDENTIAL & NURSING CARE PLACEMENTS,"1,643.70",Revenue,16/09/2014,Social Care & Inclusion
WC48-0350,ANGEL COURT RESIDENTIAL CARE HOME,Third Party Payments,Private Contractor Fees,73373-RESIDENTIAL & NURSING CARE PLACEMENTS,"1,689.81",Revenue,16/09/2014,Social Care & Inclusion
WC48-0351,ANGEL COURT RESIDENTIAL CARE HOME,Third Party Payments,Private Contractor Fees,73373-RESIDENTIAL & NURSING CARE PLACEMENTS,"1,797.34",Revenue,16/09/2014,Social Care & Inclusion
WC48-0352,REDACTED,Third Party Payments,Private Contractor Fees,74006-HOLIDAY/CHRISTMAS ALLOWANCE-FOSTER CARERS-OTH AGENCY PROVISION,"1,918.20",Revenue,01/09/2014,Childrens
WC48-0353,REDACTED,Transfer Payments,Transfer Payments,76422-DIRECT PAYMENTS TO SOCIAL SERVICES CLIENTS,"2,130.20",Revenue,17/09/2014,Social Care & Inclusion
WC48-0354,REDACTED,Transfer Payments,Transfer Payments,76422-DIRECT PAYMENTS TO SOCIAL SERVICES CLIENTS,300.00,Revenue,17/09/2014,Social Care & Inclusion
WC48-0355,ANGLIA STAIRLIFTS LTD,Capital,Capital,01045-PRIVATE GRANTS,"4,185.00",Capital,11/09/2014,Resources
WC48-0356,ANGLIA STAIRLIFTS LTD,Capital,Capital,01006-SITE WORKS MAIN CONTRACTORS,"4,185.00",Capital,23/09/2014,Resources
WC48-0357,ANGLIA STAIRLIFTS LTD,Capital,Capital,01006-SITE WORKS MAIN CONTRACTORS,"4,205.00",Capital,11/09/2014,Resources
WC48-0358,ANGLIA STAIRLIFTS LTD,Capital,Capital,01045-PRIVATE GRANTS,"4,415.00",Capital,10/09/2014,Resources
WC48-0359,ANGLIA STAIRLIFTS LTD,Capital,Capital,01045-PRIVATE GRANTS,"4,425.00",Capital,23/09/2014,Resources
WC48-0360,ANGLIA STAIRLIFTS LTD,Capital,Capital,01045-PRIVATE GRANTS,"4,915.00",Capital,23/09/2014,Resources
WC48-0361,ANGLIA STAIRLIFTS LTD,Capital,Capital,01045-PRIVATE GRANTS,"5,165.00",Capital,03/09/2014,Resources
WC48-0362,ANGLIA STAIRLIFTS LTD,Capital,Capital,01045-PRIVATE GRANTS,"5,345.00",Capital,10/09/2014,Resources
WC48-0363,ANGLIA STAIRLIFTS LTD,Capital,Capital,01006-SITE WORKS MAIN CONTRACTORS,"5,555.00",Capital,03/09/2014,Resources
WC48-0364,ANGLIA STAIRLIFTS LTD,Capital,Capital,01006-SITE WORKS MAIN CONTRACTORS,"5,680.00",Capital,23/09/2014,Resources
WC48-0365,REDACTED,Supplies & Services,Other Supplies & Services,62515-MISCELLANEOUS SUPPLIES,459.44,Revenue,15/09/2014,Childrens
WC48-0366,REDACTED,Third Party Payments,Private Contractor Fees,74006-HOLIDAY/CHRISTMAS ALLOWANCE-FOSTER CARERS-OTH AGENCY PROVISION,"1,278.80",Revenue,15/09/2014,Childrens
WC48-0367,REDACTED,Transfer Payments,Transfer Payments,76422-DIRECT PAYMENTS TO SOCIAL SERVICES CLIENTS,397.50,Revenue,17/09/2014,Social Care & Inclusion
WC48-0368,REDACTED,Third Party Payments,Private Contractor Fees,73374-SUPPORTED & OTHER ACCOMMODATION,485.21,Revenue,09/09/2014,Social Care & Inclusion
WC48-0369,REDACTED,Transfer Payments,Transfer Payments,76422-DIRECT PAYMENTS TO SOCIAL SERVICES CLIENTS,250.00,Revenue,17/09/2014,Social Care & Inclusion
WC48-0370,REDACTED,Transfer Payments,Transfer Payments,76422-DIRECT PAYMENTS TO SOCIAL SERVICES CLIENTS,782.28,Revenue,17/09/2014,Social Care & Inclusion
WC48-0371,ANSON COURT RESIDENTIAL HOME,Third Party Payments,Private Contractor Fees,73373-RESIDENTIAL & NURSING CARE PLACEMENTS,"1,424.64",Revenue,16/09/2014,Social Care & Inclusion
WC48-0372,ANSON COURT RESIDENTIAL HOME,Third Party Payments,Private Contractor Fees,73373-RESIDENTIAL & NURSING CARE PLACEMENTS,"1,532.52",Revenue,24/09/2014,Social Care & Inclusion
WC48-0373,ANSON COURT RESIDENTIAL HOME,Third Party Payments,Private Contractor Fees,73373-RESIDENTIAL & NURSING CARE PLACEMENTS,"1,534.12",Revenue,24/09/2014,Social Care & Inclusion
WC48-0374,ANSON COURT RESIDENTIAL HOME,Third Party Payments,Private Contractor Fees,73373-RESIDENTIAL & NURSING CARE PLACEMENTS,"1,534.12",Revenue,24/09/2014,Social Care & Inclusion
WC48-0375,ANSON COURT RESIDENTIAL HOME,Third Party Payments,Private Contractor Fees,73373-RESIDENTIAL & NURSING CARE PLACEMENTS,"1,534.12",Revenue,24/09/2014,Social Care & Inclusion
WC48-0376,ANSON COURT RESIDENTIAL HOME,Third Party Payments,Private Contractor Fees,73373-RESIDENTIAL & NURSING CARE PLACEMENTS,"1,534.12",Revenue,24/09/2014,Social Care & Inclusion
WC48-0377,ANSON COURT RESIDENTIAL HOME,Third Party Payments,Private Contractor Fees,73373-RESIDENTIAL & NURSING CARE PLACEMENTS,"1,534.12",Revenue,24/09/2014,Social Care & Inclusion
WC48-0378,ANSON COURT RESIDENTIAL HOME,Third Party Payments,Private Contractor Fees,73373-RESIDENTIAL & NURSING CARE PLACEMENTS,"1,534.12",Revenue,24/09/2014,Social Care & Inclusion
WC48-0379,ANSON COURT RESIDENTIAL HOME,Third Party Payments,Private Contractor Fees,73373-RESIDENTIAL & NURSING CARE PLACEMENTS,"1,534.12",Revenue,24/09/2014,Social Care & Inclusion
WC48-0380,ANSON COURT RESIDENTIAL HOME,Third Party Payments,Private Contractor Fees,73373-RESIDENTIAL & NURSING CARE PLACEMENTS,"1,534.12",Revenue,24/09/2014,Social Care & Inclusion
WC48-0381,ANSON COURT RESIDENTIAL HOME,Third Party Payments,Private Contractor Fees,73373-RESIDENTIAL & NURSING CARE PLACEMENTS,"1,534.12",Revenue,24/09/2014,Social Care & Inclusion
WC48-0382,ANSON COURT RESIDENTIAL HOME,Third Party Payments,Private Contractor Fees,73373-RESIDENTIAL & NURSING CARE PLACEMENTS,"1,534.12",Revenue,24/09/2014,Social Care & Inclusion
WC48-0383,ANSON COURT RESIDENTIAL HOME,Third Party Payments,Private Contractor Fees,73373-RESIDENTIAL & NURSING CARE PLACEMENTS,"1,534.72",Revenue,16/09/2014,Social Care & Inclusion
WC48-0384,ANSON COURT RESIDENTIAL HOME,Third Party Payments,Private Contractor Fees,73373-RESIDENTIAL & NURSING CARE PLACEMENTS,"1,534.72",Revenue,16/09/2014,Social Care & Inclusion
WC48-0385,ANSON COURT RESIDENTIAL HOME,Third Party Payments,Private Contractor Fees,73373-RESIDENTIAL & NURSING CARE PLACEMENTS,"1,534.72",Revenue,24/09/2014,Social Care & Inclusion
WC48-0386,ANSON COURT RESIDENTIAL HOME,Third Party Payments,Private Contractor Fees,73373-RESIDENTIAL & NURSING CARE PLACEMENTS,"1,612.92",Revenue,24/09/2014,Social Care & Inclusion
WC48-0387,ANSON COURT RESIDENTIAL HOME,Third Party Payments,Private Contractor Fees,73373-RESIDENTIAL & NURSING CARE PLACEMENTS,"1,614.12",Revenue,24/09/2014,Social Care & Inclusion
WC48-0388,ANSON COURT RESIDENTIAL HOME,Third Party Payments,Private Contractor Fees,73373-RESIDENTIAL & NURSING CARE PLACEMENTS,"1,614.72",Revenue,24/09/2014,Social Care & Inclusion
WC48-0389,ANSON COURT RESIDENTIAL HOME,Third Party Payments,Private Contractor Fees,73373-RESIDENTIAL & NURSING CARE PLACEMENTS,"1,614.72",Revenue,24/09/2014,Social Care & Inclusion
WC48-0390,ANTALIS DOCUMENT SUPPLIES,Supplies & Services,"Equip,Furniture & Materials",60500-GENERAL MATERIALS,500.00,Revenue,23/09/2014,Resources
WC48-0391,REDACTED,Third Party Payments,Private Contractor Fees,74006-HOLIDAY/CHRISTMAS ALLOWANCE-FOSTER CARERS-OTH AGENCY PROVISION,"1,364.56",Revenue,01/09/2014,Childrens
WC48-0392,REDACTED,Third Party Payments,Private Contractor Fees,74006-HOLIDAY/CHRISTMAS ALLOWANCE-FOSTER CARERS-OTH AGENCY PROVISION,611.32,Revenue,01/09/2014,Childrens
WC48-0393,APCOA PARKING SERVICES (UK) LTD,Third Party Payments,Private Contractor Fees,73025-PROFESSIONAL SERVICES-PRIV CONTRACTOR & OTHER AGENCIES,"43,383.36",Revenue,25/09/2014,Neighbourhood Services
WC48-0394,APNA HOUSE LTD,Third Party Payments,Private Contractor Fees,73373-RESIDENTIAL & NURSING CARE PLACEMENTS,"1,366.00",Revenue,16/09/2014,Social Care & Inclusion
WC48-0395,APNA HOUSE LTD,Third Party Payments,Private Contractor Fees,73373-RESIDENTIAL & NURSING CARE PLACEMENTS,"4,098.00",Revenue,16/09/2014,Social Care & Inclusion
WC48-0396,APNA HOUSE LTD,Third Party Payments,Private Contractor Fees,73373-RESIDENTIAL & NURSING CARE PLACEMENTS,"5,464.00",Revenue,16/09/2014,Social Care & Inclusion
WC48-0397,APNA HOUSE LTD,Third Party Payments,Private Contractor Fees,73373-RESIDENTIAL & NURSING CARE PLACEMENTS,"5,464.00",Revenue,16/09/2014,Social Care & Inclusion
WC48-0398,APNA HOUSE LTD,Third Party Payments,Private Contractor Fees,73373-RESIDENTIAL & NURSING CARE PLACEMENTS,"5,464.00",Revenue,16/09/2014,Social Care & Inclusion
WC48-0399,AQA 001,Supplies & Services,Other Supplies & Services,63013-EXAMINATIONS-SERVICES,873.60,Revenue,02/09/2014,Neighbourhood Services
WC48-0400,ARBORETUM NURSING HOME.,Third Party Payments,Private Contractor Fees,73373-RESIDENTIAL & NURSING CARE PLACEMENTS,897.54,Revenue,09/09/2014,Social Care & Inclusion
WC48-0401,ARBORETUM NURSING HOME.,Third Party Payments,Private Contractor Fees,73373-RESIDENTIAL & NURSING CARE PLACEMENTS,"1,095.30",Revenue,02/09/2014,Social Care & Inclusion
WC48-0402,ARBORETUM NURSING HOME.,Third Party Payments,Private Contractor Fees,73373-RESIDENTIAL & NURSING CARE PLACEMENTS,"1,933.16",Revenue,09/09/2014,Social Care & Inclusion
WC48-0403,ARBORETUM NURSING HOME.,Third Party Payments,Private Contractor Fees,73373-RESIDENTIAL & NURSING CARE PLACEMENTS,"1,933.16",Revenue,09/09/2014,Social Care & Inclusion
WC48-0404,ARBORETUM NURSING HOME.,Third Party Payments,Private Contractor Fees,73373-RESIDENTIAL & NURSING CARE PLACEMENTS,"1,933.16",Revenue,09/09/2014,Social Care & Inclusion
WC48-0405,ARBORETUM NURSING HOME.,Third Party Payments,Private Contractor Fees,73373-RESIDENTIAL & NURSING CARE PLACEMENTS,"1,933.16",Revenue,09/09/2014,Social Care & Inclusion
WC48-0406,ARBORETUM NURSING HOME.,Third Party Payments,Private Contractor Fees,73373-RESIDENTIAL & NURSING CARE PLACEMENTS,"1,933.16",Revenue,09/09/2014,Social Care & Inclusion
WC48-0407,ARBORETUM NURSING HOME.,Third Party Payments,Private Contractor Fees,73373-RESIDENTIAL & NURSING CARE PLACEMENTS,"1,933.16",Revenue,09/09/2014,Social Care & Inclusion
WC48-0408,ARBORETUM NURSING HOME.,Third Party Payments,Private Contractor Fees,73373-RESIDENTIAL & NURSING CARE PLACEMENTS,"1,933.16",Revenue,09/09/2014,Social Care & Inclusion
WC48-0409,ARBORETUM NURSING HOME.,Third Party Payments,Private Contractor Fees,73373-RESIDENTIAL & NURSING CARE PLACEMENTS,"1,933.16",Revenue,09/09/2014,Social Care & Inclusion
WC48-0410,ARBORETUM NURSING HOME.,Third Party Payments,Private Contractor Fees,73373-RESIDENTIAL & NURSING CARE PLACEMENTS,"1,933.16",Revenue,09/09/2014,Social Care & Inclusion
WC48-0411,ARBORETUM NURSING HOME.,Third Party Payments,Private Contractor Fees,73373-RESIDENTIAL & NURSING CARE PLACEMENTS,"1,978.20",Revenue,09/09/2014,Social Care & Inclusion
WC48-0412,ARBORETUM NURSING HOME.,Third Party Payments,Private Contractor Fees,73373-RESIDENTIAL & NURSING CARE PLACEMENTS,"1,990.76",Revenue,09/09/2014,Social Care & Inclusion
WC48-0413,ARBORETUM NURSING HOME.,Third Party Payments,Private Contractor Fees,73373-RESIDENTIAL & NURSING CARE PLACEMENTS,"1,990.76",Revenue,09/09/2014,Social Care & Inclusion
WC48-0414,ARBORETUM NURSING HOME.,Third Party Payments,Private Contractor Fees,73373-RESIDENTIAL & NURSING CARE PLACEMENTS,"1,990.76",Revenue,09/09/2014,Social Care & Inclusion
WC48-0415,ARBORETUM NURSING HOME.,Third Party Payments,Private Contractor Fees,73373-RESIDENTIAL & NURSING CARE PLACEMENTS,"1,990.76",Revenue,09/09/2014,Social Care & Inclusion
WC48-0416,ARBORETUM NURSING HOME.,Third Party Payments,Private Contractor Fees,73373-RESIDENTIAL & NURSING CARE PLACEMENTS,"2,416.45",Revenue,09/09/2014,Social Care & Inclusion
WC48-0417,ARCANE DIRECT MARKETING,Supplies & Services,Other Supplies & Services,62511-DISTRIBUTION,616.44,Revenue,02/09/2014,Neighbourhood Services
WC48-0418,ARCANE DIRECT MARKETING,Supplies & Services,"Printing, Stationery & Office Exp",62009-OUTWORK-DESIGN,"1,091.94",Revenue,01/09/2014,Neighbourhood Services
WC48-0419,ARCHWAY TCS LTD,Third Party Payments,Private Contractor Fees,73025-PROFESSIONAL SERVICES-PRIV CONTRACTOR & OTHER AGENCIES,647.96,Revenue,10/09/2014,Neighbourhood Services
WC48-0420,ARCHWAY TCS LTD,Supplies & Services,"Equip,Furniture & Materials",60537-VEHICLE WASH PLANT-MATERIALS,"1,047.50",Revenue,10/09/2014,Neighbourhood Services
WC48-0421,ARJOHUNTLEIGH UK,Supplies & Services,"Equip,Furniture & Materials",60008-MAINTENANCE-FURNITURE & EQUIPMENT,296.00,Revenue,01/09/2014,Neighbourhood Services
WC48-0422,ARTAV LIMITED,Supplies & Services,Services,63000-PROFESSIONAL FEES AND SERVICES,900.00,Revenue,15/09/2014,Neighbourhood Services
WC48-0423,ARTAV LIMITED,Supplies & Services,"Equip,Furniture & Materials",60009-LEASING/HIRE/RENTAL-EQUIPMENT,"8,200.00",Revenue,15/09/2014,Neighbourhood Services
WC48-0424,REDACTED,Transfer Payments,Transfer Payments,76422-DIRECT PAYMENTS TO SOCIAL SERVICES CLIENTS,"1,360.00",Revenue,17/09/2014,Social Care & Inclusion
WC48-0425,ASCO EDUCATIONAL SUPPLIES LTD,Supplies & Services,"Equip,Furniture & Materials",60500-GENERAL MATERIALS,703.69,Revenue,25/09/2014,Childrens
WC48-0426,ASCO EDUCATIONAL SUPPLIES LTD,Supplies & Services,"Equip,Furniture & Materials",60500-GENERAL MATERIALS,"1,304.90",Revenue,25/09/2014,Childrens
WC48-0427,ASDA PHARMACY,Supplies & Services,Services,63102-CONSULTANTS FEES - CORPORATE,404.80,Revenue,22/09/2014,Neighbourhood Services
WC48-0428,ASDA PHARMACY,Supplies & Services,Services,63102-CONSULTANTS FEES - CORPORATE,"1,051.80",Revenue,02/09/2014,Neighbourhood Services
WC48-0429,ASDA PHARMACY,Supplies & Services,Services,63102-CONSULTANTS FEES - CORPORATE,"2,025.95",Revenue,02/09/2014,Neighbourhood Services
WC48-0430,ASH GRANGE CARE HOME,Third Party Payments,Private Contractor Fees,73373-RESIDENTIAL & NURSING CARE PLACEMENTS,"-5,385.23",Revenue,24/09/2014,Social Care & Inclusion
WC48-0431,ASH GRANGE CARE HOME,Third Party Payments,Private Contractor Fees,73373-RESIDENTIAL & NURSING CARE PLACEMENTS,"-1,549.49",Revenue,24/09/2014,Social Care & Inclusion
WC48-0432,ASH GRANGE CARE HOME,Third Party Payments,Private Contractor Fees,73373-RESIDENTIAL & NURSING CARE PLACEMENTS,"-1,242.75",Revenue,09/09/2014,Social Care & Inclusion
WC48-0433,ASH GRANGE CARE HOME,Third Party Payments,Private Contractor Fees,73373-RESIDENTIAL & NURSING CARE PLACEMENTS,-414.25,Revenue,24/09/2014,Social Care & Inclusion
WC48-0434,ASH GRANGE CARE HOME,Third Party Payments,Private Contractor Fees,73373-RESIDENTIAL & NURSING CARE PLACEMENTS,365.10,Revenue,24/09/2014,Social Care & Inclusion
WC48-0435,ASH GRANGE CARE HOME,Third Party Payments,Private Contractor Fees,73373-RESIDENTIAL & NURSING CARE PLACEMENTS,414.25,Revenue,24/09/2014,Social Care & Inclusion
WC48-0436,ASH GRANGE CARE HOME,Third Party Payments,Private Contractor Fees,73373-RESIDENTIAL & NURSING CARE PLACEMENTS,484.39,Revenue,09/09/2014,Social Care & Inclusion
WC48-0437,ASH GRANGE CARE HOME,Third Party Payments,Private Contractor Fees,73373-RESIDENTIAL & NURSING CARE PLACEMENTS,"1,227.60",Revenue,16/09/2014,Social Care & Inclusion
WC48-0438,ASH GRANGE CARE HOME,Third Party Payments,Private Contractor Fees,73373-RESIDENTIAL & NURSING CARE PLACEMENTS,"1,257.84",Revenue,02/09/2014,Social Care & Inclusion
WC48-0439,ASH GRANGE CARE HOME,Third Party Payments,Private Contractor Fees,73373-RESIDENTIAL & NURSING CARE PLACEMENTS,"1,460.40",Revenue,16/09/2014,Social Care & Inclusion
WC48-0440,ASH GRANGE CARE HOME,Third Party Payments,Private Contractor Fees,73373-RESIDENTIAL & NURSING CARE PLACEMENTS,"1,460.40",Revenue,16/09/2014,Social Care & Inclusion
WC48-0441,ASH GRANGE CARE HOME,Third Party Payments,Private Contractor Fees,73373-RESIDENTIAL & NURSING CARE PLACEMENTS,"1,512.56",Revenue,16/09/2014,Social Care & Inclusion
WC48-0442,ASH GRANGE CARE HOME,Third Party Payments,Private Contractor Fees,73373-RESIDENTIAL & NURSING CARE PLACEMENTS,"1,587.95",Revenue,09/09/2014,Social Care & Inclusion
WC48-0443,ASH GRANGE CARE HOME,Third Party Payments,Private Contractor Fees,73373-RESIDENTIAL & NURSING CARE PLACEMENTS,"1,636.80",Revenue,16/09/2014,Social Care & Inclusion
WC48-0444,ASH GRANGE CARE HOME,Third Party Payments,Private Contractor Fees,73373-RESIDENTIAL & NURSING CARE PLACEMENTS,"1,937.56",Revenue,16/09/2014,Social Care & Inclusion
WC48-0445,ASH GRANGE CARE HOME,Third Party Payments,Private Contractor Fees,73373-RESIDENTIAL & NURSING CARE PLACEMENTS,"1,937.56",Revenue,16/09/2014,Social Care & Inclusion
WC48-0446,ASH GRANGE CARE HOME,Third Party Payments,Private Contractor Fees,73373-RESIDENTIAL & NURSING CARE PLACEMENTS,"1,937.56",Revenue,16/09/2014,Social Care & Inclusion
WC48-0447,ASH GRANGE CARE HOME,Third Party Payments,Private Contractor Fees,73373-RESIDENTIAL & NURSING CARE PLACEMENTS,"1,937.56",Revenue,16/09/2014,Social Care & Inclusion
WC48-0448,ASH GRANGE CARE HOME,Third Party Payments,Private Contractor Fees,73373-RESIDENTIAL & NURSING CARE PLACEMENTS,"1,937.56",Revenue,16/09/2014,Social Care & Inclusion
WC48-0449,ASH GRANGE CARE HOME,Third Party Payments,Private Contractor Fees,73373-RESIDENTIAL & NURSING CARE PLACEMENTS,"1,937.56",Revenue,16/09/2014,Social Care & Inclusion
WC48-0450,ASH GRANGE CARE HOME,Third Party Payments,Private Contractor Fees,73373-RESIDENTIAL & NURSING CARE PLACEMENTS,"1,937.56",Revenue,16/09/2014,Social Care & Inclusion
WC48-0451,ASH GRANGE CARE HOME,Third Party Payments,Private Contractor Fees,73373-RESIDENTIAL & NURSING CARE PLACEMENTS,"1,937.56",Revenue,16/09/2014,Social Care & Inclusion
WC48-0452,ASH GRANGE CARE HOME,Third Party Payments,Private Contractor Fees,73373-RESIDENTIAL & NURSING CARE PLACEMENTS,"1,937.56",Revenue,16/09/2014,Social Care & Inclusion
WC48-0453,ASH GRANGE CARE HOME,Third Party Payments,Private Contractor Fees,73373-RESIDENTIAL & NURSING CARE PLACEMENTS,"1,937.92",Revenue,16/09/2014,Social Care & Inclusion
WC48-0454,ASH GRANGE CARE HOME,Third Party Payments,Private Contractor Fees,73373-RESIDENTIAL & NURSING CARE PLACEMENTS,"2,012.64",Revenue,09/09/2014,Social Care & Inclusion
WC48-0455,ASH GRANGE CARE HOME,Third Party Payments,Private Contractor Fees,73373-RESIDENTIAL & NURSING CARE PLACEMENTS,"2,012.64",Revenue,16/09/2014,Social Care & Inclusion
WC48-0456,ASH GRANGE CARE HOME,Third Party Payments,Private Contractor Fees,73373-RESIDENTIAL & NURSING CARE PLACEMENTS,"2,012.64",Revenue,16/09/2014,Social Care & Inclusion
WC48-0457,ASH GRANGE CARE HOME,Third Party Payments,Private Contractor Fees,73373-RESIDENTIAL & NURSING CARE PLACEMENTS,"2,070.60",Revenue,16/09/2014,Social Care & Inclusion
WC48-0458,ASH GRANGE CARE HOME,Third Party Payments,Private Contractor Fees,73373-RESIDENTIAL & NURSING CARE PLACEMENTS,"2,145.15",Revenue,16/09/2014,Social Care & Inclusion
WC48-0459,ASH GRANGE CARE HOME,Third Party Payments,Private Contractor Fees,73373-RESIDENTIAL & NURSING CARE PLACEMENTS,"2,864.40",Revenue,16/09/2014,Social Care & Inclusion
WC48-0460,ASH GRANGE CARE HOME,Third Party Payments,Private Contractor Fees,73373-RESIDENTIAL & NURSING CARE PLACEMENTS,"2,864.40",Revenue,16/09/2014,Social Care & Inclusion
WC48-0461,ASH GRANGE CARE HOME,Third Party Payments,Private Contractor Fees,73373-RESIDENTIAL & NURSING CARE PLACEMENTS,"7,339.45",Revenue,24/09/2014,Social Care & Inclusion
WC48-0462,ASKEWS AND HOLTS LIBRARY SERVICES LTD,Supplies & Services,"Equip,Furniture & Materials",60501-LIBRARY BOOKS,256.14,Revenue,05/09/2014,Neighbourhood Services
WC48-0463,ASKEWS AND HOLTS LIBRARY SERVICES LTD,Supplies & Services,"Equip,Furniture & Materials",60501-LIBRARY BOOKS,275.53,Revenue,05/09/2014,Neighbourhood Services
WC48-0464,ASKEWS AND HOLTS LIBRARY SERVICES LTD,Supplies & Services,"Equip,Furniture & Materials",60501-LIBRARY BOOKS,283.69,Revenue,08/09/2014,Neighbourhood Services
WC48-0465,ASKEWS AND HOLTS LIBRARY SERVICES LTD,Supplies & Services,"Equip,Furniture & Materials",60501-LIBRARY BOOKS,292.31,Revenue,16/09/2014,Neighbourhood Services
WC48-0466,ASKEWS AND HOLTS LIBRARY SERVICES LTD,Supplies & Services,"Equip,Furniture & Materials",60501-LIBRARY BOOKS,298.83,Revenue,25/09/2014,Neighbourhood Services
WC48-0467,ASKEWS AND HOLTS LIBRARY SERVICES LTD,Supplies & Services,"Equip,Furniture & Materials",60501-LIBRARY BOOKS,415.39,Revenue,05/09/2014,Neighbourhood Services
WC48-0468,ASKEWS AND HOLTS LIBRARY SERVICES LTD,Supplies & Services,"Equip,Furniture & Materials",60501-LIBRARY BOOKS,453.52,Revenue,18/09/2014,Neighbourhood Services
WC48-0469,ASKEWS AND HOLTS LIBRARY SERVICES LTD,Supplies & Services,"Equip,Furniture & Materials",60501-LIBRARY BOOKS,474.76,Revenue,18/09/2014,Neighbourhood Services
WC48-0470,ASKEWS AND HOLTS LIBRARY SERVICES LTD,Supplies & Services,"Equip,Furniture & Materials",60501-LIBRARY BOOKS,511.65,Revenue,22/09/2014,Neighbourhood Services
WC48-0471,ASKEWS AND HOLTS LIBRARY SERVICES LTD,Supplies & Services,"Equip,Furniture & Materials",60501-LIBRARY BOOKS,582.98,Revenue,18/09/2014,Neighbourhood Services
WC48-0472,ASKEWS AND HOLTS LIBRARY SERVICES LTD,Supplies & Services,"Equip,Furniture & Materials",60501-LIBRARY BOOKS,663.39,Revenue,09/09/2014,Neighbourhood Services
WC48-0473,ASKEWS AND HOLTS LIBRARY SERVICES LTD,Supplies & Services,"Equip,Furniture & Materials",60501-LIBRARY BOOKS,691.20,Revenue,05/09/2014,Neighbourhood Services
WC48-0474,ASKEWS AND HOLTS LIBRARY SERVICES LTD,Supplies & Services,"Equip,Furniture & Materials",60501-LIBRARY BOOKS,830.95,Revenue,09/09/2014,Neighbourhood Services
WC48-0475,ASKEWS AND HOLTS LIBRARY SERVICES LTD,Supplies & Services,"Equip,Furniture & Materials",60501-LIBRARY BOOKS,"1,151.15",Revenue,25/09/2014,Neighbourhood Services
WC48-0476,REDACTED,Transfer Payments,Transfer Payments,76422-DIRECT PAYMENTS TO SOCIAL SERVICES CLIENTS,616.25,Revenue,17/09/2014,Social Care & Inclusion
WC48-0477,ASSOCIATION OF ACCOUNTING TECHNICIANS.,Supplies & Services,Other Supplies & Services,63013-EXAMINATIONS-SERVICES,369.00,Revenue,24/09/2014,Neighbourhood Services
WC48-0478,ASSOCIATION OF COLLEGES,Employees,Training,30030-EXTERNAL TRAINING,346.50,Revenue,24/09/2014,Neighbourhood Services
WC48-0479,ASSOCIATION OF LOCAL GOVERNMENT COMMUNICATIONS,Supplies & Services,Subscriptions,64500-PUBLICATIONS/ORGANISATIONS-SUBSCRIPTIONS,250.00,Revenue,15/09/2014,Resources
WC48-0480,A-STAT OFFICE TECHNOLOGY LTD,Supplies & Services,"Equip,Furniture & Materials",60009-LEASING/HIRE/RENTAL-EQUIPMENT,301.58,Revenue,15/09/2014,Childrens
WC48-0481,ATHWAL NEWS LTD,Supplies & Services,"Equip,Furniture & Materials",60501-LIBRARY BOOKS,513.01,Revenue,19/09/2014,Neighbourhood Services
WC48-0482,ATHWAL NEWS LTD,Supplies & Services,"Equip,Furniture & Materials",60501-LIBRARY BOOKS,536.58,Revenue,05/09/2014,Neighbourhood Services
WC48-0483,ATKINS HIGHWAYS & TRANSPORTATION,Supplies & Services,Communications & Computing,63800-COMPUTER EQUIPMENT AND SUPPLIES,"2,155.90",Revenue,12/09/2014,Regeneration
WC48-0484,AURORAS CARNIVAL,Employees,Other Staff Costs,32000-MISC FEES AND EXPENSES,254.00,Revenue,11/09/2014,Neighbourhood Services
WC48-0485,AUTISM WEST MIDLANDS,Third Party Payments,Private Contractor Fees,73373-RESIDENTIAL & NURSING CARE PLACEMENTS,"7,314.45",Revenue,02/09/2014,Social Care & Inclusion
WC48-0486,AUTISM WEST MIDLANDS 001,Third Party Payments,Private Contractor Fees,73373-RESIDENTIAL & NURSING CARE PLACEMENTS,"4,924.75",Revenue,02/09/2014,Social Care & Inclusion
WC48-0487,AXIELL LIMITED,Capital,Capital,01024-COMPUTER NETWORKING,345.00,Capital,18/09/2014,Neighbourhood Services
WC48-0488,AXMINSTER POWER TOOL CENTRE,Supplies & Services,"Equip,Furniture & Materials",60512-LOOSE TOOLS & CONSUMABLES,94.81,Revenue,03/09/2014,Neighbourhood Services
WC48-0489,AXMINSTER POWER TOOL CENTRE,Supplies & Services,Other Supplies & Services,64004-HEALTH AND SAFETY-EXPENSES,94.90,Revenue,03/09/2014,Neighbourhood Services
WC48-0490,AXMINSTER POWER TOOL CENTRE,Supplies & Services,"Equip,Furniture & Materials",60000-FURNITURE & EQUIPMENT,391.62,Revenue,03/09/2014,Neighbourhood Services
WC48-0491,REDACTED,Transfer Payments,Transfer Payments,76422-DIRECT PAYMENTS TO SOCIAL SERVICES CLIENTS,"2,530.00",Revenue,17/09/2014,Childrens
WC48-0492,REDACTED,Transfer Payments,Transfer Payments,76422-DIRECT PAYMENTS TO SOCIAL SERVICES CLIENTS,"3,315.00",Revenue,17/09/2014,Social Care & Inclusion
WC48-0493,REDACTED,Transfer Payments,Transfer Payments,76422-DIRECT PAYMENTS TO SOCIAL SERVICES CLIENTS,300.00,Revenue,17/09/2014,Social Care & Inclusion
WC48-0494,AZWOO LIMITED,Supplies & Services,Services,63000-PROFESSIONAL FEES AND SERVICES,750.00,Revenue,05/09/2014,Childrens
WC48-0495,REDACTED,Third Party Payments,Private Contractor Fees,74006-HOLIDAY/CHRISTMAS ALLOWANCE-FOSTER CARERS-OTH AGENCY PROVISION,852.86,Revenue,15/09/2014,Childrens
WC48-0496,REDACTED,Supplies & Services,Other Supplies & Services,62515-MISCELLANEOUS SUPPLIES,896.24,Revenue,15/09/2014,Childrens
WC48-0497,REDACTED,Supplies & Services,Other Supplies & Services,62515-MISCELLANEOUS SUPPLIES,"1,428.44",Revenue,15/09/2014,Childrens
WC48-0498,REDACTED,Third Party Payments,Private Contractor Fees,74006-HOLIDAY/CHRISTMAS ALLOWANCE-FOSTER CARERS-OTH AGENCY PROVISION,"2,646.48",Revenue,15/09/2014,Childrens
WC48-0499,B&Q WAREHOUSE PLC,Supplies & Services,"Equip,Furniture & Materials",60500-GENERAL MATERIALS,352.50,Revenue,26/09/2014,Neighbourhood Services
WC48-0500,BAAF,Supplies & Services,Communications & Computing,68001-PUBLICITY & ADVERTISING (NOT STAFF ADVERTISING),455.70,Revenue,23/09/2014,Childrens
WC48-0501,BAAF,Supplies & Services,Communications & Computing,68001-PUBLICITY & ADVERTISING (NOT STAFF ADVERTISING),568.05,Revenue,02/09/2014,Childrens
WC48-0502,REDACTED,Transfer Payments,Transfer Payments,76422-DIRECT PAYMENTS TO SOCIAL SERVICES CLIENTS,"1,079.00",Revenue,17/09/2014,Social Care & Inclusion
WC48-0503,BACK CARE SOLUTIONS LTD,Supplies & Services,"Equip,Furniture & Materials",60006-NEW-FURNITURE & EQUIPMENT,450.00,Revenue,26/09/2014,Regeneration
WC48-0504,BACK CARE SOLUTIONS LTD,Supplies & Services,"Equip,Furniture & Materials",60006-NEW-FURNITURE & EQUIPMENT,521.00,Revenue,10/09/2014,Social Care & Inclusion
WC48-0505,BACK CARE SOLUTIONS LTD,Supplies & Services,"Equip,Furniture & Materials",60009-LEASING/HIRE/RENTAL-EQUIPMENT,660.95,Revenue,24/09/2014,Social Care & Inclusion
WC48-0506,BAKER HALL PARTNERSHIP,Supplies & Services,Services,63248-SURVEYS & PROF SERVICES-PAYMENT TO CONTRACTOR,903.75,Revenue,09/09/2014,Regeneration
WC48-0507,BAKER HALL PARTNERSHIP,Supplies & Services,Services,63248-SURVEYS & PROF SERVICES-PAYMENT TO CONTRACTOR,"1,977.92",Revenue,23/09/2014,Regeneration
WC48-0508,BAKER SMALL SOLICITORS,Third Party Payments,Grants to Other Orgs,66502-TOP UP FUNDING -GRANTS TO SCHOOLS,"3,500.00",Revenue,26/09/2014,Childrens
WC48-0509,REDACTED,Transfer Payments,Transfer Payments,76422-DIRECT PAYMENTS TO SOCIAL SERVICES CLIENTS,"3,562.40",Revenue,17/09/2014,Social Care & Inclusion
WC48-0510,BALTIMORE AIRCOIL INTERNATIONAL NV,Premises,Premises-Repairs & Maintenance,"40000-REPAIRS,ALTERATIONS & MAINTENANCE-PREM",650.00,Revenue,05/09/2014,Regeneration
WC48-0511,REDACTED,Transfer Payments,Transfer Payments,76422-DIRECT PAYMENTS TO SOCIAL SERVICES CLIENTS,775.00,Revenue,17/09/2014,Social Care & Inclusion
WC48-0512,REDACTED,Transfer Payments,Transfer Payments,76422-DIRECT PAYMENTS TO SOCIAL SERVICES CLIENTS,"1,425.05",Revenue,17/09/2014,Social Care & Inclusion
WC48-0513,REDACTED,Transfer Payments,Transfer Payments,76422-DIRECT PAYMENTS TO SOCIAL SERVICES CLIENTS,562.82,Revenue,17/09/2014,Social Care & Inclusion
WC48-0514,REDACTED,Transfer Payments,Transfer Payments,76422-DIRECT PAYMENTS TO SOCIAL SERVICES CLIENTS,"1,643.60",Revenue,17/09/2014,Social Care & Inclusion
WC48-0515,REDACTED,Transfer Payments,Transfer Payments,76422-DIRECT PAYMENTS TO SOCIAL SERVICES CLIENTS,"1,600.00",Revenue,17/09/2014,Social Care & Inclusion
WC48-0516,REDACTED,Transfer Payments,Transfer Payments,76422-DIRECT PAYMENTS TO SOCIAL SERVICES CLIENTS,897.50,Revenue,17/09/2014,Social Care & Inclusion
WC48-0517,REDACTED,Transfer Payments,Transfer Payments,76422-DIRECT PAYMENTS TO SOCIAL SERVICES CLIENTS,790.65,Revenue,17/09/2014,Social Care & Inclusion
WC48-0518,REDACTED,Transfer Payments,Transfer Payments,76422-DIRECT PAYMENTS TO SOCIAL SERVICES CLIENTS,863.20,Revenue,17/09/2014,Social Care & Inclusion
WC48-0519,BARCHESTER HEALTHCARE#1,Third Party Payments,Private Contractor Fees,73373-RESIDENTIAL & NURSING CARE PLACEMENTS,"1,858.33",Revenue,16/09/2014,Social Care & Inclusion
WC48-0520,BARNARDOS SERVICES LTD,Third Party Payments,Private Contractor Fees,74037-INDEPENDENT FOSTER CARE-OTH AGENCY PROVISION,"4,478.57",Revenue,18/09/2014,Childrens
WC48-0521,BARONS COURT HOTEL,Premises,Premises-Repairs & Maintenance,"40000-REPAIRS,ALTERATIONS & MAINTENANCE-PREM",367.90,Revenue,19/09/2014,Resources
WC48-0522,BARONS COURT HOTEL,Third Party Payments,Private Contractor Fees,75501-BED & BREAKFAST PAYMENTS,571.67,Revenue,19/09/2014,Resources
WC48-0523,BARONS COURT HOTEL,Third Party Payments,Private Contractor Fees,73374-SUPPORTED & OTHER ACCOMMODATION,980.00,Revenue,16/09/2014,Childrens
WC48-0524,BARONS COURT HOTEL,Third Party Payments,Private Contractor Fees,73374-SUPPORTED & OTHER ACCOMMODATION,"1,306.67",Revenue,16/09/2014,Childrens
WC48-0525,BARONS COURT HOTEL,Third Party Payments,Private Contractor Fees,73374-SUPPORTED & OTHER ACCOMMODATION,"1,306.67",Revenue,16/09/2014,Childrens
WC48-0526,BARONS COURT HOTEL,Third Party Payments,Private Contractor Fees,73374-SUPPORTED & OTHER ACCOMMODATION,"1,306.67",Revenue,29/09/2014,Childrens
WC48-0527,BARONS COURT HOTEL,Third Party Payments,Private Contractor Fees,73374-SUPPORTED & OTHER ACCOMMODATION,"1,586.67",Revenue,29/09/2014,Childrens
WC48-0528,BARONS COURT HOTEL,Third Party Payments,Private Contractor Fees,73374-SUPPORTED & OTHER ACCOMMODATION,"2,677.50",Revenue,29/09/2014,Childrens
WC48-0529,BARONS COURT HOTEL,Third Party Payments,Private Contractor Fees,73374-SUPPORTED & OTHER ACCOMMODATION,"3,126.67",Revenue,29/09/2014,Childrens
WC48-0530,BARR BEACON SCHOOL TRUST,Third Party Payments,Grants to Other Orgs,66502-TOP UP FUNDING -GRANTS TO SCHOOLS,"3,669.21",Revenue,08/09/2014,Childrens
WC48-0531,BEACON PHARMACY,Supplies & Services,Services,63102-CONSULTANTS FEES - CORPORATE,"1,438.25",Revenue,02/09/2014,Neighbourhood Services
WC48-0532,BEADEN POWERLEC LIMITED,Premises,Premises-Repairs & Maintenance,"40000-REPAIRS,ALTERATIONS & MAINTENANCE-PREM",250.00,Revenue,02/09/2014,Regeneration
WC48-0533,BEADEN POWERLEC LIMITED,Premises,Premises-Repairs & Maintenance,40413-NON PMI MTCE,620.00,Revenue,18/09/2014,Neighbourhood Services
WC48-0534,BEADEN POWERLEC LIMITED,Premises,Premises-Repairs & Maintenance,"40000-REPAIRS,ALTERATIONS & MAINTENANCE-PREM","2,650.00",Revenue,08/09/2014,Regeneration
WC48-0535,BEADEN POWERLEC LIMITED,Capital,Capital,01006-SITE WORKS MAIN CONTRACTORS,"8,441.00",Capital,16/09/2014,Childrens
WC48-0536,BEADEN POWERLEC LIMITED,Capital,Capital,01006-SITE WORKS MAIN CONTRACTORS,"105,230.95",Capital,01/09/2014,Childrens
WC48-0537,REDACTED,Supplies & Services,Other Supplies & Services,62515-MISCELLANEOUS SUPPLIES,"1,302.01",Revenue,15/09/2014,Childrens
WC48-0538,REDACTED,Third Party Payments,Private Contractor Fees,74006-HOLIDAY/CHRISTMAS ALLOWANCE-FOSTER CARERS-OTH AGENCY PROVISION,"3,332.77",Revenue,15/09/2014,Childrens
WC48-0539,REDACTED,Transfer Payments,Transfer Payments,76422-DIRECT PAYMENTS TO SOCIAL SERVICES CLIENTS,802.20,Revenue,17/09/2014,Social Care & Inclusion
WC48-0540,REDACTED,Third Party Payments,Private Contractor Fees,74006-HOLIDAY/CHRISTMAS ALLOWANCE-FOSTER CARERS-OTH AGENCY PROVISION,300.71,Revenue,15/09/2014,Childrens
WC48-0541,REDACTED,Supplies & Services,Other Supplies & Services,62515-MISCELLANEOUS SUPPLIES,788.06,Revenue,15/09/2014,Childrens
WC48-0542,BELLEVUE COURT CARE HOME,Third Party Payments,Private Contractor Fees,73373-RESIDENTIAL & NURSING CARE PLACEMENTS,"1,486.96",Revenue,16/09/2014,Social Care & Inclusion
WC48-0543,BELLEVUE COURT CARE HOME,Third Party Payments,Private Contractor Fees,73373-RESIDENTIAL & NURSING CARE PLACEMENTS,"1,494.00",Revenue,16/09/2014,Social Care & Inclusion
WC48-0544,BELLEVUE COURT CARE HOME,Third Party Payments,Private Contractor Fees,73373-RESIDENTIAL & NURSING CARE PLACEMENTS,"1,494.00",Revenue,24/09/2014,Social Care & Inclusion
WC48-0545,BELLEVUE COURT CARE HOME,Third Party Payments,Private Contractor Fees,73373-RESIDENTIAL & NURSING CARE PLACEMENTS,"1,530.16",Revenue,16/09/2014,Social Care & Inclusion
WC48-0546,REDACTED,Transfer Payments,Transfer Payments,76422-DIRECT PAYMENTS TO SOCIAL SERVICES CLIENTS,"2,756.25",Revenue,17/09/2014,Social Care & Inclusion
WC48-0547,REDACTED,Supplies & Services,Services,63000-PROFESSIONAL FEES AND SERVICES,351.00,Revenue,12/09/2014,Neighbourhood Services
WC48-0548,BENNIMAN CONSTRUCTION GROUP,Premises,Premises-Repairs & Maintenance,"40000-REPAIRS,ALTERATIONS & MAINTENANCE-PREM","8,742.26",Revenue,01/09/2014,Regeneration
WC48-0549,BENTLEY COURT PRIORY,Third Party Payments,Private Contractor Fees,73373-RESIDENTIAL & NURSING CARE PLACEMENTS,960.43,Revenue,09/09/2014,Social Care & Inclusion
WC48-0550,BENTLEY COURT PRIORY,Third Party Payments,Private Contractor Fees,73373-RESIDENTIAL & NURSING CARE PLACEMENTS,"1,600.71",Revenue,09/09/2014,Social Care & Inclusion
WC48-0551,BENTLEY COURT PRIORY,Third Party Payments,Private Contractor Fees,73373-RESIDENTIAL & NURSING CARE PLACEMENTS,"1,654.07",Revenue,09/09/2014,Social Care & Inclusion
WC48-0552,BENTLEY COURT PRIORY,Third Party Payments,Private Contractor Fees,73373-RESIDENTIAL & NURSING CARE PLACEMENTS,"2,140.29",Revenue,09/09/2014,Social Care & Inclusion
WC48-0553,BENTLEY WEST CHILDRENS CENTRE,Supplies & Services,Communications & Computing,63604-TELEPHONES MOBILE/PAGERS-TELEPHONES,606.85,Revenue,11/09/2014,Childrens
WC48-0554,BENTLEY WEST CHILDRENS CENTRE,Third Party Payments,Grants to Other Orgs,66505-OTHER-GRANTS TO OTHER ORGS,"38,467.67",Revenue,29/09/2014,Childrens
WC48-0555,REDACTED,Transfer Payments,Transfer Payments,76422-DIRECT PAYMENTS TO SOCIAL SERVICES CLIENTS,530.70,Revenue,17/09/2014,Social Care & Inclusion
WC48-0556,BERTRAM TRADING LTD T/A BERTRAM LIBRARY SERVICES),Supplies & Services,"Equip,Furniture & Materials",60501-LIBRARY BOOKS,256.76,Revenue,24/09/2014,Neighbourhood Services
WC48-0557,REDACTED,Transfer Payments,Transfer Payments,76422-DIRECT PAYMENTS TO SOCIAL SERVICES CLIENTS,"1,140.00",Revenue,17/09/2014,Social Care & Inclusion
WC48-0558,REDACTED,Supplies & Services,Other Supplies & Services,62515-MISCELLANEOUS SUPPLIES,"1,756.35",Revenue,15/09/2014,Childrens
WC48-0559,REDACTED,Third Party Payments,Private Contractor Fees,74006-HOLIDAY/CHRISTMAS ALLOWANCE-FOSTER CARERS-OTH AGENCY PROVISION,"1,921.89",Revenue,15/09/2014,Childrens
WC48-0560,REDACTED,Transfer Payments,Transfer Payments,76422-DIRECT PAYMENTS TO SOCIAL SERVICES CLIENTS,"1,666.00",Revenue,17/09/2014,Social Care & Inclusion
WC48-0561,BESCOT LODGE,Third Party Payments,Private Contractor Fees,73373-RESIDENTIAL & NURSING CARE PLACEMENTS,602.69,Revenue,09/09/2014,Social Care & Inclusion
WC48-0562,BESCOT LODGE,Third Party Payments,Private Contractor Fees,73373-RESIDENTIAL & NURSING CARE PLACEMENTS,"1,147.46",Revenue,24/09/2014,Social Care & Inclusion
WC48-0563,BESCOT LODGE,Third Party Payments,Private Contractor Fees,73373-RESIDENTIAL & NURSING CARE PLACEMENTS,"1,564.71",Revenue,16/09/2014,Social Care & Inclusion
WC48-0564,BESCOT LODGE,Third Party Payments,Private Contractor Fees,73373-RESIDENTIAL & NURSING CARE PLACEMENTS,"1,564.71",Revenue,24/09/2014,Social Care & Inclusion
WC48-0565,BESCOT LODGE,Third Party Payments,Private Contractor Fees,73373-RESIDENTIAL & NURSING CARE PLACEMENTS,"1,564.71",Revenue,24/09/2014,Social Care & Inclusion
WC48-0566,BESCOT LODGE,Third Party Payments,Private Contractor Fees,73373-RESIDENTIAL & NURSING CARE PLACEMENTS,"1,616.87",Revenue,24/09/2014,Social Care & Inclusion
WC48-0567,BESCOT LODGE,Third Party Payments,Private Contractor Fees,73373-RESIDENTIAL & NURSING CARE PLACEMENTS,"1,616.87",Revenue,24/09/2014,Social Care & Inclusion
WC48-0568,BESCOT LODGE,Third Party Payments,Private Contractor Fees,73373-RESIDENTIAL & NURSING CARE PLACEMENTS,"1,643.70",Revenue,16/09/2014,Social Care & Inclusion
WC48-0569,BESCOT LODGE,Third Party Payments,Private Contractor Fees,73373-RESIDENTIAL & NURSING CARE PLACEMENTS,"1,643.70",Revenue,16/09/2014,Social Care & Inclusion
WC48-0570,BESCOT LODGE,Third Party Payments,Private Contractor Fees,73373-RESIDENTIAL & NURSING CARE PLACEMENTS,"1,643.70",Revenue,16/09/2014,Social Care & Inclusion
WC48-0571,BESCOT LODGE,Third Party Payments,Private Contractor Fees,73373-RESIDENTIAL & NURSING CARE PLACEMENTS,"1,643.70",Revenue,16/09/2014,Social Care & Inclusion
WC48-0572,BESCOT LODGE,Third Party Payments,Private Contractor Fees,73373-RESIDENTIAL & NURSING CARE PLACEMENTS,"1,643.70",Revenue,16/09/2014,Social Care & Inclusion
WC48-0573,BESCOT LODGE,Third Party Payments,Private Contractor Fees,73373-RESIDENTIAL & NURSING CARE PLACEMENTS,"1,643.70",Revenue,16/09/2014,Social Care & Inclusion
WC48-0574,BESCOT LODGE,Third Party Payments,Private Contractor Fees,73373-RESIDENTIAL & NURSING CARE PLACEMENTS,"1,643.70",Revenue,16/09/2014,Social Care & Inclusion
WC48-0575,BESCOT LODGE,Third Party Payments,Private Contractor Fees,73373-RESIDENTIAL & NURSING CARE PLACEMENTS,"1,643.70",Revenue,24/09/2014,Social Care & Inclusion
WC48-0576,BESCOT LODGE,Third Party Payments,Private Contractor Fees,73373-RESIDENTIAL & NURSING CARE PLACEMENTS,"1,643.70",Revenue,24/09/2014,Social Care & Inclusion
WC48-0577,BESCOT LODGE,Third Party Payments,Private Contractor Fees,73373-RESIDENTIAL & NURSING CARE PLACEMENTS,"1,661.27",Revenue,16/09/2014,Social Care & Inclusion
WC48-0578,BESCOT LODGE,Third Party Payments,Private Contractor Fees,73373-RESIDENTIAL & NURSING CARE PLACEMENTS,"1,661.36",Revenue,16/09/2014,Social Care & Inclusion
WC48-0579,BESCOT LODGE,Third Party Payments,Private Contractor Fees,73373-RESIDENTIAL & NURSING CARE PLACEMENTS,"1,661.36",Revenue,16/09/2014,Social Care & Inclusion
WC48-0580,BETHPHAGE.,Third Party Payments,Private Contractor Fees,73374-SUPPORTED & OTHER ACCOMMODATION,650.00,Revenue,09/09/2014,Social Care & Inclusion
WC48-0581,BETHPHAGE.,Third Party Payments,Private Contractor Fees,73374-SUPPORTED & OTHER ACCOMMODATION,818.40,Revenue,25/09/2014,Social Care & Inclusion
WC48-0582,BETHPHAGE.,Third Party Payments,Private Contractor Fees,73374-SUPPORTED & OTHER ACCOMMODATION,"1,573.28",Revenue,09/09/2014,Social Care & Inclusion
WC48-0583,BETHPHAGE.,Third Party Payments,Private Contractor Fees,73374-SUPPORTED & OTHER ACCOMMODATION,"1,768.00",Revenue,09/09/2014,Social Care & Inclusion
WC48-0584,BETHPHAGE.,Third Party Payments,Private Contractor Fees,73374-SUPPORTED & OTHER ACCOMMODATION,"2,031.84",Revenue,09/09/2014,Social Care & Inclusion
WC48-0585,BETHPHAGE.,Third Party Payments,Private Contractor Fees,73374-SUPPORTED & OTHER ACCOMMODATION,"3,831.92",Revenue,09/09/2014,Social Care & Inclusion
WC48-0586,REDACTED,Transfer Payments,Transfer Payments,76422-DIRECT PAYMENTS TO SOCIAL SERVICES CLIENTS,402.50,Revenue,17/09/2014,Social Care & Inclusion
WC48-0587,REDACTED,Transfer Payments,Transfer Payments,76422-DIRECT PAYMENTS TO SOCIAL SERVICES CLIENTS,"1,186.90",Revenue,17/09/2014,Social Care & Inclusion
WC48-0588,REDACTED,Transfer Payments,Transfer Payments,76422-DIRECT PAYMENTS TO SOCIAL SERVICES CLIENTS,"1,248.25",Revenue,17/09/2014,Social Care & Inclusion
WC48-0589,BEVAN BRITTAN,Supplies & Services,Other Supplies & Services,63116-EXTERNAL BARRISTERS-SERVICES-FEES,"6,696.50",Revenue,19/09/2014,Resources
WC48-0590,REDACTED,Third Party Payments,Private Contractor Fees,73032-TRANSPORTATION-PRIV CONTRACTOR FEES,180.00,Revenue,10/09/2014,Neighbourhood Services
WC48-0591,REDACTED,Supplies & Services,"Equip,Furniture & Materials",60500-GENERAL MATERIALS,"1,500.00",Revenue,10/09/2014,Neighbourhood Services
WC48-0592,BGPW LMA,Third Party Payments,Grants to Other Orgs,66500-GRANTS TO OTHER ORGS,"3,737.50",Revenue,01/09/2014,Neighbourhood Services
WC48-0593,BIFFA WASTE SERVICES LTD,Third Party Payments,Private Contractor Fees,73039-LANDFILL TAX-PRIV CONTRACTOR FEES,278.40,Revenue,23/09/2014,Neighbourhood Services
WC48-0594,BIFFA WASTE SERVICES LTD,Third Party Payments,Private Contractor Fees,73029-HAZARDOUS WASTE REMOVAL/DISPOSAL-PRIV CONTRACTOR FEES,355.62,Revenue,23/09/2014,Neighbourhood Services
WC48-0595,BIFFA WASTE SERVICES LTD,Third Party Payments,Private Contractor Fees,73005-LANDFILL PTYS-PRIV CONTRACTOR FEES,"1,280.16",Revenue,01/09/2014,Neighbourhood Services
WC48-0596,BIFFA WASTE SERVICES LTD,Third Party Payments,Private Contractor Fees,73005-LANDFILL PTYS-PRIV CONTRACTOR FEES,"1,858.52",Revenue,23/09/2014,Neighbourhood Services
WC48-0597,BIFFA WASTE SERVICES LTD,Third Party Payments,Private Contractor Fees,73005-LANDFILL PTYS-PRIV CONTRACTOR FEES,"2,162.93",Revenue,25/09/2014,Neighbourhood Services
WC48-0598,BIFFA WASTE SERVICES LTD,Third Party Payments,Private Contractor Fees,73005-LANDFILL PTYS-PRIV CONTRACTOR FEES,"2,500.67",Revenue,01/09/2014,Neighbourhood Services
WC48-0599,BIFFA WASTE SERVICES LTD,Third Party Payments,Private Contractor Fees,73005-LANDFILL PTYS-PRIV CONTRACTOR FEES,"2,598.78",Revenue,03/09/2014,Neighbourhood Services
WC48-0600,BIFFA WASTE SERVICES LTD,Third Party Payments,Private Contractor Fees,73005-LANDFILL PTYS-PRIV CONTRACTOR FEES,"2,712.39",Revenue,10/09/2014,Neighbourhood Services
WC48-0601,BIFFA WASTE SERVICES LTD,Third Party Payments,Private Contractor Fees,73005-LANDFILL PTYS-PRIV CONTRACTOR FEES,"2,916.12",Revenue,24/09/2014,Neighbourhood Services
WC48-0602,BIFFA WASTE SERVICES LTD,Third Party Payments,Private Contractor Fees,73039-LANDFILL TAX-PRIV CONTRACTOR FEES,"7,932.80",Revenue,01/09/2014,Neighbourhood Services
WC48-0603,BIFFA WASTE SERVICES LTD,Third Party Payments,Private Contractor Fees,73039-LANDFILL TAX-PRIV CONTRACTOR FEES,"11,516.80",Revenue,23/09/2014,Neighbourhood Services
WC48-0604,BIFFA WASTE SERVICES LTD,Third Party Payments,Private Contractor Fees,73039-LANDFILL TAX-PRIV CONTRACTOR FEES,"13,403.21",Revenue,25/09/2014,Neighbourhood Services
WC48-0605,BIFFA WASTE SERVICES LTD,Third Party Payments,Private Contractor Fees,73039-LANDFILL TAX-PRIV CONTRACTOR FEES,"15,496.00",Revenue,01/09/2014,Neighbourhood Services
WC48-0606,BIFFA WASTE SERVICES LTD,Third Party Payments,Private Contractor Fees,73039-LANDFILL TAX-PRIV CONTRACTOR FEES,"16,104.00",Revenue,03/09/2014,Neighbourhood Services
WC48-0607,BIFFA WASTE SERVICES LTD,Third Party Payments,Private Contractor Fees,73039-LANDFILL TAX-PRIV CONTRACTOR FEES,"16,808.00",Revenue,10/09/2014,Neighbourhood Services
WC48-0608,BIFFA WASTE SERVICES LTD,Third Party Payments,Private Contractor Fees,73039-LANDFILL TAX-PRIV CONTRACTOR FEES,"18,070.39",Revenue,24/09/2014,Neighbourhood Services
WC48-0609,REDACTED,Transfer Payments,Transfer Payments,76422-DIRECT PAYMENTS TO SOCIAL SERVICES CLIENTS,424.90,Revenue,17/09/2014,Childrens
WC48-0610,BIOGAS TECHNOLOGY LIMITED,Supplies & Services,"Equip,Furniture & Materials",60008-MAINTENANCE-FURNITURE & EQUIPMENT,360.00,Revenue,16/09/2014,Neighbourhood Services
WC48-0611,BIRCHILLS C OF E COMMUNITY ACADEMY,Third Party Payments,Grants to Other Orgs,66502-TOP UP FUNDING -GRANTS TO SCHOOLS,"2,626.87",Revenue,08/09/2014,Childrens
WC48-0612,BIRCHILLS C OF E COMMUNITY ACADEMY,Third Party Payments,Grants to Other Orgs,66502-TOP UP FUNDING -GRANTS TO SCHOOLS,"3,723.06",Revenue,08/09/2014,Childrens
WC48-0613,BIRCHILLS C OF E COMMUNITY ACADEMY,Third Party Payments,Grants to Other Orgs,66502-TOP UP FUNDING -GRANTS TO SCHOOLS,"9,034.56",Revenue,15/09/2014,Childrens
WC48-0614,BIRCHILLS C OF E COMMUNITY ACADEMY,Third Party Payments,Grants to Other Orgs,66505-OTHER-GRANTS TO OTHER ORGS,"24,325.33",Revenue,22/09/2014,Childrens
WC48-0615,BIRMINGHAM CITY COUNCIL,Supplies & Services,Services,63000-PROFESSIONAL FEES AND SERVICES,"1,500.00",Revenue,24/09/2014,Resources
WC48-0616,BIRMINGHAM CITY COUNCIL,Supplies & Services,Services,63000-PROFESSIONAL FEES AND SERVICES,"1,500.00",Revenue,24/09/2014,Resources
WC48-0617,BIRMINGHAM MUSEUMS TRUST,Supplies & Services,Other Supplies & Services,63011-CONSERVATION-SERVICES,280.00,Revenue,10/09/2014,Neighbourhood Services
WC48-0618,BLACK COUNTRY CONSORTIUM LIMITED,Supplies & Services,Services,63102-CONSULTANTS FEES - CORPORATE,"1,230.43",Revenue,03/09/2014,Regeneration
WC48-0619,BLACK COUNTRY PARTNERSHIP NHS,Third Party Payments,Joint Arrangements,71007-CONTRIBUTION TO PCT,"17,856.00",Revenue,05/09/2014,Social Care & Inclusion
WC48-0620,BLAKENALL HEATH JMI SCHOOL,Transfer Payments,Transfer Payments,77302-ISB-SCHOOL STANDARDS GRANT,"52,075.00",Revenue,03/09/2014,Childrens
WC48-0621,BLAKENALL HEATH JMI SCHOOL,Transfer Payments,Transfer Payments,77300-ISB-FORMULA ALLOCATION,"86,631.80",Revenue,16/09/2014,Childrens
WC48-0622,BLANCHWORTH CARE HOMES LIMITED,Third Party Payments,Private Contractor Fees,73373-RESIDENTIAL & NURSING CARE PLACEMENTS,"1,942.55",Revenue,09/09/2014,Social Care & Inclusion
WC48-0623,BLOXWICH COMMUNITY PARTNERSHIP.,Third Party Payments,Private Contractor Fees,73372-DOMICILIARY CARE,290.00,Revenue,19/09/2014,Social Care & Inclusion
WC48-0624,BLOXWICH COMMUNITY PARTNERSHIP.,Supplies & Services,Other Supplies & Services,62515-MISCELLANEOUS SUPPLIES,482.51,Revenue,02/09/2014,Neighbourhood Services
WC48-0625,BLUE COAT CHURCH OF ENGLAND ACADEMY,Third Party Payments,Grants to Other Orgs,66502-TOP UP FUNDING -GRANTS TO SCHOOLS,"7,061.49",Revenue,15/09/2014,Childrens
WC48-0626,BLUE GIRAFFE CHILDCARE,Third Party Payments,Grants to Other Orgs,66502-TOP UP FUNDING -GRANTS TO SCHOOLS,634.58,Revenue,08/09/2014,Childrens
WC48-0627,BLUE GIRAFFE CHILDCARE,Third Party Payments,Grants to Other Orgs,66505-OTHER-GRANTS TO OTHER ORGS,"12,630.87",Revenue,29/09/2014,Childrens
WC48-0628,BLUE SKY FUSION LLP,Capital,Capital,01001-OTHER CONSULTANTS FEES,500.00,Capital,02/09/2014,Regeneration
WC48-0629,BME UNITED LTD,Third Party Payments,Private Contractor Fees,73025-PROFESSIONAL SERVICES-PRIV CONTRACTOR & OTHER AGENCIES,"1,605.80",Revenue,24/09/2014,Neighbourhood Services
WC48-0630,BNP PARIBAS LEASE GROUP,Supplies & Services,Communications & Computing,63602-COST OF RENTAL-TELEPHONES,291.76,Revenue,09/09/2014,Childrens
WC48-0631,BOC LTD,Supplies & Services,"Equip,Furniture & Materials",60500-GENERAL MATERIALS,787.20,Revenue,22/09/2014,Neighbourhood Services
WC48-0632,BOOTS UK LIMITED,Supplies & Services,Services,63102-CONSULTANTS FEES - CORPORATE,651.82,Revenue,01/09/2014,Neighbourhood Services
WC48-0633,BOOTS UK LIMITED,Supplies & Services,Services,63102-CONSULTANTS FEES - CORPORATE,"1,082.50",Revenue,01/09/2014,Neighbourhood Services
WC48-0634,BOOTS UK LIMITED,Supplies & Services,Services,63102-CONSULTANTS FEES - CORPORATE,"1,491.52",Revenue,01/09/2014,Neighbourhood Services
WC48-0635,BORN COMMUNICATION LTD,Supplies & Services,Services,63000-PROFESSIONAL FEES AND SERVICES,600.00,Revenue,08/09/2014,Childrens
WC48-0636,BORN COMMUNICATION LTD,Supplies & Services,Other Supplies & Services,64002-OTHER EXPENSES-EXPENSES,"1,500.00",Revenue,01/09/2014,Neighbourhood Services
WC48-0637,BOWDEN DERRA PARK,Third Party Payments,Private Contractor Fees,73373-RESIDENTIAL & NURSING CARE PLACEMENTS,"10,271.64",Revenue,24/09/2014,Social Care & Inclusion
WC48-0638,BRADLEY ENVIRONMENTAL,Premises,Premises-Repairs & Maintenance,"40000-REPAIRS,ALTERATIONS & MAINTENANCE-PREM",250.00,Revenue,19/09/2014,Regeneration
WC48-0639,BRADLEY ENVIRONMENTAL,Capital,Capital,01006-SITE WORKS MAIN CONTRACTORS,360.00,Capital,05/09/2014,Childrens
WC48-0640,BRADLEY ENVIRONMENTAL,Capital,Capital,01006-SITE WORKS MAIN CONTRACTORS,371.50,Capital,16/09/2014,Childrens
WC48-0641,BRADLEY ENVIRONMENTAL,Premises,Premises-Repairs & Maintenance,"40000-REPAIRS,ALTERATIONS & MAINTENANCE-PREM",470.00,Revenue,09/09/2014,Regeneration
WC48-0642,BRADLEY ENVIRONMENTAL,Capital,Capital,01006-SITE WORKS MAIN CONTRACTORS,480.00,Capital,16/09/2014,Childrens
WC48-0643,BRADLEY ENVIRONMENTAL,Capital,Capital,01006-SITE WORKS MAIN CONTRACTORS,840.00,Capital,02/09/2014,Childrens
WC48-0644,BRADLEY ENVIRONMENTAL,Capital,Capital,01006-SITE WORKS MAIN CONTRACTORS,"1,260.00",Capital,19/09/2014,Childrens
WC48-0645,BRADLEY ENVIRONMENTAL,Capital,Capital,01006-SITE WORKS MAIN CONTRACTORS,"1,662.00",Capital,19/09/2014,Childrens
WC48-0646,BRADLEY ENVIRONMENTAL,Capital,Capital,01006-SITE WORKS MAIN CONTRACTORS,"2,200.00",Capital,09/09/2014,Childrens
WC48-0647,REDACTED,Transfer Payments,Transfer Payments,76422-DIRECT PAYMENTS TO SOCIAL SERVICES CLIENTS,575.40,Revenue,17/09/2014,Social Care & Inclusion
WC48-0648,BRELMAYNE LTD,Supplies & Services,"Equip,Furniture & Materials",60008-MAINTENANCE-FURNITURE & EQUIPMENT,34.47,Revenue,08/09/2014,Neighbourhood Services
WC48-0649,BRELMAYNE LTD,Supplies & Services,"Equip,Furniture & Materials",60008-MAINTENANCE-FURNITURE & EQUIPMENT,93.59,Revenue,08/09/2014,Neighbourhood Services
WC48-0650,BRELMAYNE LTD,Supplies & Services,"Equip,Furniture & Materials",60008-MAINTENANCE-FURNITURE & EQUIPMENT,97.55,Revenue,08/09/2014,Neighbourhood Services
WC48-0651,BRELMAYNE LTD,Third Party Payments,Private Contractor Fees,73025-PROFESSIONAL SERVICES-PRIV CONTRACTOR & OTHER AGENCIES,256.86,Revenue,18/09/2014,Regeneration
WC48-0652,BRELMAYNE LTD,Premises,Premises-Repairs & Maintenance,"40000-REPAIRS,ALTERATIONS & MAINTENANCE-PREM",268.99,Revenue,16/09/2014,Regeneration
WC48-0653,BRELMAYNE LTD,Third Party Payments,Private Contractor Fees,73025-PROFESSIONAL SERVICES-PRIV CONTRACTOR & OTHER AGENCIES,286.30,Revenue,19/09/2014,Regeneration
WC48-0654,BRELMAYNE LTD,Third Party Payments,Private Contractor Fees,73025-PROFESSIONAL SERVICES-PRIV CONTRACTOR & OTHER AGENCIES,297.86,Revenue,15/09/2014,Regeneration
WC48-0655,BRELMAYNE LTD,Supplies & Services,"Equip,Furniture & Materials",60008-MAINTENANCE-FURNITURE & EQUIPMENT,305.82,Revenue,08/09/2014,Neighbourhood Services
WC48-0656,BRELMAYNE LTD,Third Party Payments,Private Contractor Fees,73025-PROFESSIONAL SERVICES-PRIV CONTRACTOR & OTHER AGENCIES,310.36,Revenue,23/09/2014,Regeneration
WC48-0657,BRELMAYNE LTD,Supplies & Services,"Equip,Furniture & Materials",60008-MAINTENANCE-FURNITURE & EQUIPMENT,311.89,Revenue,08/09/2014,Neighbourhood Services
WC48-0658,BRELMAYNE LTD,Premises,Premises-Repairs & Maintenance,"40000-REPAIRS,ALTERATIONS & MAINTENANCE-PREM",327.10,Revenue,26/09/2014,Regeneration
WC48-0659,BRELMAYNE LTD,Third Party Payments,Private Contractor Fees,73025-PROFESSIONAL SERVICES-PRIV CONTRACTOR & OTHER AGENCIES,394.80,Revenue,15/09/2014,Regeneration
WC48-0660,BRELMAYNE LTD,Capital,Capital,01006-SITE WORKS MAIN CONTRACTORS,452.25,Capital,19/09/2014,Regeneration
WC48-0661,BRELMAYNE LTD,Third Party Payments,Private Contractor Fees,73025-PROFESSIONAL SERVICES-PRIV CONTRACTOR & OTHER AGENCIES,452.71,Revenue,19/09/2014,Regeneration
WC48-0662,BRELMAYNE LTD,Premises,Premises-Repairs & Maintenance,"40000-REPAIRS,ALTERATIONS & MAINTENANCE-PREM",456.30,Revenue,02/09/2014,Regeneration
WC48-0663,BRELMAYNE LTD,Third Party Payments,Private Contractor Fees,73025-PROFESSIONAL SERVICES-PRIV CONTRACTOR & OTHER AGENCIES,476.18,Revenue,23/09/2014,Regeneration
WC48-0664,BRELMAYNE LTD,Premises,Premises-Repairs & Maintenance,"40000-REPAIRS,ALTERATIONS & MAINTENANCE-PREM",483.84,Revenue,23/09/2014,Regeneration
WC48-0665,BRELMAYNE LTD,Premises,Premises-Repairs & Maintenance,"40000-REPAIRS,ALTERATIONS & MAINTENANCE-PREM",590.80,Revenue,12/09/2014,Regeneration
WC48-0666,BRELMAYNE LTD,Third Party Payments,Private Contractor Fees,73025-PROFESSIONAL SERVICES-PRIV CONTRACTOR & OTHER AGENCIES,628.00,Revenue,12/09/2014,Regeneration
WC48-0667,BRELMAYNE LTD,Capital,Capital,01006-SITE WORKS MAIN CONTRACTORS,646.07,Capital,19/09/2014,Regeneration
WC48-0668,BRELMAYNE LTD,Third Party Payments,Private Contractor Fees,73025-PROFESSIONAL SERVICES-PRIV CONTRACTOR & OTHER AGENCIES,751.90,Revenue,19/09/2014,Regeneration
WC48-0669,BRELMAYNE LTD,Premises,Premises-Repairs & Maintenance,"40000-REPAIRS,ALTERATIONS & MAINTENANCE-PREM",797.53,Revenue,23/09/2014,Regeneration
WC48-0670,BRELMAYNE LTD,Premises,Premises-Repairs & Maintenance,"40000-REPAIRS,ALTERATIONS & MAINTENANCE-PREM",828.55,Revenue,26/09/2014,Regeneration
WC48-0671,BRELMAYNE LTD,Capital,Capital,01006-SITE WORKS MAIN CONTRACTORS,876.96,Capital,23/09/2014,Regeneration
WC48-0672,BRELMAYNE LTD,Premises,Premises-Repairs & Maintenance,"40000-REPAIRS,ALTERATIONS & MAINTENANCE-PREM",878.87,Revenue,23/09/2014,Regeneration
WC48-0673,BRELMAYNE LTD,Premises,Premises-Repairs & Maintenance,"40000-REPAIRS,ALTERATIONS & MAINTENANCE-PREM",941.28,Revenue,23/09/2014,Regeneration
WC48-0674,BRELMAYNE LTD,Premises,Premises-Repairs & Maintenance,"40000-REPAIRS,ALTERATIONS & MAINTENANCE-PREM",997.00,Revenue,11/09/2014,Regeneration
WC48-0675,BRELMAYNE LTD,Third Party Payments,Private Contractor Fees,73025-PROFESSIONAL SERVICES-PRIV CONTRACTOR & OTHER AGENCIES,997.72,Revenue,17/09/2014,Regeneration
WC48-0676,BRELMAYNE LTD,Premises,Premises-Repairs & Maintenance,"40000-REPAIRS,ALTERATIONS & MAINTENANCE-PREM","1,002.59",Revenue,11/09/2014,Regeneration
WC48-0677,BRELMAYNE LTD,Premises,Premises-Repairs & Maintenance,"40000-REPAIRS,ALTERATIONS & MAINTENANCE-PREM","1,298.76",Revenue,24/09/2014,Regeneration
WC48-0678,BRELMAYNE LTD,Third Party Payments,Private Contractor Fees,73025-PROFESSIONAL SERVICES-PRIV CONTRACTOR & OTHER AGENCIES,"2,056.00",Revenue,26/09/2014,Regeneration
WC48-0679,BRELMAYNE LTD,Premises,Premises-Repairs & Maintenance,"40000-REPAIRS,ALTERATIONS & MAINTENANCE-PREM","3,675.07",Revenue,19/09/2014,Regeneration
WC48-0680,BRELMAYNE LTD,Premises,Premises-Repairs & Maintenance,"40000-REPAIRS,ALTERATIONS & MAINTENANCE-PREM","12,495.91",Revenue,18/09/2014,Regeneration
WC48-0681,REDACTED,Transfer Payments,Transfer Payments,76422-DIRECT PAYMENTS TO SOCIAL SERVICES CLIENTS,850.00,Revenue,17/09/2014,Social Care & Inclusion
WC48-0682,REDACTED,Transfer Payments,Transfer Payments,76422-DIRECT PAYMENTS TO SOCIAL SERVICES CLIENTS,350.00,Revenue,17/09/2014,Social Care & Inclusion
WC48-0683,REDACTED,Transfer Payments,Transfer Payments,76422-DIRECT PAYMENTS TO SOCIAL SERVICES CLIENTS,550.00,Revenue,17/09/2014,Social Care & Inclusion
WC48-0684,REDACTED,Transfer Payments,Transfer Payments,76422-DIRECT PAYMENTS TO SOCIAL SERVICES CLIENTS,270.00,Revenue,17/09/2014,Social Care & Inclusion
WC48-0685,REDACTED,Third Party Payments,Private Contractor Fees,74006-HOLIDAY/CHRISTMAS ALLOWANCE-FOSTER CARERS-OTH AGENCY PROVISION,"1,278.80",Revenue,15/09/2014,Childrens
WC48-0686,REDACTED,Supplies & Services,Other Supplies & Services,62515-MISCELLANEOUS SUPPLIES,"1,428.44",Revenue,15/09/2014,Childrens
WC48-0687,REDACTED,Transfer Payments,Transfer Payments,76422-DIRECT PAYMENTS TO SOCIAL SERVICES CLIENTS,680.00,Revenue,17/09/2014,Social Care & Inclusion
WC48-0688,BRENT STEVENSON MEMORIALS LTD,Supplies & Services,Other Supplies & Services,62515-MISCELLANEOUS SUPPLIES,790.00,Revenue,10/09/2014,Neighbourhood Services
WC48-0689,REDACTED,Third Party Payments,Private Contractor Fees,73374-SUPPORTED & OTHER ACCOMMODATION,"2,935.24",Revenue,09/09/2014,Social Care & Inclusion
WC48-0690,REDACTED,Transfer Payments,Transfer Payments,76422-DIRECT PAYMENTS TO SOCIAL SERVICES CLIENTS,616.50,Revenue,17/09/2014,Social Care & Inclusion
WC48-0691,REDACTED,Transfer Payments,Transfer Payments,76422-DIRECT PAYMENTS TO SOCIAL SERVICES CLIENTS,"1,618.50",Revenue,17/09/2014,Social Care & Inclusion
WC48-0692,REDACTED,Transfer Payments,Transfer Payments,76422-DIRECT PAYMENTS TO SOCIAL SERVICES CLIENTS,647.40,Revenue,17/09/2014,Social Care & Inclusion
WC48-0693,BRIDGEWOOD HEALTH CARE LTD,Third Party Payments,Private Contractor Fees,73373-RESIDENTIAL & NURSING CARE PLACEMENTS,"5,058.44",Revenue,02/09/2014,Social Care & Inclusion
WC48-0694,REDACTED,Transfer Payments,Transfer Payments,76422-DIRECT PAYMENTS TO SOCIAL SERVICES CLIENTS,"1,299.73",Revenue,17/09/2014,Social Care & Inclusion
WC48-0695,BRISTOL MICROFILM & IMAGING LTD,Supplies & Services,"Equip,Furniture & Materials",60008-MAINTENANCE-FURNITURE & EQUIPMENT,"1,995.00",Revenue,01/09/2014,Neighbourhood Services
WC48-0696,BRITANNIA APPRENTICESHIPS LTD,Third Party Payments,Grants to Other Orgs,65500-GRANTS TO ASSOCIATIONS,"1,158.40",Revenue,25/09/2014,Neighbourhood Services
WC48-0697,BRITANNIA APPRENTICESHIPS LTD,Third Party Payments,Grants to Other Orgs,66500-GRANTS TO OTHER ORGS,"2,250.00",Revenue,01/09/2014,Regeneration
WC48-0698,BRITANNIA APPRENTICESHIPS LTD,Third Party Payments,Grants to Other Orgs,65500-GRANTS TO ASSOCIATIONS,"6,950.40",Revenue,11/09/2014,Neighbourhood Services
WC48-0699,BRITISH ELECTRICAL COMPANY,Supplies & Services,"Equip,Furniture & Materials",60500-GENERAL MATERIALS,700.00,Revenue,12/09/2014,Neighbourhood Services
WC48-0700,BRITISH GAS BUSINESS,Premises,Utilities,42000-GAS-ENERGY COSTS,"-2,043.95",Revenue,29/09/2014,Regeneration
WC48-0701,BRITISH GAS BUSINESS,Premises,Utilities,42000-GAS-ENERGY COSTS,-896.48,Revenue,29/09/2014,Regeneration
WC48-0702,BRITISH GAS BUSINESS,Premises,Utilities,42000-GAS-ENERGY COSTS,-675.30,Revenue,29/09/2014,Regeneration
WC48-0703,BRITISH GAS BUSINESS,Premises,Utilities,42000-GAS-ENERGY COSTS,-137.87,Revenue,29/09/2014,Regeneration
WC48-0704,BRITISH GAS BUSINESS,Premises,Utilities,42000-GAS-ENERGY COSTS,256.05,Revenue,10/09/2014,Regeneration
WC48-0705,BRITISH GAS BUSINESS,Premises,Utilities,42000-GAS-ENERGY COSTS,264.26,Revenue,10/09/2014,Regeneration
WC48-0706,BRITISH GAS BUSINESS,Premises,Utilities,42000-GAS-ENERGY COSTS,285.48,Revenue,10/09/2014,Regeneration
WC48-0707,BRITISH GAS BUSINESS,Premises,Utilities,42000-GAS-ENERGY COSTS,292.81,Revenue,10/09/2014,Regeneration
WC48-0708,BRITISH GAS BUSINESS,Premises,Utilities,42000-GAS-ENERGY COSTS,297.27,Revenue,09/09/2014,Regeneration
WC48-0709,BRITISH GAS BUSINESS,Premises,Utilities,42000-GAS-ENERGY COSTS,306.80,Revenue,10/09/2014,Regeneration
WC48-0710,BRITISH GAS BUSINESS,Premises,Utilities,42003-ELECTRICITY-ENERGY COSTS,328.75,Revenue,18/09/2014,Neighbourhood Services
WC48-0711,BRITISH GAS BUSINESS,Premises,Utilities,42000-GAS-ENERGY COSTS,329.19,Revenue,10/09/2014,Regeneration
WC48-0712,BRITISH GAS BUSINESS,Premises,Utilities,42000-GAS-ENERGY COSTS,330.43,Revenue,10/09/2014,Regeneration
WC48-0713,BRITISH GAS BUSINESS,Premises,Utilities,42000-GAS-ENERGY COSTS,345.71,Revenue,10/09/2014,Regeneration
WC48-0714,BRITISH GAS BUSINESS,Premises,Utilities,42000-GAS-ENERGY COSTS,371.11,Revenue,10/09/2014,Regeneration
WC48-0715,BRITISH GAS BUSINESS,Premises,Utilities,42000-GAS-ENERGY COSTS,385.53,Revenue,10/09/2014,Regeneration
WC48-0716,BRITISH GAS BUSINESS,Premises,Utilities,42000-GAS-ENERGY COSTS,387.39,Revenue,10/09/2014,Regeneration
WC48-0717,BRITISH GAS BUSINESS,Premises,Utilities,42000-GAS-ENERGY COSTS,398.73,Revenue,10/09/2014,Regeneration
WC48-0718,BRITISH GAS BUSINESS,Premises,Utilities,42000-GAS-ENERGY COSTS,411.27,Revenue,09/09/2014,Regeneration
WC48-0719,BRITISH GAS BUSINESS,Premises,Utilities,42000-GAS-ENERGY COSTS,412.51,Revenue,10/09/2014,Regeneration
WC48-0720,BRITISH GAS BUSINESS,Premises,Utilities,42000-GAS-ENERGY COSTS,413.42,Revenue,10/09/2014,Regeneration
WC48-0721,BRITISH GAS BUSINESS,Premises,Utilities,42000-GAS-ENERGY COSTS,414.59,Revenue,10/09/2014,Regeneration
WC48-0722,BRITISH GAS BUSINESS,Premises,Utilities,42000-GAS-ENERGY COSTS,436.50,Revenue,10/09/2014,Regeneration
WC48-0723,BRITISH GAS BUSINESS,Premises,Utilities,42000-GAS-ENERGY COSTS,449.45,Revenue,10/09/2014,Regeneration
WC48-0724,BRITISH GAS BUSINESS,Premises,Utilities,42000-GAS-ENERGY COSTS,470.08,Revenue,10/09/2014,Regeneration
WC48-0725,BRITISH GAS BUSINESS,Premises,Utilities,42000-GAS-ENERGY COSTS,494.36,Revenue,09/09/2014,Regeneration
WC48-0726,BRITISH GAS BUSINESS,Premises,Utilities,42000-GAS-ENERGY COSTS,519.26,Revenue,09/09/2014,Regeneration
WC48-0727,BRITISH GAS BUSINESS,Premises,Utilities,42000-GAS-ENERGY COSTS,530.27,Revenue,09/09/2014,Regeneration
WC48-0728,BRITISH GAS BUSINESS,Premises,Utilities,42003-ELECTRICITY-ENERGY COSTS,574.32,Revenue,18/09/2014,Neighbourhood Services
WC48-0729,BRITISH GAS BUSINESS,Premises,Utilities,42000-GAS-ENERGY COSTS,588.44,Revenue,09/09/2014,Regeneration
WC48-0730,BRITISH GAS BUSINESS,Premises,Utilities,42000-GAS-ENERGY COSTS,628.57,Revenue,09/09/2014,Regeneration
WC48-0731,BRITISH GAS BUSINESS,Premises,Utilities,42000-GAS-ENERGY COSTS,681.12,Revenue,29/09/2014,Regeneration
WC48-0732,BRITISH GAS BUSINESS,Premises,Utilities,42000-GAS-ENERGY COSTS,702.24,Revenue,10/09/2014,Regeneration
WC48-0733,BRITISH GAS BUSINESS,Premises,Utilities,42000-GAS-ENERGY COSTS,858.68,Revenue,09/09/2014,Regeneration
WC48-0734,BRITISH GAS BUSINESS,Premises,Utilities,42000-GAS-ENERGY COSTS,904.27,Revenue,10/09/2014,Regeneration
WC48-0735,BRITISH GAS BUSINESS,Premises,Utilities,42003-ELECTRICITY-ENERGY COSTS,915.25,Revenue,18/09/2014,Neighbourhood Services
WC48-0736,BRITISH GAS BUSINESS,Premises,Utilities,42003-ELECTRICITY-ENERGY COSTS,922.62,Revenue,18/09/2014,Neighbourhood Services
WC48-0737,BRITISH GAS BUSINESS,Premises,Utilities,42003-ELECTRICITY-ENERGY COSTS,"1,053.87",Revenue,18/09/2014,Neighbourhood Services
WC48-0738,BRITISH GAS BUSINESS,Premises,Utilities,42003-ELECTRICITY-ENERGY COSTS,"1,179.64",Revenue,18/09/2014,Neighbourhood Services
WC48-0739,BRITISH GAS BUSINESS,Premises,Utilities,42000-GAS-ENERGY COSTS,"1,205.78",Revenue,10/09/2014,Regeneration
WC48-0740,BRITISH GAS BUSINESS,Premises,Utilities,42003-ELECTRICITY-ENERGY COSTS,"1,231.44",Revenue,18/09/2014,Neighbourhood Services
WC48-0741,BRITISH GAS BUSINESS,Premises,Utilities,42003-ELECTRICITY-ENERGY COSTS,"1,309.51",Revenue,18/09/2014,Neighbourhood Services
WC48-0742,BRITISH GAS BUSINESS,Premises,Utilities,42000-GAS-ENERGY COSTS,"1,477.96",Revenue,10/09/2014,Regeneration
WC48-0743,BRITISH GAS BUSINESS,Premises,Utilities,42000-GAS-ENERGY COSTS,"1,788.44",Revenue,10/09/2014,Regeneration
WC48-0744,BRITISH GAS BUSINESS,Premises,Utilities,42000-GAS-ENERGY COSTS,"1,925.29",Revenue,24/09/2014,Childrens
WC48-0745,BRITISH GAS BUSINESS,Premises,Utilities,42000-GAS-ENERGY COSTS,"1,973.33",Revenue,03/09/2014,Childrens
WC48-0746,BRITISH GAS BUSINESS,Premises,Utilities,42003-ELECTRICITY-ENERGY COSTS,"2,295.93",Revenue,18/09/2014,Neighbourhood Services
WC48-0747,BRITISH GAS BUSINESS,Premises,Utilities,42003-ELECTRICITY-ENERGY COSTS,"2,458.09",Revenue,18/09/2014,Neighbourhood Services
WC48-0748,BRITISH GAS BUSINESS,Premises,Utilities,42003-ELECTRICITY-ENERGY COSTS,"2,545.81",Revenue,18/09/2014,Neighbourhood Services
WC48-0749,BRITISH GAS BUSINESS,Premises,Utilities,42003-ELECTRICITY-ENERGY COSTS,"2,626.77",Revenue,18/09/2014,Neighbourhood Services
WC48-0750,BRITISH GAS BUSINESS,Premises,Utilities,42003-ELECTRICITY-ENERGY COSTS,"2,676.24",Revenue,18/09/2014,Neighbourhood Services
WC48-0751,BRITISH GAS BUSINESS,Premises,Utilities,42003-ELECTRICITY-ENERGY COSTS,"3,051.35",Revenue,18/09/2014,Neighbourhood Services
WC48-0752,BRITISH GAS BUSINESS,Premises,Utilities,42003-ELECTRICITY-ENERGY COSTS,"3,540.11",Revenue,18/09/2014,Neighbourhood Services
WC48-0753,BRITISH GAS BUSINESS,Premises,Utilities,42000-GAS-ENERGY COSTS,"4,694.84",Revenue,11/09/2014,Regeneration
WC48-0754,BRITISH GAS BUSINESS,Premises,Utilities,42000-GAS-ENERGY COSTS,"4,907.05",Revenue,11/09/2014,Regeneration
WC48-0755,BRITISH GAS BUSINESS,Premises,Utilities,42003-ELECTRICITY-ENERGY COSTS,"7,110.28",Revenue,18/09/2014,Neighbourhood Services
WC48-0756,BRITISH GAS BUSINESS,Premises,Utilities,42000-GAS-ENERGY COSTS,"9,061.97",Revenue,11/09/2014,Regeneration
WC48-0757,BRITISH GAS BUSINESS,Premises,Utilities,42000-GAS-ENERGY COSTS,"29,127.66",Revenue,29/09/2014,Regeneration
WC48-0758,BRITISH TELECOMMUNICATIONS LTD,Supplies & Services,Communications & Computing,63601-COSTS (NOT INTERNAL RECHARGES)-TELEPHONES,"8,266.40",Revenue,09/09/2014,Resources
WC48-0759,BRITISH TELECOMMUNICATIONS LTD,Supplies & Services,Communications & Computing,63601-COSTS (NOT INTERNAL RECHARGES)-TELEPHONES,"16,649.86",Revenue,09/09/2014,Resources
WC48-0760,BRITISH YOUTH COUNCIL,Employees,Training,30030-EXTERNAL TRAINING,960.00,Revenue,04/09/2014,Childrens
WC48-0761,BROADOAK CARE,Third Party Payments,Private Contractor Fees,73373-RESIDENTIAL & NURSING CARE PLACEMENTS,256.85,Revenue,19/09/2014,Social Care & Inclusion
WC48-0762,BROADOAK CARE,Third Party Payments,Private Contractor Fees,73373-RESIDENTIAL & NURSING CARE PLACEMENTS,258.38,Revenue,19/09/2014,Social Care & Inclusion
WC48-0763,BROADOAK CARE,Third Party Payments,Private Contractor Fees,73373-RESIDENTIAL & NURSING CARE PLACEMENTS,262.00,Revenue,19/09/2014,Social Care & Inclusion
WC48-0764,BROADOAK CARE,Third Party Payments,Private Contractor Fees,73373-RESIDENTIAL & NURSING CARE PLACEMENTS,262.02,Revenue,19/09/2014,Social Care & Inclusion
WC48-0765,BROADOAK CARE,Third Party Payments,Private Contractor Fees,73373-RESIDENTIAL & NURSING CARE PLACEMENTS,262.02,Revenue,19/09/2014,Social Care & Inclusion
WC48-0766,BROADOAK CARE,Third Party Payments,Private Contractor Fees,73373-RESIDENTIAL & NURSING CARE PLACEMENTS,264.32,Revenue,19/09/2014,Social Care & Inclusion
WC48-0767,BROADOAK CARE,Third Party Payments,Private Contractor Fees,73373-RESIDENTIAL & NURSING CARE PLACEMENTS,278.82,Revenue,19/09/2014,Social Care & Inclusion
WC48-0768,BROADOAK CARE,Third Party Payments,Private Contractor Fees,73373-RESIDENTIAL & NURSING CARE PLACEMENTS,279.62,Revenue,19/09/2014,Social Care & Inclusion
WC48-0769,BROADOAK CARE,Third Party Payments,Private Contractor Fees,73373-RESIDENTIAL & NURSING CARE PLACEMENTS,383.52,Revenue,19/09/2014,Social Care & Inclusion
WC48-0770,BROADOAK CARE,Third Party Payments,Private Contractor Fees,73373-RESIDENTIAL & NURSING CARE PLACEMENTS,383.52,Revenue,19/09/2014,Social Care & Inclusion
WC48-0771,BROADOAK CARE,Third Party Payments,Private Contractor Fees,73363-LONG OR SHORT STAY CARE,383.52,Revenue,19/09/2014,Social Care & Inclusion
WC48-0772,BROADOAK CARE,Third Party Payments,Private Contractor Fees,73373-RESIDENTIAL & NURSING CARE PLACEMENTS,383.52,Revenue,19/09/2014,Social Care & Inclusion
WC48-0773,BROADOAK CARE,Third Party Payments,Private Contractor Fees,73373-RESIDENTIAL & NURSING CARE PLACEMENTS,383.52,Revenue,19/09/2014,Social Care & Inclusion
WC48-0774,BROADOAK CARE,Third Party Payments,Private Contractor Fees,73373-RESIDENTIAL & NURSING CARE PLACEMENTS,383.52,Revenue,19/09/2014,Social Care & Inclusion
WC48-0775,BROADOAK CARE,Third Party Payments,Private Contractor Fees,73373-RESIDENTIAL & NURSING CARE PLACEMENTS,"1,534.08",Revenue,02/09/2014,Social Care & Inclusion
WC48-0776,BROADOAK CARE,Third Party Payments,Private Contractor Fees,73373-RESIDENTIAL & NURSING CARE PLACEMENTS,"1,534.08",Revenue,09/09/2014,Social Care & Inclusion
WC48-0777,BROADOAK CARE,Third Party Payments,Private Contractor Fees,73373-RESIDENTIAL & NURSING CARE PLACEMENTS,"3,561.33",Revenue,17/09/2014,Social Care & Inclusion
WC48-0778,BROADWAY LODGE,Third Party Payments,Private Contractor Fees,73373-RESIDENTIAL & NURSING CARE PLACEMENTS,"5,100.00",Revenue,16/09/2014,Social Care & Inclusion
WC48-0779,BROADWAY PHARMACY,Supplies & Services,Services,63102-CONSULTANTS FEES - CORPORATE,35.40,Revenue,22/09/2014,Neighbourhood Services
WC48-0780,BROADWAY PHARMACY,Supplies & Services,Services,63102-CONSULTANTS FEES - CORPORATE,112.50,Revenue,22/09/2014,Neighbourhood Services
WC48-0781,BROADWAY PHARMACY,Supplies & Services,Services,63102-CONSULTANTS FEES - CORPORATE,117.77,Revenue,22/09/2014,Neighbourhood Services
WC48-0782,BROADWAY PHARMACY,Supplies & Services,Services,63102-CONSULTANTS FEES - CORPORATE,"1,626.32",Revenue,02/09/2014,Neighbourhood Services
WC48-0783,BROOK DESIGN HARDWARE LTD T/A BROOKVENT,Supplies & Services,"Equip,Furniture & Materials",60500-GENERAL MATERIALS,586.80,Revenue,08/09/2014,Social Care & Inclusion
WC48-0784,BROOK DESIGN HARDWARE LTD T/A BROOKVENT,Supplies & Services,"Equip,Furniture & Materials",60500-GENERAL MATERIALS,"11,267.27",Revenue,01/09/2014,Social Care & Inclusion
WC48-0785,BROWNHILLS ASPHALT TARMACADAM,Premises,Premises-Repairs & Maintenance,"40000-REPAIRS,ALTERATIONS & MAINTENANCE-PREM","-1,412.00",Revenue,09/09/2014,Regeneration
WC48-0786,BROWNHILLS ASPHALT TARMACADAM,Premises,Premises-Repairs & Maintenance,"40000-REPAIRS,ALTERATIONS & MAINTENANCE-PREM",-350.00,Revenue,09/09/2014,Regeneration
WC48-0787,BROWNHILLS ASPHALT TARMACADAM,Premises,Premises-Repairs & Maintenance,"40000-REPAIRS,ALTERATIONS & MAINTENANCE-PREM",350.00,Revenue,01/09/2014,Regeneration
WC48-0788,BROWNHILLS ASPHALT TARMACADAM,Premises,Premises-Repairs & Maintenance,"40000-REPAIRS,ALTERATIONS & MAINTENANCE-PREM",350.00,Revenue,16/09/2014,Regeneration
WC48-0789,BROWNHILLS ASPHALT TARMACADAM,Third Party Payments,Private Contractor Fees,73025-PROFESSIONAL SERVICES-PRIV CONTRACTOR & OTHER AGENCIES,360.00,Revenue,22/09/2014,Regeneration
WC48-0790,BROWNHILLS ASPHALT TARMACADAM,Third Party Payments,Private Contractor Fees,73025-PROFESSIONAL SERVICES-PRIV CONTRACTOR & OTHER AGENCIES,365.00,Revenue,10/09/2014,Neighbourhood Services
WC48-0791,BROWNHILLS ASPHALT TARMACADAM,Premises,Premises-Repairs & Maintenance,"40000-REPAIRS,ALTERATIONS & MAINTENANCE-PREM",380.00,Revenue,09/09/2014,Neighbourhood Services
WC48-0792,BROWNHILLS ASPHALT TARMACADAM,Premises,Premises-Repairs & Maintenance,"40000-REPAIRS,ALTERATIONS & MAINTENANCE-PREM",500.00,Revenue,01/09/2014,Regeneration
WC48-0793,BROWNHILLS ASPHALT TARMACADAM,Third Party Payments,Private Contractor Fees,73025-PROFESSIONAL SERVICES-PRIV CONTRACTOR & OTHER AGENCIES,537.00,Revenue,04/09/2014,Regeneration
WC48-0794,BROWNHILLS ASPHALT TARMACADAM,Premises,Premises-Repairs & Maintenance,"40000-REPAIRS,ALTERATIONS & MAINTENANCE-PREM",650.00,Revenue,26/09/2014,Regeneration
WC48-0795,BROWNHILLS ASPHALT TARMACADAM,Capital,Capital,01006-SITE WORKS MAIN CONTRACTORS,840.00,Capital,09/09/2014,Neighbourhood Services
WC48-0796,BROWNHILLS ASPHALT TARMACADAM,Premises,Premises-Repairs & Maintenance,"40000-REPAIRS,ALTERATIONS & MAINTENANCE-PREM",850.00,Revenue,16/09/2014,Regeneration
WC48-0797,BROWNHILLS ASPHALT TARMACADAM,Capital,Capital,01006-SITE WORKS MAIN CONTRACTORS,870.00,Capital,09/09/2014,Neighbourhood Services
WC48-0798,BROWNHILLS ASPHALT TARMACADAM,Third Party Payments,Private Contractor Fees,73025-PROFESSIONAL SERVICES-PRIV CONTRACTOR & OTHER AGENCIES,"1,145.00",Revenue,18/09/2014,Regeneration
WC48-0799,BROWNHILLS ASPHALT TARMACADAM,Third Party Payments,Private Contractor Fees,73025-PROFESSIONAL SERVICES-PRIV CONTRACTOR & OTHER AGENCIES,"1,200.00",Revenue,01/09/2014,Neighbourhood Services
WC48-0800,BROWNHILLS ASPHALT TARMACADAM,Premises,Premises-Repairs & Maintenance,"40000-REPAIRS,ALTERATIONS & MAINTENANCE-PREM","1,200.00",Revenue,18/09/2014,Regeneration
WC48-0801,BROWNHILLS ASPHALT TARMACADAM,Premises,Premises-Repairs & Maintenance,"40000-REPAIRS,ALTERATIONS & MAINTENANCE-PREM","1,275.00",Revenue,01/09/2014,Neighbourhood Services
WC48-0802,BROWNHILLS ASPHALT TARMACADAM,Premises,Premises-Repairs & Maintenance,"40000-REPAIRS,ALTERATIONS & MAINTENANCE-PREM","1,412.00",Revenue,01/09/2014,Regeneration
WC48-0803,BROWNHILLS ASPHALT TARMACADAM,Premises,Premises-Repairs & Maintenance,"40000-REPAIRS,ALTERATIONS & MAINTENANCE-PREM","2,150.00",Revenue,03/09/2014,Neighbourhood Services
WC48-0804,BROWNHILLS ASPHALT TARMACADAM,Capital,Capital,01006-SITE WORKS MAIN CONTRACTORS,"2,150.00",Capital,19/09/2014,Childrens
WC48-0805,BROWNHILLS ASPHALT TARMACADAM,Capital,Capital,01006-SITE WORKS MAIN CONTRACTORS,"2,200.00",Capital,16/09/2014,Childrens
WC48-0806,BROWNHILLS ASPHALT TARMACADAM,Capital,Capital,01006-SITE WORKS MAIN CONTRACTORS,"2,370.00",Capital,16/09/2014,Childrens
WC48-0807,BROWNHILLS ASPHALT TARMACADAM,Capital,Capital,01006-SITE WORKS MAIN CONTRACTORS,"2,400.00",Capital,18/09/2014,Childrens
WC48-0808,BROWNHILLS ASPHALT TARMACADAM,Capital,Capital,01006-SITE WORKS MAIN CONTRACTORS,"2,450.00",Capital,18/09/2014,Childrens
WC48-0809,BROWNHILLS ASPHALT TARMACADAM,Premises,Premises-Repairs & Maintenance,"40000-REPAIRS,ALTERATIONS & MAINTENANCE-PREM","2,470.00",Revenue,04/09/2014,Regeneration
WC48-0810,BROWNHILLS ASPHALT TARMACADAM,Premises,Premises-Repairs & Maintenance,"40000-REPAIRS,ALTERATIONS & MAINTENANCE-PREM","2,490.00",Revenue,16/09/2014,Regeneration
WC48-0811,BROWNHILLS ASPHALT TARMACADAM,Third Party Payments,Private Contractor Fees,73025-PROFESSIONAL SERVICES-PRIV CONTRACTOR & OTHER AGENCIES,"3,235.00",Revenue,01/09/2014,Neighbourhood Services
WC48-0812,BROWNHILLS ASPHALT TARMACADAM,Capital,Capital,01006-SITE WORKS MAIN CONTRACTORS,"3,390.00",Capital,09/09/2014,Neighbourhood Services
WC48-0813,BROWNHILLS ASPHALT TARMACADAM,Third Party Payments,Private Contractor Fees,73025-PROFESSIONAL SERVICES-PRIV CONTRACTOR & OTHER AGENCIES,"3,760.00",Revenue,15/09/2014,Regeneration
WC48-0814,BROWNHILLS ASPHALT TARMACADAM,Capital,Capital,01006-SITE WORKS MAIN CONTRACTORS,"10,000.00",Capital,01/09/2014,Neighbourhood Services
WC48-0815,BROWNHILLS ASPHALT TARMACADAM,Capital,Capital,01006-SITE WORKS MAIN CONTRACTORS,"17,117.22",Capital,16/09/2014,Childrens
WC48-0816,BROWNHILLS ASPHALT TARMACADAM,Capital,Capital,01006-SITE WORKS MAIN CONTRACTORS,"23,506.00",Capital,01/09/2014,Childrens
WC48-0817,BROWNHILLS ASPHALT TARMACADAM,Capital,Capital,01006-SITE WORKS MAIN CONTRACTORS,"23,971.00",Capital,16/09/2014,Childrens
WC48-0818,BROWNHILLS COMMUNITY ASSOCIATION,Employees,Other Staff Costs,32000-MISC FEES AND EXPENSES,720.00,Revenue,16/09/2014,Childrens
WC48-0819,BROWNHILLS COMMUNITY ASSOCIATION,Third Party Payments,Grants to Other Orgs,66502-TOP UP FUNDING -GRANTS TO SCHOOLS,"1,080.00",Revenue,25/09/2014,Childrens
WC48-0820,BROWNHILLS COMMUNITY ASSOCIATION,Supplies & Services,Other Supplies & Services,62515-MISCELLANEOUS SUPPLIES,"1,956.57",Revenue,22/09/2014,Neighbourhood Services
WC48-0821,BROWNHILLS COMMUNITY ASSOCIATION,Third Party Payments,Grants to Other Orgs,66502-TOP UP FUNDING -GRANTS TO SCHOOLS,"2,062.40",Revenue,08/09/2014,Childrens
WC48-0822,BROWNHILLS COMMUNITY ASSOCIATION,Employees,Other Staff Costs,32000-MISC FEES AND EXPENSES,"6,000.00",Revenue,12/09/2014,Childrens
WC48-0823,BROWNHILLS COMMUNITY ASSOCIATION,Third Party Payments,Grants to Other Orgs,66505-OTHER-GRANTS TO OTHER ORGS,"11,983.92",Revenue,29/09/2014,Childrens
WC48-0824,BROWNHILLS LOCAL COMMITTEE,Supplies & Services,Other Supplies & Services,63128-HIRE OF ROOM-SERVICES-FEES,552.00,Revenue,09/09/2014,Neighbourhood Services
WC48-0825,REDACTED,Transfer Payments,Transfer Payments,76422-DIRECT PAYMENTS TO SOCIAL SERVICES CLIENTS,"1,806.25",Revenue,17/09/2014,Social Care & Inclusion
WC48-0826,REDACTED,Supplies & Services,Services,63000-PROFESSIONAL FEES AND SERVICES,550.00,Revenue,23/09/2014,Neighbourhood Services
WC48-0827,REDACTED,Supplies & Services,Services,63000-PROFESSIONAL FEES AND SERVICES,"2,081.25",Revenue,23/09/2014,Neighbourhood Services
WC48-0828,B-SURE SECURITY SERVICES LTD,Premises,Premises-Repairs & Maintenance,"40000-REPAIRS,ALTERATIONS & MAINTENANCE-PREM",435.54,Revenue,18/09/2014,Regeneration
WC48-0829,BT PLC,Supplies & Services,Communications & Computing,63602-COST OF RENTAL-TELEPHONES,199.30,Revenue,25/09/2014,Childrens
WC48-0830,BT PLC,Supplies & Services,Communications & Computing,63603-COST OF CALLS-TELEPHONES,536.55,Revenue,25/09/2014,Childrens
WC48-0831,BT PLC,Supplies & Services,Communications & Computing,63603-COST OF CALLS-TELEPHONES,994.00,Revenue,02/09/2014,Resources
WC48-0832,BT PLC,Supplies & Services,Communications & Computing,63603-COST OF CALLS-TELEPHONES,994.00,Revenue,26/09/2014,Resources
WC48-0833,BUDS LTD T/A CATHERINE HOUSE DAY NURSERY SCHOOLS,Third Party Payments,Grants to Other Orgs,66505-OTHER-GRANTS TO OTHER ORGS,"1,334.97",Revenue,23/09/2014,Childrens
WC48-0834,BULLEYS CHARTERED SURVEYORS,Premises,Rates,44000-RATES,"3,541.43",Revenue,04/09/2014,Childrens
WC48-0835,BUPA CARE HOMES (CFHCARE) LTD,Third Party Payments,Private Contractor Fees,73373-RESIDENTIAL & NURSING CARE PLACEMENTS,"1,458.00",Revenue,16/09/2014,Social Care & Inclusion
WC48-0836,BUPA CARE HOMES (CFHCARE) LTD,Third Party Payments,Private Contractor Fees,73373-RESIDENTIAL & NURSING CARE PLACEMENTS,"1,494.00",Revenue,16/09/2014,Social Care & Inclusion
WC48-0837,BUPA CARE HOMES (CFHCARE) LTD,Third Party Payments,Private Contractor Fees,73373-RESIDENTIAL & NURSING CARE PLACEMENTS,"1,544.44",Revenue,16/09/2014,Social Care & Inclusion
WC48-0838,BUPA CARE HOMES (CFHCARE) LTD,Third Party Payments,Private Contractor Fees,73373-RESIDENTIAL & NURSING CARE PLACEMENTS,"1,708.84",Revenue,02/09/2014,Social Care & Inclusion
WC48-0839,BUPA CARE HOMES (CFHCARE) LTD,Third Party Payments,Private Contractor Fees,73373-RESIDENTIAL & NURSING CARE PLACEMENTS,"1,708.84",Revenue,16/09/2014,Social Care & Inclusion
WC48-0840,BUPA CARE HOMES (CFHCARE) LTD,Third Party Payments,Private Contractor Fees,73373-RESIDENTIAL & NURSING CARE PLACEMENTS,"3,060.92",Revenue,16/09/2014,Social Care & Inclusion
WC48-0841,BUPA HOME HEALTHCARE,Supplies & Services,Services,63000-PROFESSIONAL FEES AND SERVICES,975.36,Revenue,01/09/2014,Childrens
WC48-0842,BUPA HOME HEALTHCARE,Supplies & Services,Services,63000-PROFESSIONAL FEES AND SERVICES,"1,706.88",Revenue,01/09/2014,Childrens
WC48-0843,BUPA HOME HEALTHCARE,Supplies & Services,Services,63000-PROFESSIONAL FEES AND SERVICES,"2,418.08",Revenue,01/09/2014,Childrens
WC48-0844,BURTON ADDICTION CENTRE,Supplies & Services,Services,63000-PROFESSIONAL FEES AND SERVICES,731.00,Revenue,04/09/2014,Neighbourhood Services
WC48-0845,BURTON ADDICTION CENTRE,Supplies & Services,Services,63000-PROFESSIONAL FEES AND SERVICES,"1,279.25",Revenue,04/09/2014,Neighbourhood Services
WC48-0846,BUSH HOME LTD,Third Party Payments,Private Contractor Fees,73373-RESIDENTIAL & NURSING CARE PLACEMENTS,438.32,Revenue,02/09/2014,Social Care & Inclusion
WC48-0847,BUSH HOME LTD,Third Party Payments,Private Contractor Fees,73373-RESIDENTIAL & NURSING CARE PLACEMENTS,517.03,Revenue,02/09/2014,Social Care & Inclusion
WC48-0848,BUSH HOME LTD,Third Party Payments,Private Contractor Fees,73373-RESIDENTIAL & NURSING CARE PLACEMENTS,767.06,Revenue,02/09/2014,Social Care & Inclusion
WC48-0849,BUSH HOME LTD,Third Party Payments,Private Contractor Fees,73373-RESIDENTIAL & NURSING CARE PLACEMENTS,834.51,Revenue,02/09/2014,Social Care & Inclusion
WC48-0850,BUSH HOME LTD,Third Party Payments,Private Contractor Fees,73373-RESIDENTIAL & NURSING CARE PLACEMENTS,"1,458.16",Revenue,02/09/2014,Social Care & Inclusion
WC48-0851,BUSH HOME LTD,Third Party Payments,Private Contractor Fees,73373-RESIDENTIAL & NURSING CARE PLACEMENTS,"1,458.16",Revenue,02/09/2014,Social Care & Inclusion
WC48-0852,BUSH HOME LTD,Third Party Payments,Private Contractor Fees,73373-RESIDENTIAL & NURSING CARE PLACEMENTS,"1,458.16",Revenue,24/09/2014,Social Care & Inclusion
WC48-0853,BUSH HOME LTD,Third Party Payments,Private Contractor Fees,73373-RESIDENTIAL & NURSING CARE PLACEMENTS,"1,458.16",Revenue,24/09/2014,Social Care & Inclusion
WC48-0854,BUSH HOME LTD,Third Party Payments,Private Contractor Fees,73373-RESIDENTIAL & NURSING CARE PLACEMENTS,"1,458.16",Revenue,24/09/2014,Social Care & Inclusion
WC48-0855,BUSH HOME LTD,Third Party Payments,Private Contractor Fees,73373-RESIDENTIAL & NURSING CARE PLACEMENTS,"1,460.40",Revenue,02/09/2014,Social Care & Inclusion
WC48-0856,BUSH HOME LTD,Third Party Payments,Private Contractor Fees,73373-RESIDENTIAL & NURSING CARE PLACEMENTS,"1,460.40",Revenue,02/09/2014,Social Care & Inclusion
WC48-0857,BUSH HOME LTD,Third Party Payments,Private Contractor Fees,73373-RESIDENTIAL & NURSING CARE PLACEMENTS,"1,460.40",Revenue,24/09/2014,Social Care & Inclusion
WC48-0858,BUSH HOME LTD,Third Party Payments,Private Contractor Fees,73373-RESIDENTIAL & NURSING CARE PLACEMENTS,"1,460.40",Revenue,24/09/2014,Social Care & Inclusion
WC48-0859,BUSH HOME LTD,Third Party Payments,Private Contractor Fees,73373-RESIDENTIAL & NURSING CARE PLACEMENTS,"1,513.64",Revenue,02/09/2014,Social Care & Inclusion
WC48-0860,BUSH HOME LTD,Third Party Payments,Private Contractor Fees,73373-RESIDENTIAL & NURSING CARE PLACEMENTS,"1,513.64",Revenue,02/09/2014,Social Care & Inclusion
WC48-0861,BUSH HOME LTD,Third Party Payments,Private Contractor Fees,73373-RESIDENTIAL & NURSING CARE PLACEMENTS,"1,513.64",Revenue,24/09/2014,Social Care & Inclusion
WC48-0862,BUSH HOME LTD,Third Party Payments,Private Contractor Fees,73373-RESIDENTIAL & NURSING CARE PLACEMENTS,"1,513.68",Revenue,24/09/2014,Social Care & Inclusion
WC48-0863,BUSH HOME LTD,Third Party Payments,Private Contractor Fees,73373-RESIDENTIAL & NURSING CARE PLACEMENTS,"1,534.12",Revenue,02/09/2014,Social Care & Inclusion
WC48-0864,BUSH HOME LTD,Third Party Payments,Private Contractor Fees,73373-RESIDENTIAL & NURSING CARE PLACEMENTS,"1,534.12",Revenue,02/09/2014,Social Care & Inclusion
WC48-0865,BUSH HOME LTD,Third Party Payments,Private Contractor Fees,73373-RESIDENTIAL & NURSING CARE PLACEMENTS,"1,534.12",Revenue,02/09/2014,Social Care & Inclusion
WC48-0866,BUSH HOME LTD,Third Party Payments,Private Contractor Fees,73373-RESIDENTIAL & NURSING CARE PLACEMENTS,"1,534.12",Revenue,02/09/2014,Social Care & Inclusion
WC48-0867,BUSH HOME LTD,Third Party Payments,Private Contractor Fees,73373-RESIDENTIAL & NURSING CARE PLACEMENTS,"1,534.12",Revenue,02/09/2014,Social Care & Inclusion
WC48-0868,BUSH HOME LTD,Third Party Payments,Private Contractor Fees,73373-RESIDENTIAL & NURSING CARE PLACEMENTS,"1,534.12",Revenue,02/09/2014,Social Care & Inclusion
WC48-0869,BUSH HOME LTD,Third Party Payments,Private Contractor Fees,73373-RESIDENTIAL & NURSING CARE PLACEMENTS,"1,534.12",Revenue,02/09/2014,Social Care & Inclusion
WC48-0870,BUSH HOME LTD,Third Party Payments,Private Contractor Fees,73373-RESIDENTIAL & NURSING CARE PLACEMENTS,"1,534.12",Revenue,02/09/2014,Social Care & Inclusion
WC48-0871,BUSH HOME LTD,Third Party Payments,Private Contractor Fees,73373-RESIDENTIAL & NURSING CARE PLACEMENTS,"1,534.12",Revenue,02/09/2014,Social Care & Inclusion
WC48-0872,BUSH HOME LTD,Third Party Payments,Private Contractor Fees,73373-RESIDENTIAL & NURSING CARE PLACEMENTS,"1,534.12",Revenue,24/09/2014,Social Care & Inclusion
WC48-0873,BUSH HOME LTD,Third Party Payments,Private Contractor Fees,73373-RESIDENTIAL & NURSING CARE PLACEMENTS,"1,534.12",Revenue,24/09/2014,Social Care & Inclusion
WC48-0874,BUSH HOME LTD,Third Party Payments,Private Contractor Fees,73373-RESIDENTIAL & NURSING CARE PLACEMENTS,"1,534.12",Revenue,24/09/2014,Social Care & Inclusion
WC48-0875,BUSH HOME LTD,Third Party Payments,Private Contractor Fees,73373-RESIDENTIAL & NURSING CARE PLACEMENTS,"1,534.12",Revenue,24/09/2014,Social Care & Inclusion
WC48-0876,BUSH HOME LTD,Third Party Payments,Private Contractor Fees,73373-RESIDENTIAL & NURSING CARE PLACEMENTS,"1,534.12",Revenue,24/09/2014,Social Care & Inclusion
WC48-0877,BUSH HOME LTD,Third Party Payments,Private Contractor Fees,73373-RESIDENTIAL & NURSING CARE PLACEMENTS,"1,534.12",Revenue,24/09/2014,Social Care & Inclusion
WC48-0878,BUSH HOME LTD,Third Party Payments,Private Contractor Fees,73373-RESIDENTIAL & NURSING CARE PLACEMENTS,"1,534.12",Revenue,24/09/2014,Social Care & Inclusion
WC48-0879,BUSH HOME LTD,Third Party Payments,Private Contractor Fees,73373-RESIDENTIAL & NURSING CARE PLACEMENTS,"1,534.12",Revenue,24/09/2014,Social Care & Inclusion
WC48-0880,BUSH HOME LTD,Third Party Payments,Private Contractor Fees,73373-RESIDENTIAL & NURSING CARE PLACEMENTS,"1,534.12",Revenue,24/09/2014,Social Care & Inclusion
WC48-0881,BUSH HOME LTD,Third Party Payments,Private Contractor Fees,73373-RESIDENTIAL & NURSING CARE PLACEMENTS,"1,557.60",Revenue,02/09/2014,Social Care & Inclusion
WC48-0882,BUSH HOME LTD,Third Party Payments,Private Contractor Fees,73373-RESIDENTIAL & NURSING CARE PLACEMENTS,"1,557.60",Revenue,24/09/2014,Social Care & Inclusion
WC48-0883,BUSH HOME LTD,Third Party Payments,Private Contractor Fees,73373-RESIDENTIAL & NURSING CARE PLACEMENTS,"2,301.18",Revenue,02/09/2014,Social Care & Inclusion
WC48-0884,BUSY BEES AT ST MATTHEWS,Third Party Payments,Grants to Other Orgs,66505-OTHER-GRANTS TO OTHER ORGS,667.49,Revenue,23/09/2014,Childrens
WC48-0885,BUSY BEES CHILDCARE LTD,Third Party Payments,Grants to Other Orgs,66505-OTHER-GRANTS TO OTHER ORGS,667.49,Revenue,23/09/2014,Childrens
WC48-0886,BY THE BRIDGE,Third Party Payments,Private Contractor Fees,74037-INDEPENDENT FOSTER CARE-OTH AGENCY PROVISION,"4,157.14",Revenue,22/09/2014,Childrens
WC48-0887,BY THE BRIDGE,Third Party Payments,Private Contractor Fees,74037-INDEPENDENT FOSTER CARE-OTH AGENCY PROVISION,"4,295.71",Revenue,01/09/2014,Childrens
WC48-0888,C & D BUSINESS SOLUTIONS LTD,Supplies & Services,Services,63000-PROFESSIONAL FEES AND SERVICES,720.00,Revenue,01/09/2014,Childrens
WC48-0889,C & D BUSINESS SOLUTIONS LTD,Supplies & Services,Services,63000-PROFESSIONAL FEES AND SERVICES,720.00,Revenue,16/09/2014,Childrens
WC48-0890,C & V ORCHARD MANOR LTD,Third Party Payments,Private Contractor Fees,73373-RESIDENTIAL & NURSING CARE PLACEMENTS,"1,439.80",Revenue,02/09/2014,Social Care & Inclusion
WC48-0891,C & V ORCHARD MANOR LTD,Third Party Payments,Private Contractor Fees,73373-RESIDENTIAL & NURSING CARE PLACEMENTS,"1,439.80",Revenue,02/09/2014,Social Care & Inclusion
WC48-0892,C & V ORCHARD MANOR LTD,Third Party Payments,Private Contractor Fees,73373-RESIDENTIAL & NURSING CARE PLACEMENTS,"1,439.80",Revenue,24/09/2014,Social Care & Inclusion
WC48-0893,C & V ORCHARD MANOR LTD,Third Party Payments,Private Contractor Fees,73373-RESIDENTIAL & NURSING CARE PLACEMENTS,"1,439.81",Revenue,02/09/2014,Social Care & Inclusion
WC48-0894,C & V ORCHARD MANOR LTD,Third Party Payments,Private Contractor Fees,73373-RESIDENTIAL & NURSING CARE PLACEMENTS,"1,439.81",Revenue,24/09/2014,Social Care & Inclusion
WC48-0895,C & V ORCHARD MANOR LTD,Third Party Payments,Private Contractor Fees,73373-RESIDENTIAL & NURSING CARE PLACEMENTS,"1,460.40",Revenue,02/09/2014,Social Care & Inclusion
WC48-0896,C & V ORCHARD MANOR LTD,Third Party Payments,Private Contractor Fees,73373-RESIDENTIAL & NURSING CARE PLACEMENTS,"1,460.40",Revenue,24/09/2014,Social Care & Inclusion
WC48-0897,C & V ORCHARD MANOR LTD,Third Party Payments,Private Contractor Fees,73373-RESIDENTIAL & NURSING CARE PLACEMENTS,"1,531.76",Revenue,02/09/2014,Social Care & Inclusion
WC48-0898,C & V ORCHARD MANOR LTD,Third Party Payments,Private Contractor Fees,73373-RESIDENTIAL & NURSING CARE PLACEMENTS,"1,531.76",Revenue,02/09/2014,Social Care & Inclusion
WC48-0899,C & V ORCHARD MANOR LTD,Third Party Payments,Private Contractor Fees,73373-RESIDENTIAL & NURSING CARE PLACEMENTS,"1,531.76",Revenue,24/09/2014,Social Care & Inclusion
WC48-0900,C & V ORCHARD MANOR LTD,Third Party Payments,Private Contractor Fees,73373-RESIDENTIAL & NURSING CARE PLACEMENTS,"1,531.76",Revenue,24/09/2014,Social Care & Inclusion
WC48-0901,C & V ORCHARD MANOR LTD,Third Party Payments,Private Contractor Fees,73373-RESIDENTIAL & NURSING CARE PLACEMENTS,"1,534.12",Revenue,02/09/2014,Social Care & Inclusion
WC48-0902,C & V ORCHARD MANOR LTD,Third Party Payments,Private Contractor Fees,73373-RESIDENTIAL & NURSING CARE PLACEMENTS,"1,534.12",Revenue,24/09/2014,Social Care & Inclusion
WC48-0903,C & V ORCHARD RESIDENTIAL LTD,Third Party Payments,Private Contractor Fees,73373-RESIDENTIAL & NURSING CARE PLACEMENTS,781.16,Revenue,02/09/2014,Social Care & Inclusion
WC48-0904,C & V ORCHARD RESIDENTIAL LTD,Third Party Payments,Private Contractor Fees,73373-RESIDENTIAL & NURSING CARE PLACEMENTS,986.31,Revenue,24/09/2014,Social Care & Inclusion
WC48-0905,C & V ORCHARD RESIDENTIAL LTD,Third Party Payments,Private Contractor Fees,73373-RESIDENTIAL & NURSING CARE PLACEMENTS,"1,196.70",Revenue,02/09/2014,Social Care & Inclusion
WC48-0906,C & V ORCHARD RESIDENTIAL LTD,Third Party Payments,Private Contractor Fees,73373-RESIDENTIAL & NURSING CARE PLACEMENTS,"1,369.75",Revenue,24/09/2014,Social Care & Inclusion
WC48-0907,C & V ORCHARD RESIDENTIAL LTD,Third Party Payments,Private Contractor Fees,73373-RESIDENTIAL & NURSING CARE PLACEMENTS,"1,408.25",Revenue,02/09/2014,Social Care & Inclusion
WC48-0908,C & V ORCHARD RESIDENTIAL LTD,Third Party Payments,Private Contractor Fees,73373-RESIDENTIAL & NURSING CARE PLACEMENTS,"1,458.16",Revenue,24/09/2014,Social Care & Inclusion
WC48-0909,C & V ORCHARD RESIDENTIAL LTD,Third Party Payments,Private Contractor Fees,73373-RESIDENTIAL & NURSING CARE PLACEMENTS,"1,460.40",Revenue,02/09/2014,Social Care & Inclusion
WC48-0910,C & V ORCHARD RESIDENTIAL LTD,Third Party Payments,Private Contractor Fees,73373-RESIDENTIAL & NURSING CARE PLACEMENTS,"1,531.00",Revenue,02/09/2014,Social Care & Inclusion
WC48-0911,C & V ORCHARD RESIDENTIAL LTD,Third Party Payments,Private Contractor Fees,73373-RESIDENTIAL & NURSING CARE PLACEMENTS,"1,531.76",Revenue,02/09/2014,Social Care & Inclusion
WC48-0912,C & V ORCHARD RESIDENTIAL LTD,Third Party Payments,Private Contractor Fees,73373-RESIDENTIAL & NURSING CARE PLACEMENTS,"1,531.76",Revenue,02/09/2014,Social Care & Inclusion
WC48-0913,C & V ORCHARD RESIDENTIAL LTD,Third Party Payments,Private Contractor Fees,73373-RESIDENTIAL & NURSING CARE PLACEMENTS,"1,531.76",Revenue,02/09/2014,Social Care & Inclusion
WC48-0914,C & V ORCHARD RESIDENTIAL LTD,Third Party Payments,Private Contractor Fees,73373-RESIDENTIAL & NURSING CARE PLACEMENTS,"1,534.12",Revenue,02/09/2014,Social Care & Inclusion
WC48-0915,C & V ORCHARD RESIDENTIAL LTD,Third Party Payments,Private Contractor Fees,73373-RESIDENTIAL & NURSING CARE PLACEMENTS,"1,534.12",Revenue,02/09/2014,Social Care & Inclusion
WC48-0916,C & V ORCHARD RESIDENTIAL LTD,Third Party Payments,Private Contractor Fees,73373-RESIDENTIAL & NURSING CARE PLACEMENTS,"1,534.12",Revenue,02/09/2014,Social Care & Inclusion
WC48-0917,C & V ORCHARD RESIDENTIAL LTD,Third Party Payments,Private Contractor Fees,73373-RESIDENTIAL & NURSING CARE PLACEMENTS,"1,534.12",Revenue,02/09/2014,Social Care & Inclusion
WC48-0918,C & V ORCHARD RESIDENTIAL LTD,Third Party Payments,Private Contractor Fees,73373-RESIDENTIAL & NURSING CARE PLACEMENTS,"1,534.12",Revenue,24/09/2014,Social Care & Inclusion
WC48-0919,C & V ORCHARD RESIDENTIAL LTD,Third Party Payments,Private Contractor Fees,73373-RESIDENTIAL & NURSING CARE PLACEMENTS,"2,355.97",Revenue,24/09/2014,Social Care & Inclusion
WC48-0920,C & V ORCHARD RESIDENTIAL LTD,Third Party Payments,Private Contractor Fees,73373-RESIDENTIAL & NURSING CARE PLACEMENTS,"4,602.36",Revenue,24/09/2014,Social Care & Inclusion
WC48-0921,C & V ORCHARD RESIDENTIAL LTD,Third Party Payments,Private Contractor Fees,73373-RESIDENTIAL & NURSING CARE PLACEMENTS,"5,841.60",Revenue,24/09/2014,Social Care & Inclusion
WC48-0922,C & V ORCHARD RESIDENTIAL LTD,Third Party Payments,Private Contractor Fees,73373-RESIDENTIAL & NURSING CARE PLACEMENTS,"6,136.48",Revenue,24/09/2014,Social Care & Inclusion
WC48-0923,C & V ORCHARD RESIDENTIAL LTD,Third Party Payments,Private Contractor Fees,73373-RESIDENTIAL & NURSING CARE PLACEMENTS,"7,823.57",Revenue,24/09/2014,Social Care & Inclusion
WC48-0924,C ART ART TRANSPORT LTD,Third Party Payments,Private Contractor Fees,73032-TRANSPORTATION-PRIV CONTRACTOR FEES,250.00,Revenue,23/09/2014,Neighbourhood Services
WC48-0925,C ART ART TRANSPORT LTD,Third Party Payments,Private Contractor Fees,73032-TRANSPORTATION-PRIV CONTRACTOR FEES,265.00,Revenue,23/09/2014,Neighbourhood Services
WC48-0926,C ART ART TRANSPORT LTD,Third Party Payments,Private Contractor Fees,73032-TRANSPORTATION-PRIV CONTRACTOR FEES,265.00,Revenue,24/09/2014,Neighbourhood Services
WC48-0927,C ART ART TRANSPORT LTD,Third Party Payments,Private Contractor Fees,73032-TRANSPORTATION-PRIV CONTRACTOR FEES,303.00,Revenue,19/09/2014,Neighbourhood Services
WC48-0928,C ART ART TRANSPORT LTD,Supplies & Services,"Equip,Furniture & Materials",62527-VISUAL ARTS,935.00,Revenue,01/09/2014,Neighbourhood Services
WC48-0929,C ART ART TRANSPORT LTD,Premises,Premises-Repairs & Maintenance,"40000-REPAIRS,ALTERATIONS & MAINTENANCE-PREM","1,073.00",Revenue,08/09/2014,Regeneration
WC48-0930,REDACTED,Supplies & Services,Other Supplies & Services,62515-MISCELLANEOUS SUPPLIES,"4,267.08",Revenue,15/09/2014,Childrens
WC48-0931,REDACTED,Third Party Payments,Private Contractor Fees,74006-HOLIDAY/CHRISTMAS ALLOWANCE-FOSTER CARERS-OTH AGENCY PROVISION,"6,459.30",Revenue,15/09/2014,Childrens
WC48-0932,REDACTED,Supplies & Services,Other Supplies & Services,62515-MISCELLANEOUS SUPPLIES,"1,428.44",Revenue,15/09/2014,Childrens
WC48-0933,REDACTED,Third Party Payments,Private Contractor Fees,74006-HOLIDAY/CHRISTMAS ALLOWANCE-FOSTER CARERS-OTH AGENCY PROVISION,"1,435.40",Revenue,15/09/2014,Childrens
WC48-0934,C P DAVIDSON & SONS LTD,Supplies & Services,"Equip,Furniture & Materials",60514-MATERIALS TO STORES,292.25,Revenue,05/09/2014,Neighbourhood Services
WC48-0935,C P DAVIDSON & SONS LTD,Supplies & Services,"Equip,Furniture & Materials",60500-GENERAL MATERIALS,478.26,Revenue,19/09/2014,Neighbourhood Services
WC48-0936,C P DAVIDSON & SONS LTD,Third Party Payments,Private Contractor Fees,73025-PROFESSIONAL SERVICES-PRIV CONTRACTOR & OTHER AGENCIES,"1,506.72",Revenue,12/09/2014,Neighbourhood Services
WC48-0937,C P DAVIDSON & SONS LTD,Supplies & Services,"Equip,Furniture & Materials",60500-GENERAL MATERIALS,"1,611.80",Revenue,23/09/2014,Neighbourhood Services
WC48-0938,REDACTED,Supplies & Services,Services,63000-PROFESSIONAL FEES AND SERVICES,330.00,Revenue,18/09/2014,Neighbourhood Services
WC48-0939,CADLINE LTD,Supplies & Services,Communications & Computing,63800-COMPUTER EQUIPMENT AND SUPPLIES,"3,518.00",Revenue,15/09/2014,Resources
WC48-0940,CALDERFIELDS GOLF & COUNTRY CLUB,Supplies & Services,Other Supplies & Services,64001-COURSE/CONFERENCE EXPENSES,"1,109.60",Revenue,03/09/2014,Neighbourhood Services
WC48-0941,CALDMORE AREA HOUSING ASS LTD,Third Party Payments,Private Contractor Fees,73373-RESIDENTIAL & NURSING CARE PLACEMENTS,265.43,Revenue,02/09/2014,Social Care & Inclusion
WC48-0942,CALDMORE AREA HOUSING ASS LTD,Premises,Rent,43000-RENTS,343.09,Revenue,04/09/2014,Social Care & Inclusion
WC48-0943,CALDMORE AREA HOUSING ASS LTD,Third Party Payments,Private Contractor Fees,73373-RESIDENTIAL & NURSING CARE PLACEMENTS,353.90,Revenue,02/09/2014,Social Care & Inclusion
WC48-0944,CALDMORE AREA HOUSING ASS LTD,Third Party Payments,Private Contractor Fees,73374-SUPPORTED & OTHER ACCOMMODATION,404.24,Revenue,09/09/2014,Social Care & Inclusion
WC48-0945,CALDMORE AREA HOUSING ASS LTD,Third Party Payments,Private Contractor Fees,73373-RESIDENTIAL & NURSING CARE PLACEMENTS,442.38,Revenue,24/09/2014,Social Care & Inclusion
WC48-0946,CALDMORE AREA HOUSING ASS LTD,Third Party Payments,Private Contractor Fees,73374-SUPPORTED & OTHER ACCOMMODATION,505.30,Revenue,09/09/2014,Social Care & Inclusion
WC48-0947,CALDMORE AREA HOUSING ASS LTD,Third Party Payments,Private Contractor Fees,73374-SUPPORTED & OTHER ACCOMMODATION,576.80,Revenue,09/09/2014,Social Care & Inclusion
WC48-0948,CALDMORE AREA HOUSING ASS LTD,Third Party Payments,Private Contractor Fees,73374-SUPPORTED & OTHER ACCOMMODATION,576.80,Revenue,09/09/2014,Social Care & Inclusion
WC48-0949,CALDMORE AREA HOUSING ASS LTD,Third Party Payments,Private Contractor Fees,73374-SUPPORTED & OTHER ACCOMMODATION,576.80,Revenue,09/09/2014,Social Care & Inclusion
WC48-0950,CALDMORE AREA HOUSING ASS LTD,Third Party Payments,Private Contractor Fees,73374-SUPPORTED & OTHER ACCOMMODATION,576.80,Revenue,09/09/2014,Social Care & Inclusion
WC48-0951,CALDMORE AREA HOUSING ASS LTD,Third Party Payments,Private Contractor Fees,73374-SUPPORTED & OTHER ACCOMMODATION,576.80,Revenue,09/09/2014,Social Care & Inclusion
WC48-0952,CALDMORE AREA HOUSING ASS LTD,Third Party Payments,Private Contractor Fees,73374-SUPPORTED & OTHER ACCOMMODATION,576.80,Revenue,09/09/2014,Social Care & Inclusion
WC48-0953,CALDMORE AREA HOUSING ASS LTD,Third Party Payments,Private Contractor Fees,73374-SUPPORTED & OTHER ACCOMMODATION,576.80,Revenue,09/09/2014,Social Care & Inclusion
WC48-0954,CALDMORE AREA HOUSING ASS LTD,Third Party Payments,Private Contractor Fees,73374-SUPPORTED & OTHER ACCOMMODATION,576.80,Revenue,09/09/2014,Social Care & Inclusion
WC48-0955,CALDMORE AREA HOUSING ASS LTD,Third Party Payments,Private Contractor Fees,73374-SUPPORTED & OTHER ACCOMMODATION,576.80,Revenue,09/09/2014,Social Care & Inclusion
WC48-0956,CALDMORE AREA HOUSING ASS LTD,Third Party Payments,Private Contractor Fees,73374-SUPPORTED & OTHER ACCOMMODATION,576.80,Revenue,10/09/2014,Social Care & Inclusion
WC48-0957,CALDMORE AREA HOUSING ASS LTD,Third Party Payments,Private Contractor Fees,73374-SUPPORTED & OTHER ACCOMMODATION,576.80,Revenue,10/09/2014,Social Care & Inclusion
WC48-0958,CALDMORE AREA HOUSING ASS LTD,Third Party Payments,Private Contractor Fees,73373-RESIDENTIAL & NURSING CARE PLACEMENTS,707.81,Revenue,24/09/2014,Social Care & Inclusion
WC48-0959,CALDMORE AREA HOUSING ASS LTD,Third Party Payments,Private Contractor Fees,73365-BLOCK GROSS-SUPPORTING PEOPLE,"25,187.54",Revenue,03/09/2014,Social Care & Inclusion
WC48-0960,CALDMORE VILLAGE FESTIVAL GROUP,Premises,Premises-Repairs & Maintenance,41090-LANDSCAPING GROUNDS MAINTENANCE,"1,500.00",Revenue,22/09/2014,Neighbourhood Services
WC48-0961,REDACTED,Third Party Payments,Private Contractor Fees,74006-HOLIDAY/CHRISTMAS ALLOWANCE-FOSTER CARERS-OTH AGENCY PROVISION,303.89,Revenue,01/09/2014,Childrens
WC48-0962,REDACTED,Transfer Payments,Transfer Payments,76422-DIRECT PAYMENTS TO SOCIAL SERVICES CLIENTS,359.63,Revenue,17/09/2014,Childrens
WC48-0963,CANAL & RIVER TRUST,Premises,Rent,43000-RENTS,"1,302.75",Revenue,09/09/2014,Neighbourhood Services
WC48-0964,CAPITA BUSINESS SERVICES LTD 001,Employees,Training,30030-EXTERNAL TRAINING,"2,000.00",Revenue,19/09/2014,Childrens
WC48-0965,CAPITA EDUCATION RESOURCING,Supplies & Services,Services,63000-PROFESSIONAL FEES AND SERVICES,406.35,Revenue,03/09/2014,Resources
WC48-0966,CAPITA TREASURY SOLUTIONS LIMITED,Central,Leasing,60030-OPERATING LEASES-EQUIPMENT-CORP USE ONLY,"19,695.00",Revenue,09/09/2014,Resources
WC48-0967,CAPSTONE FOSTER CARE (SOUTH EAST) LIMITED,Third Party Payments,Private Contractor Fees,74037-INDEPENDENT FOSTER CARE-OTH AGENCY PROVISION,594.45,Revenue,01/09/2014,Childrens
WC48-0968,CAPSTONE FOSTER CARE (SOUTH EAST) LIMITED,Third Party Payments,Private Contractor Fees,74037-INDEPENDENT FOSTER CARE-OTH AGENCY PROVISION,"2,764.20",Revenue,26/09/2014,Childrens
WC48-0969,CAPSTONE FOSTER CARE (SOUTH EAST) LIMITED,Third Party Payments,Private Contractor Fees,74037-INDEPENDENT FOSTER CARE-OTH AGENCY PROVISION,"2,764.20",Revenue,26/09/2014,Childrens
WC48-0970,CAPSTONE FOSTER CARE (SOUTH EAST) LIMITED,Third Party Payments,Private Contractor Fees,74037-INDEPENDENT FOSTER CARE-OTH AGENCY PROVISION,"2,856.34",Revenue,01/09/2014,Childrens
WC48-0971,CAPSTONE FOSTER CARE (SOUTH EAST) LIMITED,Third Party Payments,Private Contractor Fees,74037-INDEPENDENT FOSTER CARE-OTH AGENCY PROVISION,"2,856.34",Revenue,01/09/2014,Childrens
WC48-0972,CAPSTONE FOSTER CARE (SOUTH EAST) LIMITED,Third Party Payments,Private Contractor Fees,74037-INDEPENDENT FOSTER CARE-OTH AGENCY PROVISION,"2,998.38",Revenue,26/09/2014,Childrens
WC48-0973,CAPSTONE FOSTER CARE (SOUTH EAST) LIMITED,Third Party Payments,Private Contractor Fees,74037-INDEPENDENT FOSTER CARE-OTH AGENCY PROVISION,"3,098.33",Revenue,01/09/2014,Childrens
WC48-0974,CAPSTONE FOSTER CARE (SOUTH EAST) LIMITED,Third Party Payments,Private Contractor Fees,74037-INDEPENDENT FOSTER CARE-OTH AGENCY PROVISION,"3,154.20",Revenue,26/09/2014,Childrens
WC48-0975,CAPSTONE FOSTER CARE (SOUTH EAST) LIMITED,Third Party Payments,Private Contractor Fees,74037-INDEPENDENT FOSTER CARE-OTH AGENCY PROVISION,"3,259.34",Revenue,01/09/2014,Childrens
WC48-0976,CAPSTONE FOSTER CARE (SOUTH EAST) LIMITED,Third Party Payments,Private Contractor Fees,74037-INDEPENDENT FOSTER CARE-OTH AGENCY PROVISION,"3,658.16",Revenue,26/09/2014,Childrens
WC48-0977,CAPSTONE FOSTER CARE (SOUTH EAST) LIMITED,Third Party Payments,Private Contractor Fees,74037-INDEPENDENT FOSTER CARE-OTH AGENCY PROVISION,"3,780.10",Revenue,01/09/2014,Childrens
WC48-0978,CARDIFF UNIVERSITY,Supplies & Services,Services,63000-PROFESSIONAL FEES AND SERVICES,500.00,Revenue,03/09/2014,Neighbourhood Services
WC48-0979,CARE 2 U LIMITED,Third Party Payments,Private Contractor Fees,73372-DOMICILIARY CARE,342.62,Revenue,17/09/2014,Social Care & Inclusion
WC48-0980,CARE 2 U LIMITED,Third Party Payments,Private Contractor Fees,73372-DOMICILIARY CARE,485.01,Revenue,16/09/2014,Social Care & Inclusion
WC48-0981,CARE 2 U LIMITED,Third Party Payments,Private Contractor Fees,73372-DOMICILIARY CARE,530.49,Revenue,16/09/2014,Social Care & Inclusion
WC48-0982,CARE 2 U LIMITED,Third Party Payments,Private Contractor Fees,73372-DOMICILIARY CARE,790.05,Revenue,23/09/2014,Social Care & Inclusion
WC48-0983,CARE 2 U LIMITED,Third Party Payments,Private Contractor Fees,73372-DOMICILIARY CARE,920.57,Revenue,16/09/2014,Social Care & Inclusion
WC48-0984,CARE 2 U LIMITED,Third Party Payments,Private Contractor Fees,73372-DOMICILIARY CARE,"1,840.16",Revenue,17/09/2014,Social Care & Inclusion
WC48-0985,CARE 2 U LIMITED,Third Party Payments,Private Contractor Fees,73372-DOMICILIARY CARE,"1,840.16",Revenue,17/09/2014,Social Care & Inclusion
WC48-0986,CARE 2 U LIMITED,Third Party Payments,Private Contractor Fees,73372-DOMICILIARY CARE,"1,914.32",Revenue,17/09/2014,Social Care & Inclusion
WC48-0987,CARE 2 U LIMITED,Third Party Payments,Private Contractor Fees,73372-DOMICILIARY CARE,"9,449.67",Revenue,17/09/2014,Social Care & Inclusion
WC48-0988,CARE 2 U LIMITED,Third Party Payments,Private Contractor Fees,73372-DOMICILIARY CARE,"26,135.71",Revenue,16/09/2014,Social Care & Inclusion
WC48-0989,CARE ASSIST LIMITED,Third Party Payments,Private Contractor Fees,73372-DOMICILIARY CARE,"3,055.71",Revenue,09/09/2014,Social Care & Inclusion
WC48-0990,CARE FIRST MANAGEMENT SERVICES LTD,Third Party Payments,Private Contractor Fees,73372-DOMICILIARY CARE,780.00,Revenue,17/09/2014,Social Care & Inclusion
WC48-0991,CARE LEAVERS,Third Party Payments,Private Contractor Fees,74500-CARE LEAVERS MTCE PAYMENTS,100.00,Revenue,18/09/2014,Childrens
WC48-0992,CARE LEAVERS,Third Party Payments,Private Contractor Fees,74500-CARE LEAVERS MTCE PAYMENTS,"11,372.14",Revenue,03/09/2014,Childrens
WC48-0993,CARE LEAVERS,Transfer Payments,Transfer Payments,76010-ACCOMMODATION AND RELATED COSTS-ASSISTANCE TO S/S CLIENTS,"15,499.68",Revenue,18/09/2014,Childrens
WC48-0994,CARE LEAVERS,Third Party Payments,Private Contractor Fees,74500-CARE LEAVERS MTCE PAYMENTS,"15,842.55",Revenue,18/09/2014,Childrens
WC48-0995,CARE LEAVERS,Transfer Payments,Transfer Payments,76010-ACCOMMODATION AND RELATED COSTS-ASSISTANCE TO S/S CLIENTS,"17,150.10",Revenue,03/09/2014,Childrens
WC48-0996,CARE MONITORING 2000 LTD,Supplies & Services,Communications & Computing,63800-COMPUTER EQUIPMENT AND SUPPLIES,"2,500.00",Revenue,19/09/2014,Social Care & Inclusion
WC48-0997,CARE MONITORING 2000 LTD,Supplies & Services,Communications & Computing,63800-COMPUTER EQUIPMENT AND SUPPLIES,"4,452.00",Revenue,12/09/2014,Resources
WC48-0998,CARE MONITORING 2000 LTD,Supplies & Services,Communications & Computing,63800-COMPUTER EQUIPMENT AND SUPPLIES,"5,000.00",Revenue,19/09/2014,Social Care & Inclusion
WC48-0999,CARE MONITORING 2000 LTD,Supplies & Services,Communications & Computing,63800-COMPUTER EQUIPMENT AND SUPPLIES,"5,280.00",Revenue,19/09/2014,Social Care & Inclusion
WC48-1000,CARE MONITORING 2000 LTD,Supplies & Services,Communications & Computing,63800-COMPUTER EQUIPMENT AND SUPPLIES,"8,752.80",Revenue,19/09/2014,Social Care & Inclusion
WC48-1001,CARE MONITORING 2000 LTD,Supplies & Services,Communications & Computing,63800-COMPUTER EQUIPMENT AND SUPPLIES,"10,560.00",Revenue,19/09/2014,Social Care & Inclusion
WC48-1002,CARE MONITORING 2000 LTD,Supplies & Services,Communications & Computing,63800-COMPUTER EQUIPMENT AND SUPPLIES,"42,116.16",Revenue,19/09/2014,Social Care & Inclusion
WC48-1003,CARE SHOP,Supplies & Services,"Equip,Furniture & Materials",60520-HEALTH & SAFETY-MATERIALS,288.72,Revenue,12/09/2014,Social Care & Inclusion
WC48-1004,CARE SHOP,Supplies & Services,"Equip,Furniture & Materials",60520-HEALTH & SAFETY-MATERIALS,298.92,Revenue,12/09/2014,Social Care & Inclusion
WC48-1005,CARE SHOP,Supplies & Services,"Equip,Furniture & Materials",60520-HEALTH & SAFETY-MATERIALS,326.36,Revenue,16/09/2014,Social Care & Inclusion
WC48-1006,CARE SHOP,Supplies & Services,"Equip,Furniture & Materials",60539-CLEANING MATERIALS,340.41,Revenue,19/09/2014,Social Care & Inclusion
WC48-1007,CARE TODAY CHILDRENS SERVICES,Third Party Payments,Private Contractor Fees,74036-EXTERNAL RESIDENTIAL CARE-OTH AGENCY PROVISION,"10,500.32",Revenue,02/09/2014,Childrens
WC48-1008,CARETECH COMMUNITY SERVICE,Third Party Payments,Private Contractor Fees,73374-SUPPORTED & OTHER ACCOMMODATION,"1,210.42",Revenue,10/09/2014,Social Care & Inclusion
WC48-1009,CARETECH COMMUNITY SERVICE,Third Party Payments,Private Contractor Fees,73374-SUPPORTED & OTHER ACCOMMODATION,"4,256.12",Revenue,10/09/2014,Social Care & Inclusion
WC48-1010,CARETECH COMMUNITY SERVICE,Third Party Payments,Private Contractor Fees,73374-SUPPORTED & OTHER ACCOMMODATION,"5,014.14",Revenue,09/09/2014,Social Care & Inclusion
WC48-1011,CARETOWER LTD,Supplies & Services,Communications & Computing,63800-COMPUTER EQUIPMENT AND SUPPLIES,"2,950.00",Revenue,09/09/2014,Resources
WC48-1012,CAREVIEW SERVICES LTD,Third Party Payments,Private Contractor Fees,73373-RESIDENTIAL & NURSING CARE PLACEMENTS,"6,438.51",Revenue,09/09/2014,Social Care & Inclusion
WC48-1013,CARING CARE LIMITED,Third Party Payments,Private Contractor Fees,73372-DOMICILIARY CARE,"37,321.99",Revenue,17/09/2014,Social Care & Inclusion
WC48-1014,CARING HANDS LIMITED,Third Party Payments,Private Contractor Fees,73372-DOMICILIARY CARE,350.00,Revenue,04/09/2014,Social Care & Inclusion
WC48-1015,CARING HANDS LIMITED,Third Party Payments,Private Contractor Fees,73372-DOMICILIARY CARE,350.00,Revenue,08/09/2014,Social Care & Inclusion
WC48-1016,CARING HANDS LIMITED,Third Party Payments,Private Contractor Fees,73372-DOMICILIARY CARE,364.00,Revenue,08/09/2014,Social Care & Inclusion
WC48-1017,CARING HANDS LIMITED,Third Party Payments,Private Contractor Fees,73372-DOMICILIARY CARE,380.00,Revenue,08/09/2014,Social Care & Inclusion
WC48-1018,CARING HANDS LIMITED,Third Party Payments,Private Contractor Fees,73372-DOMICILIARY CARE,383.50,Revenue,08/09/2014,Social Care & Inclusion
WC48-1019,CARING HANDS LIMITED,Third Party Payments,Private Contractor Fees,73372-DOMICILIARY CARE,507.00,Revenue,08/09/2014,Social Care & Inclusion
WC48-1020,CARING HANDS LIMITED,Third Party Payments,Private Contractor Fees,73372-DOMICILIARY CARE,539.50,Revenue,08/09/2014,Social Care & Inclusion
WC48-1021,CARING HANDS LIMITED,Third Party Payments,Private Contractor Fees,73372-DOMICILIARY CARE,554.50,Revenue,08/09/2014,Social Care & Inclusion
WC48-1022,CARING HANDS LIMITED,Third Party Payments,Private Contractor Fees,73372-DOMICILIARY CARE,560.00,Revenue,04/09/2014,Social Care & Inclusion
WC48-1023,CARING HANDS LIMITED,Third Party Payments,Private Contractor Fees,73372-DOMICILIARY CARE,581.50,Revenue,08/09/2014,Social Care & Inclusion
WC48-1024,CARING HANDS LIMITED,Third Party Payments,Private Contractor Fees,73372-DOMICILIARY CARE,606.00,Revenue,08/09/2014,Social Care & Inclusion
WC48-1025,CARING HANDS LIMITED,Third Party Payments,Private Contractor Fees,73372-DOMICILIARY CARE,625.00,Revenue,04/09/2014,Social Care & Inclusion
WC48-1026,CARING HANDS LIMITED,Third Party Payments,Private Contractor Fees,73372-DOMICILIARY CARE,632.00,Revenue,04/09/2014,Social Care & Inclusion
WC48-1027,CARING HANDS LIMITED,Third Party Payments,Private Contractor Fees,73372-DOMICILIARY CARE,654.00,Revenue,08/09/2014,Social Care & Inclusion
WC48-1028,CARING HANDS LIMITED,Third Party Payments,Private Contractor Fees,73372-DOMICILIARY CARE,700.00,Revenue,08/09/2014,Social Care & Inclusion
WC48-1029,CARING HANDS LIMITED,Third Party Payments,Private Contractor Fees,73372-DOMICILIARY CARE,721.50,Revenue,04/09/2014,Social Care & Inclusion
WC48-1030,CARING HANDS LIMITED,Third Party Payments,Private Contractor Fees,73372-DOMICILIARY CARE,735.50,Revenue,04/09/2014,Social Care & Inclusion
WC48-1031,CARING HANDS LIMITED,Third Party Payments,Private Contractor Fees,73372-DOMICILIARY CARE,746.00,Revenue,04/09/2014,Social Care & Inclusion
WC48-1032,CARING HANDS LIMITED,Third Party Payments,Private Contractor Fees,73372-DOMICILIARY CARE,759.50,Revenue,08/09/2014,Social Care & Inclusion
WC48-1033,CARING HANDS LIMITED,Third Party Payments,Private Contractor Fees,73372-DOMICILIARY CARE,762.38,Revenue,08/09/2014,Social Care & Inclusion
WC48-1034,CARING HANDS LIMITED,Third Party Payments,Private Contractor Fees,73372-DOMICILIARY CARE,768.00,Revenue,04/09/2014,Social Care & Inclusion
WC48-1035,CARING HANDS LIMITED,Third Party Payments,Private Contractor Fees,73372-DOMICILIARY CARE,799.00,Revenue,04/09/2014,Social Care & Inclusion
WC48-1036,CARING HANDS LIMITED,Third Party Payments,Private Contractor Fees,73372-DOMICILIARY CARE,849.00,Revenue,04/09/2014,Social Care & Inclusion
WC48-1037,CARING HANDS LIMITED,Third Party Payments,Private Contractor Fees,73372-DOMICILIARY CARE,890.00,Revenue,08/09/2014,Social Care & Inclusion
WC48-1038,CARING HANDS LIMITED,Third Party Payments,Private Contractor Fees,73372-DOMICILIARY CARE,912.00,Revenue,08/09/2014,Social Care & Inclusion
WC48-1039,CARING HANDS LIMITED,Third Party Payments,Private Contractor Fees,73372-DOMICILIARY CARE,927.25,Revenue,04/09/2014,Social Care & Inclusion
WC48-1040,CARING HANDS LIMITED,Third Party Payments,Private Contractor Fees,73372-DOMICILIARY CARE,933.00,Revenue,04/09/2014,Social Care & Inclusion
WC48-1041,CARING HANDS LIMITED,Third Party Payments,Private Contractor Fees,73372-DOMICILIARY CARE,"1,085.50",Revenue,08/09/2014,Social Care & Inclusion
WC48-1042,CARING HANDS LIMITED,Third Party Payments,Private Contractor Fees,73372-DOMICILIARY CARE,"1,106.75",Revenue,08/09/2014,Social Care & Inclusion
WC48-1043,CARING HANDS LIMITED,Third Party Payments,Private Contractor Fees,73372-DOMICILIARY CARE,"1,120.00",Revenue,04/09/2014,Social Care & Inclusion
WC48-1044,CARING HANDS LIMITED,Third Party Payments,Private Contractor Fees,73372-DOMICILIARY CARE,"1,120.00",Revenue,04/09/2014,Social Care & Inclusion
WC48-1045,CARING HANDS LIMITED,Third Party Payments,Private Contractor Fees,73372-DOMICILIARY CARE,"1,146.00",Revenue,08/09/2014,Social Care & Inclusion
WC48-1046,CARING HANDS LIMITED,Third Party Payments,Private Contractor Fees,73372-DOMICILIARY CARE,"1,226.00",Revenue,08/09/2014,Social Care & Inclusion
WC48-1047,CARING HANDS LIMITED,Third Party Payments,Private Contractor Fees,73372-DOMICILIARY CARE,"1,260.00",Revenue,04/09/2014,Social Care & Inclusion
WC48-1048,CARING HANDS LIMITED,Third Party Payments,Private Contractor Fees,73372-DOMICILIARY CARE,"1,285.00",Revenue,08/09/2014,Social Care & Inclusion
WC48-1049,CARING HANDS LIMITED,Third Party Payments,Private Contractor Fees,73372-DOMICILIARY CARE,"1,456.00",Revenue,08/09/2014,Social Care & Inclusion
WC48-1050,CARING HANDS LIMITED,Third Party Payments,Private Contractor Fees,73372-DOMICILIARY CARE,"1,484.00",Revenue,08/09/2014,Social Care & Inclusion
WC48-1051,CARING HANDS LIMITED,Third Party Payments,Private Contractor Fees,73372-DOMICILIARY CARE,"1,624.00",Revenue,04/09/2014,Social Care & Inclusion
WC48-1052,CARING HANDS LIMITED,Third Party Payments,Private Contractor Fees,73372-DOMICILIARY CARE,"1,624.00",Revenue,04/09/2014,Social Care & Inclusion
WC48-1053,CARING HANDS LIMITED,Third Party Payments,Private Contractor Fees,73372-DOMICILIARY CARE,"1,639.00",Revenue,08/09/2014,Social Care & Inclusion
WC48-1054,CARING HANDS LIMITED,Third Party Payments,Private Contractor Fees,73372-DOMICILIARY CARE,"1,792.00",Revenue,08/09/2014,Social Care & Inclusion
WC48-1055,CARING HANDS LIMITED,Third Party Payments,Private Contractor Fees,73372-DOMICILIARY CARE,"2,002.00",Revenue,04/09/2014,Social Care & Inclusion
WC48-1056,REDACTED,Third Party Payments,Private Contractor Fees,73374-SUPPORTED & OTHER ACCOMMODATION,"4,912.20",Revenue,09/09/2014,Social Care & Inclusion
WC48-1057,REDACTED,Transfer Payments,Transfer Payments,76422-DIRECT PAYMENTS TO SOCIAL SERVICES CLIENTS,562.50,Revenue,17/09/2014,Social Care & Inclusion
WC48-1058,REDACTED,Transfer Payments,Transfer Payments,76422-DIRECT PAYMENTS TO SOCIAL SERVICES CLIENTS,800.00,Revenue,17/09/2014,Social Care & Inclusion
WC48-1059,REDACTED,Supplies & Services,Other Supplies & Services,62515-MISCELLANEOUS SUPPLIES,533.96,Revenue,15/09/2014,Childrens
WC48-1060,REDACTED,Third Party Payments,Private Contractor Fees,74006-HOLIDAY/CHRISTMAS ALLOWANCE-FOSTER CARERS-OTH AGENCY PROVISION,639.40,Revenue,15/09/2014,Childrens
WC48-1061,REDACTED,Third Party Payments,Private Contractor Fees,74006-HOLIDAY/CHRISTMAS ALLOWANCE-FOSTER CARERS-OTH AGENCY PROVISION,653.40,Revenue,01/09/2014,Childrens
WC48-1062,CARTER SYNERGY LTD,Premises,Premises-Repairs & Maintenance,"40000-REPAIRS,ALTERATIONS & MAINTENANCE-PREM",277.20,Revenue,16/09/2014,Neighbourhood Services
WC48-1063,CARTER SYNERGY LTD,Premises,Premises-Repairs & Maintenance,40012-FIRE SYSTEM-OP MTCE,385.25,Revenue,23/09/2014,Neighbourhood Services
WC48-1064,CARTER SYNERGY LTD,Premises,Premises-Repairs & Maintenance,40013-LIFTS-OP MTCE,414.00,Revenue,16/09/2014,Neighbourhood Services
WC48-1065,CARTER SYNERGY LTD,Premises,Premises-Repairs & Maintenance,"40000-REPAIRS,ALTERATIONS & MAINTENANCE-PREM",438.90,Revenue,16/09/2014,Neighbourhood Services
WC48-1066,CARTER SYNERGY LTD,Premises,Premises-Repairs & Maintenance,"40000-REPAIRS,ALTERATIONS & MAINTENANCE-PREM",483.02,Revenue,23/09/2014,Neighbourhood Services
WC48-1067,CARTER SYNERGY LTD,Premises,Premises-Repairs & Maintenance,40015-ALARM CALL OUTS-OP MTCE,518.92,Revenue,01/09/2014,Neighbourhood Services
WC48-1068,CARTER SYNERGY LTD,Premises,Premises-Repairs & Maintenance,40013-LIFTS-OP MTCE,"8,414.00",Revenue,16/09/2014,Neighbourhood Services
WC48-1069,CARTER SYNERGY LTD,Supplies & Services,"Equip,Furniture & Materials",60500-GENERAL MATERIALS,"8,949.50",Revenue,16/09/2014,Neighbourhood Services
WC48-1070,CARTER SYNERGY LTD,Premises,Premises-Repairs & Maintenance,40216-OTHER-PLAN MTCE,"9,939.41",Revenue,02/09/2014,Neighbourhood Services
WC48-1071,CARTER SYNERGY LTD,Premises,Premises-Repairs & Maintenance,40216-OTHER-PLAN MTCE,"9,939.41",Revenue,16/09/2014,Neighbourhood Services
WC48-1072,CARTER SYNERGY LTD,Premises,Premises-Repairs & Maintenance,"40000-REPAIRS,ALTERATIONS & MAINTENANCE-PREM","21,634.70",Revenue,23/09/2014,Neighbourhood Services
WC48-1073,CARTER SYNERGY LTD,Premises,Premises-Repairs & Maintenance,40013-LIFTS-OP MTCE,"25,806.00",Revenue,23/09/2014,Neighbourhood Services
WC48-1074,CASHFRIDAY,Third Party Payments,Private Contractor Fees,73372-DOMICILIARY CARE,280.00,Revenue,24/09/2014,Social Care & Inclusion
WC48-1075,CASHFRIDAY,Third Party Payments,Private Contractor Fees,73372-DOMICILIARY CARE,288.00,Revenue,24/09/2014,Social Care & Inclusion
WC48-1076,CASHFRIDAY,Third Party Payments,Private Contractor Fees,73372-DOMICILIARY CARE,294.00,Revenue,09/09/2014,Social Care & Inclusion
WC48-1077,CASHFRIDAY,Third Party Payments,Private Contractor Fees,73372-DOMICILIARY CARE,294.00,Revenue,09/09/2014,Social Care & Inclusion
WC48-1078,CASHFRIDAY,Third Party Payments,Private Contractor Fees,73372-DOMICILIARY CARE,294.00,Revenue,24/09/2014,Social Care & Inclusion
WC48-1079,CASHFRIDAY,Third Party Payments,Private Contractor Fees,73372-DOMICILIARY CARE,304.00,Revenue,26/09/2014,Social Care & Inclusion
WC48-1080,CASHFRIDAY,Third Party Payments,Private Contractor Fees,73372-DOMICILIARY CARE,306.00,Revenue,15/09/2014,Social Care & Inclusion
WC48-1081,CASHFRIDAY,Third Party Payments,Private Contractor Fees,73372-DOMICILIARY CARE,316.00,Revenue,24/09/2014,Social Care & Inclusion
WC48-1082,CASHFRIDAY,Third Party Payments,Private Contractor Fees,73372-DOMICILIARY CARE,355.00,Revenue,24/09/2014,Social Care & Inclusion
WC48-1083,CASHFRIDAY,Third Party Payments,Private Contractor Fees,73372-DOMICILIARY CARE,372.00,Revenue,03/09/2014,Social Care & Inclusion
WC48-1084,CASHFRIDAY,Third Party Payments,Private Contractor Fees,73372-DOMICILIARY CARE,376.00,Revenue,10/09/2014,Social Care & Inclusion
WC48-1085,CASHFRIDAY,Third Party Payments,Private Contractor Fees,73372-DOMICILIARY CARE,388.50,Revenue,10/09/2014,Social Care & Inclusion
WC48-1086,CASHFRIDAY,Third Party Payments,Private Contractor Fees,73372-DOMICILIARY CARE,388.50,Revenue,24/09/2014,Social Care & Inclusion
WC48-1087,CASHFRIDAY,Third Party Payments,Private Contractor Fees,73372-DOMICILIARY CARE,413.75,Revenue,26/09/2014,Social Care & Inclusion
WC48-1088,CASHFRIDAY,Third Party Payments,Private Contractor Fees,73372-DOMICILIARY CARE,434.00,Revenue,09/09/2014,Social Care & Inclusion
WC48-1089,CASHFRIDAY,Third Party Payments,Private Contractor Fees,73372-DOMICILIARY CARE,434.00,Revenue,24/09/2014,Social Care & Inclusion
WC48-1090,CASHFRIDAY,Third Party Payments,Private Contractor Fees,73372-DOMICILIARY CARE,438.00,Revenue,24/09/2014,Social Care & Inclusion
WC48-1091,CASHFRIDAY,Third Party Payments,Private Contractor Fees,73372-DOMICILIARY CARE,476.00,Revenue,09/09/2014,Social Care & Inclusion
WC48-1092,CASHFRIDAY,Third Party Payments,Private Contractor Fees,73372-DOMICILIARY CARE,476.00,Revenue,10/09/2014,Social Care & Inclusion
WC48-1093,CASHFRIDAY,Third Party Payments,Private Contractor Fees,73372-DOMICILIARY CARE,476.00,Revenue,24/09/2014,Social Care & Inclusion
WC48-1094,CASHFRIDAY,Third Party Payments,Private Contractor Fees,73372-DOMICILIARY CARE,476.00,Revenue,24/09/2014,Social Care & Inclusion
WC48-1095,CASHFRIDAY,Third Party Payments,Private Contractor Fees,73372-DOMICILIARY CARE,477.50,Revenue,24/09/2014,Social Care & Inclusion
WC48-1096,CASHFRIDAY,Third Party Payments,Private Contractor Fees,73372-DOMICILIARY CARE,479.00,Revenue,10/09/2014,Social Care & Inclusion
WC48-1097,CASHFRIDAY,Third Party Payments,Private Contractor Fees,73372-DOMICILIARY CARE,489.00,Revenue,24/09/2014,Social Care & Inclusion
WC48-1098,CASHFRIDAY,Third Party Payments,Private Contractor Fees,73372-DOMICILIARY CARE,490.00,Revenue,10/09/2014,Social Care & Inclusion
WC48-1099,CASHFRIDAY,Third Party Payments,Private Contractor Fees,73372-DOMICILIARY CARE,490.00,Revenue,24/09/2014,Social Care & Inclusion
WC48-1100,CASHFRIDAY,Third Party Payments,Private Contractor Fees,73372-DOMICILIARY CARE,503.00,Revenue,24/09/2014,Social Care & Inclusion
WC48-1101,CASHFRIDAY,Third Party Payments,Private Contractor Fees,73372-DOMICILIARY CARE,509.00,Revenue,24/09/2014,Social Care & Inclusion
WC48-1102,CASHFRIDAY,Third Party Payments,Private Contractor Fees,73372-DOMICILIARY CARE,523.00,Revenue,24/09/2014,Social Care & Inclusion
WC48-1103,CASHFRIDAY,Third Party Payments,Private Contractor Fees,73372-DOMICILIARY CARE,528.50,Revenue,24/09/2014,Social Care & Inclusion
WC48-1104,CASHFRIDAY,Third Party Payments,Private Contractor Fees,73372-DOMICILIARY CARE,560.25,Revenue,09/09/2014,Social Care & Inclusion
WC48-1105,CASHFRIDAY,Third Party Payments,Private Contractor Fees,73372-DOMICILIARY CARE,588.00,Revenue,09/09/2014,Social Care & Inclusion
WC48-1106,CASHFRIDAY,Third Party Payments,Private Contractor Fees,73372-DOMICILIARY CARE,588.00,Revenue,24/09/2014,Social Care & Inclusion
WC48-1107,CASHFRIDAY,Third Party Payments,Private Contractor Fees,73372-DOMICILIARY CARE,589.00,Revenue,03/09/2014,Social Care & Inclusion
WC48-1108,CASHFRIDAY,Third Party Payments,Private Contractor Fees,73372-DOMICILIARY CARE,667.50,Revenue,24/09/2014,Social Care & Inclusion
WC48-1109,CASHFRIDAY,Third Party Payments,Private Contractor Fees,73372-DOMICILIARY CARE,667.50,Revenue,26/09/2014,Social Care & Inclusion
WC48-1110,CASHFRIDAY,Third Party Payments,Private Contractor Fees,73372-DOMICILIARY CARE,667.50,Revenue,26/09/2014,Social Care & Inclusion
WC48-1111,CASHFRIDAY,Third Party Payments,Private Contractor Fees,73372-DOMICILIARY CARE,667.50,Revenue,26/09/2014,Social Care & Inclusion
WC48-1112,CASHFRIDAY,Third Party Payments,Private Contractor Fees,73372-DOMICILIARY CARE,667.50,Revenue,26/09/2014,Social Care & Inclusion
WC48-1113,CASHFRIDAY,Third Party Payments,Private Contractor Fees,73372-DOMICILIARY CARE,667.50,Revenue,26/09/2014,Social Care & Inclusion
WC48-1114,CASHFRIDAY,Third Party Payments,Private Contractor Fees,73372-DOMICILIARY CARE,667.50,Revenue,26/09/2014,Social Care & Inclusion
WC48-1115,CASHFRIDAY,Third Party Payments,Private Contractor Fees,73372-DOMICILIARY CARE,686.00,Revenue,15/09/2014,Social Care & Inclusion
WC48-1116,CASHFRIDAY,Third Party Payments,Private Contractor Fees,73372-DOMICILIARY CARE,686.00,Revenue,24/09/2014,Social Care & Inclusion
WC48-1117,CASHFRIDAY,Third Party Payments,Private Contractor Fees,73372-DOMICILIARY CARE,686.00,Revenue,24/09/2014,Social Care & Inclusion
WC48-1118,CASHFRIDAY,Third Party Payments,Private Contractor Fees,73372-DOMICILIARY CARE,698.00,Revenue,24/09/2014,Social Care & Inclusion
WC48-1119,CASHFRIDAY,Third Party Payments,Private Contractor Fees,73372-DOMICILIARY CARE,759.50,Revenue,10/09/2014,Social Care & Inclusion
WC48-1120,CASHFRIDAY,Third Party Payments,Private Contractor Fees,73372-DOMICILIARY CARE,765.00,Revenue,26/09/2014,Social Care & Inclusion
WC48-1121,CASHFRIDAY,Third Party Payments,Private Contractor Fees,73372-DOMICILIARY CARE,784.00,Revenue,10/09/2014,Social Care & Inclusion
WC48-1122,CASHFRIDAY,Third Party Payments,Private Contractor Fees,73372-DOMICILIARY CARE,784.00,Revenue,24/09/2014,Social Care & Inclusion
WC48-1123,CASHFRIDAY,Third Party Payments,Private Contractor Fees,73372-DOMICILIARY CARE,792.88,Revenue,26/09/2014,Social Care & Inclusion
WC48-1124,CASHFRIDAY,Third Party Payments,Private Contractor Fees,73372-DOMICILIARY CARE,833.00,Revenue,26/09/2014,Social Care & Inclusion
WC48-1125,CASHFRIDAY,Third Party Payments,Private Contractor Fees,73372-DOMICILIARY CARE,833.00,Revenue,26/09/2014,Social Care & Inclusion
WC48-1126,CASHFRIDAY,Third Party Payments,Private Contractor Fees,73372-DOMICILIARY CARE,833.00,Revenue,26/09/2014,Social Care & Inclusion
WC48-1127,CASHFRIDAY,Third Party Payments,Private Contractor Fees,73372-DOMICILIARY CARE,839.50,Revenue,09/09/2014,Social Care & Inclusion
WC48-1128,CASHFRIDAY,Third Party Payments,Private Contractor Fees,73372-DOMICILIARY CARE,865.00,Revenue,26/09/2014,Social Care & Inclusion
WC48-1129,CASHFRIDAY,Third Party Payments,Private Contractor Fees,73372-DOMICILIARY CARE,877.50,Revenue,09/09/2014,Social Care & Inclusion
WC48-1130,CASHFRIDAY,Third Party Payments,Private Contractor Fees,73372-DOMICILIARY CARE,889.00,Revenue,09/09/2014,Social Care & Inclusion
WC48-1131,CASHFRIDAY,Third Party Payments,Private Contractor Fees,73372-DOMICILIARY CARE,889.00,Revenue,10/09/2014,Social Care & Inclusion
WC48-1132,CASHFRIDAY,Third Party Payments,Private Contractor Fees,73372-DOMICILIARY CARE,889.00,Revenue,24/09/2014,Social Care & Inclusion
WC48-1133,CASHFRIDAY,Third Party Payments,Private Contractor Fees,73372-DOMICILIARY CARE,889.00,Revenue,24/09/2014,Social Care & Inclusion
WC48-1134,CASHFRIDAY,Third Party Payments,Private Contractor Fees,73372-DOMICILIARY CARE,891.00,Revenue,26/09/2014,Social Care & Inclusion
WC48-1135,CASHFRIDAY,Third Party Payments,Private Contractor Fees,73372-DOMICILIARY CARE,"1,043.00",Revenue,26/09/2014,Social Care & Inclusion
WC48-1136,CASHFRIDAY,Third Party Payments,Private Contractor Fees,73372-DOMICILIARY CARE,"1,078.00",Revenue,26/09/2014,Social Care & Inclusion
WC48-1137,CASHFRIDAY,Third Party Payments,Private Contractor Fees,73372-DOMICILIARY CARE,"1,206.50",Revenue,24/09/2014,Social Care & Inclusion
WC48-1138,CASHFRIDAY,Third Party Payments,Private Contractor Fees,73372-DOMICILIARY CARE,"1,228.00",Revenue,15/09/2014,Social Care & Inclusion
WC48-1139,CASHFRIDAY,Third Party Payments,Private Contractor Fees,73372-DOMICILIARY CARE,"1,819.75",Revenue,26/09/2014,Social Care & Inclusion
WC48-1140,CASHFRIDAY,Employees,Agency,34305-AGENCY STAFF-EMPLOYEES,"4,735.40",Revenue,26/09/2014,Social Care & Inclusion
WC48-1141,CASTLE GROUP LIMITED,Employees,Training,30030-EXTERNAL TRAINING,898.00,Revenue,15/09/2014,Neighbourhood Services
WC48-1142,CASTLEFORT JMI SCHOOL,Supplies & Services,Services,63102-CONSULTANTS FEES - CORPORATE,"1,400.00",Revenue,16/09/2014,Childrens
WC48-1143,CATHEDRAL LEASING LTD,Supplies & Services,"Equip,Furniture & Materials",60539-CLEANING MATERIALS,250.89,Revenue,15/09/2014,Childrens
WC48-1144,CATHEDRAL LEASING LTD,Supplies & Services,"Equip,Furniture & Materials",60539-CLEANING MATERIALS,704.76,Revenue,29/09/2014,Social Care & Inclusion
WC48-1145,REDACTED,Transfer Payments,Transfer Payments,76422-DIRECT PAYMENTS TO SOCIAL SERVICES CLIENTS,778.35,Revenue,17/09/2014,Social Care & Inclusion
WC48-1146,REDACTED,Transfer Payments,Transfer Payments,76422-DIRECT PAYMENTS TO SOCIAL SERVICES CLIENTS,863.10,Revenue,17/09/2014,Social Care & Inclusion
WC48-1147,REDACTED,Third Party Payments,Private Contractor Fees,74006-HOLIDAY/CHRISTMAS ALLOWANCE-FOSTER CARERS-OTH AGENCY PROVISION,417.56,Revenue,01/09/2014,Childrens
WC48-1148,REDACTED,Transfer Payments,Transfer Payments,76422-DIRECT PAYMENTS TO SOCIAL SERVICES CLIENTS,485.50,Revenue,17/09/2014,Social Care & Inclusion
WC48-1149,REDACTED,Transfer Payments,Transfer Payments,76422-DIRECT PAYMENTS TO SOCIAL SERVICES CLIENTS,"1,267.83",Revenue,17/09/2014,Childrens
WC48-1150,REDACTED,Third Party Payments,Private Contractor Fees,74006-HOLIDAY/CHRISTMAS ALLOWANCE-FOSTER CARERS-OTH AGENCY PROVISION,417.56,Revenue,01/09/2014,Childrens
WC48-1151,CENTRAL CONSTRUCTION TRAINING LTD,Third Party Payments,Grants to Other Orgs,66500-GRANTS TO OTHER ORGS,750.00,Revenue,19/09/2014,Regeneration
WC48-1152,CENTRAL CONSTRUCTION TRAINING LTD,Third Party Payments,Grants to Other Orgs,66500-GRANTS TO OTHER ORGS,750.00,Revenue,25/09/2014,Regeneration
WC48-1153,CENTRAL CONSTRUCTION TRAINING LTD,Third Party Payments,Grants to Other Orgs,66500-GRANTS TO OTHER ORGS,"1,500.00",Revenue,10/09/2014,Regeneration
WC48-1154,CENTRAL CONSTRUCTION TRAINING LTD,Third Party Payments,Grants to Other Orgs,66500-GRANTS TO OTHER ORGS,"1,500.00",Revenue,19/09/2014,Regeneration
WC48-1155,CENTRAL CONSTRUCTION TRAINING LTD,Third Party Payments,Grants to Other Orgs,66500-GRANTS TO OTHER ORGS,"1,500.00",Revenue,19/09/2014,Regeneration
WC48-1156,CENTRAL CONSTRUCTION TRAINING LTD,Third Party Payments,Grants to Other Orgs,66500-GRANTS TO OTHER ORGS,"4,500.00",Revenue,10/09/2014,Regeneration
WC48-1157,CENTRAL INSULATION & ENVIRONM,Capital,Capital,01006-SITE WORKS MAIN CONTRACTORS,"4,500.00",Capital,16/09/2014,Childrens
WC48-1158,CENTRAL INSULATION & ENVIRONM,Capital,Capital,01006-SITE WORKS MAIN CONTRACTORS,"4,500.00",Capital,18/09/2014,Regeneration
WC48-1159,CENTRAL INSULATION & ENVIRONM,Capital,Capital,01006-SITE WORKS MAIN CONTRACTORS,"6,322.00",Capital,17/09/2014,Childrens
WC48-1160,CENTRAL INSULATION & ENVIRONM,Capital,Capital,01006-SITE WORKS MAIN CONTRACTORS,"12,000.00",Capital,16/09/2014,Childrens
WC48-1161,CENTRAL IT,Supplies & Services,Services,63102-CONSULTANTS FEES - CORPORATE,252.28,Revenue,09/09/2014,Neighbourhood Services
WC48-1162,CENTRAL MIDLANDS CSU,Supplies & Services,Communications & Computing,63809-LICENCES-COMPUTER,"6,125.00",Revenue,01/09/2014,Neighbourhood Services
WC48-1163,CENTRAL POWER SERVICES LIMITED,Third Party Payments,Private Contractor Fees,73025-PROFESSIONAL SERVICES-PRIV CONTRACTOR & OTHER AGENCIES,"2,493.80",Revenue,26/09/2014,Regeneration
WC48-1164,CENTRO WMPTA,Transfer Payments,Transfer Payments,76000-TRANSFER PAYMENTS - SOCIAL SERVICES CLIENTS,"3,527.50",Revenue,18/09/2014,Social Care & Inclusion
WC48-1165,CERTAS ENERGY UK LIMITED,Transport,Other Transport,50301-FUEL-TRANSPORT RUN COSTS,595.40,Revenue,10/09/2014,Neighbourhood Services
WC48-1166,CERTAS ENERGY UK LIMITED,Transport,Other Transport,50301-FUEL-TRANSPORT RUN COSTS,888.89,Revenue,10/09/2014,Neighbourhood Services
WC48-1167,CERTAS ENERGY UK LIMITED,Transport,Other Transport,50301-FUEL-TRANSPORT RUN COSTS,"1,738.73",Revenue,15/09/2014,Neighbourhood Services
WC48-1168,CERTAS ENERGY UK LIMITED,Transport,Other Transport,50301-FUEL-TRANSPORT RUN COSTS,"1,785.90",Revenue,03/09/2014,Neighbourhood Services
WC48-1169,CERTAS ENERGY UK LIMITED,Transport,Other Transport,50301-FUEL-TRANSPORT RUN COSTS,"18,945.00",Revenue,12/09/2014,Neighbourhood Services
WC48-1170,CERTAS ENERGY UK LIMITED,Transport,Other Transport,50301-FUEL-TRANSPORT RUN COSTS,"19,822.72",Revenue,03/09/2014,Neighbourhood Services
WC48-1171,CERTAS ENERGY UK LIMITED,Transport,Other Transport,50301-FUEL-TRANSPORT RUN COSTS,"20,337.02",Revenue,15/09/2014,Neighbourhood Services
WC48-1172,CERTAS ENERGY UK LIMITED,Transport,Other Transport,50301-FUEL-TRANSPORT RUN COSTS,"21,068.40",Revenue,01/09/2014,Neighbourhood Services
WC48-1173,CERTERO LTD,Supplies & Services,Communications & Computing,63820-RECHARGE FOR MAINTENANCE/APPLICATION COSTS-COMPUTER,"1,666.06",Revenue,09/09/2014,Resources
WC48-1174,CEXC LIMITED,Supplies & Services,Communications & Computing,63800-COMPUTER EQUIPMENT AND SUPPLIES,576.80,Revenue,08/09/2014,Resources
WC48-1175,CEXC LIMITED,Supplies & Services,Communications & Computing,63800-COMPUTER EQUIPMENT AND SUPPLIES,710.79,Revenue,18/09/2014,Resources
WC48-1176,CF ASSET FINANCE LIMITED,Supplies & Services,"Equip,Furniture & Materials",60009-LEASING/HIRE/RENTAL-EQUIPMENT,272.86,Revenue,02/09/2014,Resources
WC48-1177,CF ASSET FINANCE LIMITED,Supplies & Services,"Equip,Furniture & Materials",60009-LEASING/HIRE/RENTAL-EQUIPMENT,272.86,Revenue,15/09/2014,Childrens
WC48-1178,CF ASSET FINANCE LIMITED,Supplies & Services,"Equip,Furniture & Materials",60009-LEASING/HIRE/RENTAL-EQUIPMENT,323.94,Revenue,22/09/2014,Neighbourhood Services
WC48-1179,CF ASSET FINANCE LIMITED,Supplies & Services,"Equip,Furniture & Materials",60009-LEASING/HIRE/RENTAL-EQUIPMENT,347.18,Revenue,01/09/2014,Resources
WC48-1180,CFT FOSTERING LIMITED,Third Party Payments,Private Contractor Fees,74037-INDEPENDENT FOSTER CARE-OTH AGENCY PROVISION,"5,661.60",Revenue,18/09/2014,Childrens
WC48-1181,CFT FOSTERING LIMITED,Third Party Payments,Private Contractor Fees,74037-INDEPENDENT FOSTER CARE-OTH AGENCY PROVISION,"5,850.32",Revenue,01/09/2014,Childrens
WC48-1182,REDACTED,Transfer Payments,Transfer Payments,76422-DIRECT PAYMENTS TO SOCIAL SERVICES CLIENTS,935.00,Revenue,17/09/2014,Social Care & Inclusion
WC48-1183,REDACTED,Third Party Payments,Private Contractor Fees,74006-HOLIDAY/CHRISTMAS ALLOWANCE-FOSTER CARERS-OTH AGENCY PROVISION,639.40,Revenue,01/09/2014,Childrens
WC48-1184,CHARLES CODDY WALKER ACADEMY,Third Party Payments,Grants to Other Orgs,66502-TOP UP FUNDING -GRANTS TO SCHOOLS,623.07,Revenue,08/09/2014,Childrens
WC48-1185,CHARLES CODDY WALKER ACADEMY,Third Party Payments,Grants to Other Orgs,66505-OTHER-GRANTS TO OTHER ORGS,"21,822.21",Revenue,22/09/2014,Childrens
WC48-1186,CHARLIE CATERPILLAR'S DAY NURSERY,Supplies & Services,Other Supplies & Services,63016-EXTERNAL SALARY RECHARGES-SERVICES,251.42,Revenue,03/09/2014,Childrens
WC48-1187,CHARLIE CATERPILLAR'S DAY NURSERY,Supplies & Services,Other Supplies & Services,63016-EXTERNAL SALARY RECHARGES-SERVICES,414.40,Revenue,03/09/2014,Childrens
WC48-1188,CHARLIE CATERPILLAR'S DAY NURSERY,Employees,Other Staff Costs,32000-MISC FEES AND EXPENSES,450.00,Revenue,03/09/2014,Childrens
WC48-1189,CHARLIE CATERPILLAR'S DAY NURSERY,Employees,Other Staff Costs,32000-MISC FEES AND EXPENSES,450.00,Revenue,16/09/2014,Childrens
WC48-1190,CHARLIE CATERPILLAR'S DAY NURSERY,Supplies & Services,Other Supplies & Services,63016-EXTERNAL SALARY RECHARGES-SERVICES,520.00,Revenue,03/09/2014,Childrens
WC48-1191,CHARLIE CATERPILLAR'S DAY NURSERY,Employees,Other Staff Costs,32000-MISC FEES AND EXPENSES,546.00,Revenue,17/09/2014,Childrens
WC48-1192,CHARLIE CATERPILLAR'S DAY NURSERY,Supplies & Services,Other Supplies & Services,63120-CRECHE FACILITIES-SERVICES-FEES,600.00,Revenue,12/09/2014,Childrens
WC48-1193,CHARLIE CATERPILLAR'S DAY NURSERY,Supplies & Services,Other Supplies & Services,63016-EXTERNAL SALARY RECHARGES-SERVICES,"1,080.00",Revenue,03/09/2014,Childrens
WC48-1194,CHARLIE CATERPILLAR'S DAY NURSERY,Supplies & Services,Other Supplies & Services,63120-CRECHE FACILITIES-SERVICES-FEES,"1,200.00",Revenue,08/09/2014,Childrens
WC48-1195,CHARLIE CATERPILLAR'S DAY NURSERY,Supplies & Services,Other Supplies & Services,63016-EXTERNAL SALARY RECHARGES-SERVICES,"1,255.20",Revenue,15/09/2014,Childrens
WC48-1196,CHARLIE CATERPILLAR'S DAY NURSERY,Employees,Agency,34305-AGENCY STAFF-EMPLOYEES,"1,559.40",Revenue,25/09/2014,Childrens
WC48-1197,CHARLIE CATERPILLAR'S DAY NURSERY,Employees,Agency,34305-AGENCY STAFF-EMPLOYEES,"2,645.80",Revenue,25/09/2014,Childrens
WC48-1198,CHARLIE CATERPILLAR'S DAY NURSERY,Third Party Payments,Grants to Other Orgs,66505-OTHER-GRANTS TO OTHER ORGS,"17,251.92",Revenue,29/09/2014,Childrens
WC48-1199,CHARMEND LTD,Third Party Payments,Private Contractor Fees,73373-RESIDENTIAL & NURSING CARE PLACEMENTS,782.36,Revenue,09/09/2014,Social Care & Inclusion
WC48-1200,CHARMEND LTD,Third Party Payments,Private Contractor Fees,73373-RESIDENTIAL & NURSING CARE PLACEMENTS,"2,071.24",Revenue,09/09/2014,Social Care & Inclusion
WC48-1201,CHARTER CARE,Third Party Payments,Private Contractor Fees,73372-DOMICILIARY CARE,275.86,Revenue,01/09/2014,Social Care & Inclusion
WC48-1202,CHARTER CARE,Third Party Payments,Private Contractor Fees,73372-DOMICILIARY CARE,"32,038.27",Revenue,17/09/2014,Social Care & Inclusion
WC48-1203,CHASE HOUSE AND PARTNER,Third Party Payments,Private Contractor Fees,73373-RESIDENTIAL & NURSING CARE PLACEMENTS,"4,445.68",Revenue,16/09/2014,Social Care & Inclusion
WC48-1204,CHASE HOUSE AND PARTNER,Third Party Payments,Private Contractor Fees,73373-RESIDENTIAL & NURSING CARE PLACEMENTS,"4,455.44",Revenue,16/09/2014,Social Care & Inclusion
WC48-1205,CHASE HOUSE AND PARTNER,Third Party Payments,Private Contractor Fees,73373-RESIDENTIAL & NURSING CARE PLACEMENTS,"4,562.48",Revenue,16/09/2014,Social Care & Inclusion
WC48-1206,CHASE HOUSE AND PARTNER,Third Party Payments,Private Contractor Fees,73373-RESIDENTIAL & NURSING CARE PLACEMENTS,"4,753.76",Revenue,16/09/2014,Social Care & Inclusion
WC48-1207,CHASEVIEW CARE HOME,Third Party Payments,Private Contractor Fees,73373-RESIDENTIAL & NURSING CARE PLACEMENTS,"1,600.71",Revenue,16/09/2014,Social Care & Inclusion
WC48-1208,CHEMTECH WASTE MANAGEMENT LTD,Supplies & Services,"Equip,Furniture & Materials",60008-MAINTENANCE-FURNITURE & EQUIPMENT,264.50,Revenue,01/09/2014,Neighbourhood Services
WC48-1209,CHEMTECH WASTE MANAGEMENT LTD,Supplies & Services,Other Supplies & Services,63121-DISPOSAL OF WASTE-SERVICES-FEES,"1,255.00",Revenue,11/09/2014,Neighbourhood Services
WC48-1210,REDACTED,Transfer Payments,Transfer Payments,76422-DIRECT PAYMENTS TO SOCIAL SERVICES CLIENTS,"2,002.00",Revenue,17/09/2014,Social Care & Inclusion
WC48-1211,CHILD CONNECTIONS (UK) LIMITED,Transport,Car Allowances,53001-OTHER/VOLUNTEERS-CAR ALLOWANCES,37.35,Revenue,09/09/2014,Childrens
WC48-1212,CHILD CONNECTIONS (UK) LIMITED,Transport,Car Allowances,53001-OTHER/VOLUNTEERS-CAR ALLOWANCES,42.20,Revenue,09/09/2014,Childrens
WC48-1213,CHILD CONNECTIONS (UK) LIMITED,Transport,Car Allowances,53001-OTHER/VOLUNTEERS-CAR ALLOWANCES,58.29,Revenue,09/09/2014,Childrens
WC48-1214,CHILD CONNECTIONS (UK) LIMITED,Transport,Car Allowances,53003-OTHER-TRAVEL ALLOWANCES,60.33,Revenue,09/09/2014,Childrens
WC48-1215,CHILD CONNECTIONS (UK) LIMITED,Transport,Car Allowances,53003-OTHER-TRAVEL ALLOWANCES,68.16,Revenue,09/09/2014,Childrens
WC48-1216,CHILD CONNECTIONS (UK) LIMITED,Transport,Car Allowances,53001-OTHER/VOLUNTEERS-CAR ALLOWANCES,74.70,Revenue,10/09/2014,Childrens
WC48-1217,CHILD CONNECTIONS (UK) LIMITED,Transport,Car Allowances,53001-OTHER/VOLUNTEERS-CAR ALLOWANCES,77.54,Revenue,10/09/2014,Childrens
WC48-1218,CHILD CONNECTIONS (UK) LIMITED,Transport,Car Allowances,53003-OTHER-TRAVEL ALLOWANCES,77.72,Revenue,09/09/2014,Childrens
WC48-1219,CHILD CONNECTIONS (UK) LIMITED,Transport,Car Allowances,53001-OTHER/VOLUNTEERS-CAR ALLOWANCES,78.52,Revenue,01/09/2014,Childrens
WC48-1220,CHILD CONNECTIONS (UK) LIMITED,Transport,Car Allowances,53003-OTHER-TRAVEL ALLOWANCES,80.00,Revenue,10/09/2014,Childrens
WC48-1221,CHILD CONNECTIONS (UK) LIMITED,Transport,Car Allowances,53001-OTHER/VOLUNTEERS-CAR ALLOWANCES,81.80,Revenue,10/09/2014,Childrens
WC48-1222,CHILD CONNECTIONS (UK) LIMITED,Transport,Car Allowances,53001-OTHER/VOLUNTEERS-CAR ALLOWANCES,83.93,Revenue,01/09/2014,Childrens
WC48-1223,CHILD CONNECTIONS (UK) LIMITED,Transport,Car Allowances,53001-OTHER/VOLUNTEERS-CAR ALLOWANCES,87.21,Revenue,09/09/2014,Childrens
WC48-1224,CHILD CONNECTIONS (UK) LIMITED,Transport,Car Allowances,53003-OTHER-TRAVEL ALLOWANCES,93.25,Revenue,01/09/2014,Childrens
WC48-1225,CHILD CONNECTIONS (UK) LIMITED,Transport,Car Allowances,53001-OTHER/VOLUNTEERS-CAR ALLOWANCES,95.49,Revenue,09/09/2014,Childrens
WC48-1226,CHILD CONNECTIONS (UK) LIMITED,Transport,Car Allowances,53001-OTHER/VOLUNTEERS-CAR ALLOWANCES,97.12,Revenue,09/09/2014,Childrens
WC48-1227,CHILD CONNECTIONS (UK) LIMITED,Transport,Car Allowances,53003-OTHER-TRAVEL ALLOWANCES,105.90,Revenue,09/09/2014,Childrens
WC48-1228,CHILD CONNECTIONS (UK) LIMITED,Third Party Payments,Private Contractor Fees,76003-SECTION 34 (CONTACT),116.57,Revenue,01/09/2014,Childrens
WC48-1229,CHILD CONNECTIONS (UK) LIMITED,Third Party Payments,Private Contractor Fees,76003-SECTION 34 (CONTACT),116.59,Revenue,09/09/2014,Childrens
WC48-1230,CHILD CONNECTIONS (UK) LIMITED,Transport,Car Allowances,53003-OTHER-TRAVEL ALLOWANCES,121.41,Revenue,09/09/2014,Childrens
WC48-1231,CHILD CONNECTIONS (UK) LIMITED,Transport,Car Allowances,53003-OTHER-TRAVEL ALLOWANCES,122.70,Revenue,10/09/2014,Childrens
WC48-1232,CHILD CONNECTIONS (UK) LIMITED,Transport,Car Allowances,53003-OTHER-TRAVEL ALLOWANCES,125.63,Revenue,01/09/2014,Childrens
WC48-1233,CHILD CONNECTIONS (UK) LIMITED,Transport,Car Allowances,53003-OTHER-TRAVEL ALLOWANCES,127.32,Revenue,09/09/2014,Childrens
WC48-1234,CHILD CONNECTIONS (UK) LIMITED,Third Party Payments,Private Contractor Fees,76003-SECTION 34 (CONTACT),137.04,Revenue,09/09/2014,Childrens
WC48-1235,CHILD CONNECTIONS (UK) LIMITED,Transport,Car Allowances,53003-OTHER-TRAVEL ALLOWANCES,155.08,Revenue,10/09/2014,Childrens
WC48-1236,CHILD CONNECTIONS (UK) LIMITED,Third Party Payments,Private Contractor Fees,76003-SECTION 34 (CONTACT),190.99,Revenue,09/09/2014,Childrens
WC48-1237,CHILD CONNECTIONS (UK) LIMITED,Transport,Car Allowances,53001-OTHER/VOLUNTEERS-CAR ALLOWANCES,191.30,Revenue,09/09/2014,Childrens
WC48-1238,CHILD CONNECTIONS (UK) LIMITED,Third Party Payments,Private Contractor Fees,76003-SECTION 34 (CONTACT),204.50,Revenue,10/09/2014,Childrens
WC48-1239,CHILD CONNECTIONS (UK) LIMITED,Transport,Car Allowances,53001-OTHER/VOLUNTEERS-CAR ALLOWANCES,217.58,Revenue,18/09/2014,Childrens
WC48-1240,CHILD CONNECTIONS (UK) LIMITED,Transport,Car Allowances,53003-OTHER-TRAVEL ALLOWANCES,218.97,Revenue,18/09/2014,Childrens
WC48-1241,CHILD CONNECTIONS (UK) LIMITED,Third Party Payments,Private Contractor Fees,76003-SECTION 34 (CONTACT),224.47,Revenue,09/09/2014,Childrens
WC48-1242,CHILD CONNECTIONS (UK) LIMITED,Transport,Car Allowances,53003-OTHER-TRAVEL ALLOWANCES,232.29,Revenue,09/09/2014,Childrens
WC48-1243,CHILD CONNECTIONS (UK) LIMITED,Third Party Payments,Private Contractor Fees,76003-SECTION 34 (CONTACT),242.81,Revenue,09/09/2014,Childrens
WC48-1244,CHILD CONNECTIONS (UK) LIMITED,Transfer Payments,Transfer Payments,76408-OUTINGS-ALLOWANCES TO S/S CLIENTS,249.44,Revenue,10/09/2014,Childrens
WC48-1245,CHILD CONNECTIONS (UK) LIMITED,Third Party Payments,Private Contractor Fees,76003-SECTION 34 (CONTACT),253.63,Revenue,09/09/2014,Childrens
WC48-1246,CHILD CONNECTIONS (UK) LIMITED,Transport,Car Allowances,53001-OTHER/VOLUNTEERS-CAR ALLOWANCES,289.23,Revenue,18/09/2014,Childrens
WC48-1247,CHILD CONNECTIONS (UK) LIMITED,Transport,Car Allowances,53003-OTHER-TRAVEL ALLOWANCES,291.07,Revenue,18/09/2014,Childrens
WC48-1248,CHILD CONNECTIONS (UK) LIMITED,Transport,Car Allowances,53001-OTHER/VOLUNTEERS-CAR ALLOWANCES,293.10,Revenue,09/09/2014,Childrens
WC48-1249,CHILD CONNECTIONS (UK) LIMITED,Third Party Payments,Private Contractor Fees,76003-SECTION 34 (CONTACT),300.61,Revenue,09/09/2014,Childrens
WC48-1250,CHILD CONNECTIONS (UK) LIMITED,Transport,Car Allowances,53001-OTHER/VOLUNTEERS-CAR ALLOWANCES,303.31,Revenue,09/09/2014,Childrens
WC48-1251,CHILD CONNECTIONS (UK) LIMITED,Transport,Car Allowances,53003-OTHER-TRAVEL ALLOWANCES,305.24,Revenue,09/09/2014,Childrens
WC48-1252,CHILD CONNECTIONS (UK) LIMITED,Transport,Car Allowances,53003-OTHER-TRAVEL ALLOWANCES,355.91,Revenue,09/09/2014,Childrens
WC48-1253,CHILD CONNECTIONS (UK) LIMITED,Third Party Payments,Private Contractor Fees,76003-SECTION 34 (CONTACT),392.57,Revenue,01/09/2014,Childrens
WC48-1254,CHILD CONNECTIONS (UK) LIMITED,Transport,Car Allowances,53001-OTHER/VOLUNTEERS-CAR ALLOWANCES,394.55,Revenue,09/09/2014,Childrens
WC48-1255,CHILD CONNECTIONS (UK) LIMITED,Third Party Payments,Private Contractor Fees,76003-SECTION 34 (CONTACT),460.59,Revenue,09/09/2014,Childrens
WC48-1256,CHILD CONNECTIONS (UK) LIMITED,Transport,Car Allowances,53001-OTHER/VOLUNTEERS-CAR ALLOWANCES,515.66,Revenue,09/09/2014,Childrens
WC48-1257,CHILD CONNECTIONS (UK) LIMITED,Transport,Car Allowances,53003-OTHER-TRAVEL ALLOWANCES,591.83,Revenue,09/09/2014,Childrens
WC48-1258,CHILD CONNECTIONS (UK) LIMITED,Transport,Car Allowances,53003-OTHER-TRAVEL ALLOWANCES,626.16,Revenue,09/09/2014,Childrens
WC48-1259,CHILD CONNECTIONS (UK) LIMITED,Third Party Payments,Private Contractor Fees,76003-SECTION 34 (CONTACT),750.00,Revenue,10/09/2014,Childrens
WC48-1260,CHILD CONNECTIONS (UK) LIMITED,Third Party Payments,Private Contractor Fees,76003-SECTION 34 (CONTACT),810.32,Revenue,09/09/2014,Childrens
WC48-1261,CHILD CONNECTIONS (UK) LIMITED,Third Party Payments,Private Contractor Fees,76003-SECTION 34 (CONTACT),872.62,Revenue,18/09/2014,Childrens
WC48-1262,CHILD CONNECTIONS (UK) LIMITED,Third Party Payments,Private Contractor Fees,76003-SECTION 34 (CONTACT),986.37,Revenue,09/09/2014,Childrens
WC48-1263,CHILD CONNECTIONS (UK) LIMITED,Transport,Car Allowances,53001-OTHER/VOLUNTEERS-CAR ALLOWANCES,"1,028.09",Revenue,09/09/2014,Childrens
WC48-1264,CHILD CONNECTIONS (UK) LIMITED,Third Party Payments,Private Contractor Fees,76003-SECTION 34 (CONTACT),"1,159.97",Revenue,18/09/2014,Childrens
WC48-1265,CHILD CONNECTIONS (UK) LIMITED,Third Party Payments,Private Contractor Fees,76003-SECTION 34 (CONTACT),"1,216.45",Revenue,09/09/2014,Childrens
WC48-1266,CHILD CONNECTIONS (UK) LIMITED,Transport,Car Allowances,53003-OTHER-TRAVEL ALLOWANCES,"1,248.40",Revenue,09/09/2014,Childrens
WC48-1267,CHILD CONNECTIONS (UK) LIMITED,Third Party Payments,Private Contractor Fees,76003-SECTION 34 (CONTACT),"1,292.38",Revenue,10/09/2014,Childrens
WC48-1268,CHILD CONNECTIONS (UK) LIMITED,Third Party Payments,Private Contractor Fees,76003-SECTION 34 (CONTACT),"1,615.57",Revenue,09/09/2014,Childrens
WC48-1269,CHILDCARE BUREAU LTD,Third Party Payments,Private Contractor Fees,74037-INDEPENDENT FOSTER CARE-OTH AGENCY PROVISION,"3,733.52",Revenue,18/09/2014,Childrens
WC48-1270,CHILDLINK,Transport,Car Allowances,53001-OTHER/VOLUNTEERS-CAR ALLOWANCES,4.03,Revenue,22/09/2014,Childrens
WC48-1271,CHILDLINK,Transport,Car Allowances,53001-OTHER/VOLUNTEERS-CAR ALLOWANCES,4.03,Revenue,22/09/2014,Childrens
